{"text_format":"2","workbook":"xlsx","n_sheets":8,"sheets":["Voorblad","Tabel 1","Tabel 2","Tabel 3","Tabel 4","Tabel 5","Tabel 6","Tabel 7"],"not_rendered":{"charts":0,"images":1,"macros":0,"external_links":0,"defined_names":5,"comments":0,"pivot_tables":0},"unopened":[],"bounds":{"document_bytes":16777216,"sheet_cells":100000,"run_cost":"one","rows_first":2000,"rows_last":500,"rows_between":2000,"halvings":0,"cell_chars":16384,"cell_head_chars":4096},"cells_cut":0,"cells_raw":0,"read":"whole","date_system":"1900"}

{"sheet":"Voorblad","index":0,"n_rows":52,"n_cols":3,"rows_kept":52,"cut":false,"hidden":false,"merged":[]}
[]
[]
[]
[]
[null,null,"Project:"]
[null,null,"18107 Kosten en aantallen logopedie 2011 tot en met 2017"]
[]
[null,null,"Bestand:   "]
[null,null,"18107 Kosten en aantallen logopedie"]
[]
[null,null,"Structuur (beschrijving werkbladen):  "]
[null,null,"• Voorblad"]
[null,null,"• Tabel 1: Aantal patiënten per jaar"]
[null,null,"• Tabel 2: Verhouding van het aantal patiënten per leeftijdscategorie"]
[null,null,"• Tabel 3: Aantal patiënten per postcodegebied in 2015, 2016 en 2017"]
[null,null,"• Tabel 4: Gemiddelde kosten per patiënt per leeftijdscategorie"]
[null,null,"• Tabel 5: Aantal declaraties per prestatiecodes binnen diagnosecode 3 'Taalstoornis' per leeftijdscategorie in 2015, 2016 en 2017 "]
[null,null,"• Tabel 6: Aantal behandelingen per jaar"]
[null,null,"• Tabel 7: Kosten, het aantal declaraties en het aantal unieke patiënten per prestatiecode"]
[]
[null,null,"Achtergrond:"]
[null,null,"De Nederlandse Vereniging voor Logopedie en Foniatrie (NVLF) is de beroepsvereniging van en voor logopedisten. De vereniging behartigt de collectieve en individuele belangen van de leden werkzaam in loondienst in het onderwijs en de gezondheidszorg en van leden die zich als zelfstandig logopedist hebben gevestigd. De NVLF stelt zich daarnaast ten doel het vakgebied logopedie en de kwaliteit van het logopedisch handelen voortdurend te verbeteren. De kerntaken van de NVLF zijn belangenbehartiging en kwaliteit. In het kader van deze kerntaken heeft het NVLF vorig jaar aan Vektis gevraagd om enkele kerngetallen over het logopediegebruik in Nederland te leveren. Het NVLF vraagt nu een update van deze gegevens en heeft een nieuwe vraag die ze graag beantwoord zien om de markt nog beter in beeld te krijgen.\n"]
[null,null,"Toelichting:   "]
[null,null,"In de oplevering in 2017 is er ten onrechte geen rekening gehouden met debet/credit verrekening. In deze levering hebben we hier wel rekening mee gehouden. Hierdoor is het aantal patiënten en het aantal declaraties iets lager dan in de oplevering in 2017."]
[]
[null,null,"Vektis geeft in de rapportage inzicht in het aantal mensen met logopedie per postcodegebied en het aantal personen per prestatie naar leeftijdscategorie. Vektis hanteert daarbij een minimale celgrootte van 10 personen. Wanneer er minder dan 10 personen zijn met logopedie per postcodegebied of wanneer er minder dan 10 personen zijn in een leeftijdscategorie met een prestatiecode, dan wordt niet het werkelijke aantal mensen getoond, maar wordt aangegeven dat het om minder dan 10 personen gaat. Vektis hanteert deze regel in al haar producten. De reden daarvoor is dat Vektis ten alle tijde wil voorkomen dat de gegevens herleidbaar zijn naar individuele personen. "]
[]
[null,null,"Tabel 3: Personen kunnen door verhuizing in meerdere postcodegebieden voor komen. Bij de beantwoording van deze vraag is van de declaratiegegevens gebruik gemaakt, waarin de postcode van de patiënt is meegenomen die bekend was op het moment dat de prestatie plaats heeft gevonden (prestatiedatum). "]
[]
[null,null,"Tabel 4 en 7: De kosten die zijn weergegeven, zijn de kosten die door de zorgverzekeraar zijn vergoed aan de patiënt. "]
[]
[]
[null,null,"Brondata:   "]
[null,null,"• Dataset: De data is afkomstig uit het paramedisch-informatiesysteem van Vektis."]
[null,null,"• Gebruikte kwartalen en dekkingspercentages:"]
[null,null,"Jaar    Type verzekering    Dekking    Kwartalen"]
[null,null,"2017       BV                        95,1%          5"]
[null,null,"2016       BV                        100%           9"]
[null,null,"2015       BV                        100%          12"]
[null,null,"2014       BV                        100%          12"]
[null,null,"2013       BV                        100%          12"]
[null,null,"2012       BV                        100%          12"]
[null,null,"2011       BV                        100%          12"]
[]
[null,null,"Auteur(s):   "]
[null,null,"Chantal van Tilburg, Talitha Oorsprong"]
[]
[null,null,"Wijzigingbeheer:"]
[null,null,"• Aangemaakt: 3 augustus 2018"]
[null,null,"• Wijziging: 14 september 2018. Tabel 7 toegevoegd."]
[]
[null,null,"© Copyright 2018 Vektis - Sparrenheuvel 18 - 3708 JE Zeist - KvK 30230118"]

{"sheet":"Tabel 1","index":1,"n_rows":13,"n_cols":3,"rows_kept":13,"cut":false,"hidden":false,"merged":[]}
[]
[]
[]
[]
[]
[null,"Jaar","Aantal patiënten"]
[null,2011,221060]
[null,2012,227433]
[null,2013,225293]
[null,2014,222904]
[null,2015,230005]
[null,2016,242557]
[null,2017,251767]

{"sheet":"Tabel 2","index":2,"n_rows":26,"n_cols":16,"rows_kept":26,"cut":false,"hidden":false,"merged":[[4,1,5,1],[4,14,4,15],[4,2,4,3],[4,4,4,5],[4,6,4,7],[4,8,4,9],[4,10,4,11],[4,12,4,13]]}
[]
[]
[]
[]
[null,"Leeftijdscategorie",2011,null,2012,null,2013,null,2014,null,2015,null,2016,null,2017]
[null,"Leeftijdscategorie","Aantal patiënten","Verhouding","Aantal patiënten","Verhouding","Aantal patiënten","Verhouding","Aantal patiënten","Verhouding","Aantal patiënten","Verhouding","Aantal patiënten","Verhouding","Aantal patiënten","Verhouding"]
[null,"0-4 jaar",50479,0.2283497692934045,53620,0.23576174082037346,56226,0.24956833989515875,58721,0.26343627750062809,62184,0.27035934001434753,66439,0.27391087455732055,69815,0.27730004329399804]
[null,"5-9 jaar",93667,0.42371754274857504,95429,0.4195917039303883,93648,0.4156720359709356,90388,0.40550192010910524,92070,0.40029564574683157,96897,0.39948135902076626,100384,0.39871786215032151]
[null,"10-14 jaar",26740,0.12096263457884737,28549,0.12552707830437976,29009,0.12876121317573117,27290,0.122429386641783,26957,0.11720179996087042,27677,0.11410513817370763,28375,0.11270341228199089]
[null,"15-19 jaar",5972,2.7015289966524924E-2,5959,2.6201122968082909E-2,5565,2.4701166924848975E-2,5399,2.4221189390948569E-2,5540,2.4086432903632531E-2,5991,2.4699349018993472E-2,6170,2.4506786036295462E-2]
[null,"20-24 jaar",4035,1.8252962996471545E-2,3830,1.6840124344312393E-2,3260,1.4470045673855823E-2,2974,1.3342066539855722E-2,3070,1.3347535923132106E-2,3055,1.2594977675350536E-2,2999,1.1911807345680729E-2]
[null,"25-29 jaar",3165,1.431737989686058E-2,3050,1.3410542885157388E-2,2675,1.1873427048332616E-2,2359,1.0583031260094031E-2,2405,1.0456294428381991E-2,2479,1.0220278120194428E-2,2514,9.9854230300237927E-3]
[null,"30-34 jaar",2754,1.2458156156699539E-2,2554,1.1229680829079334E-2,2128,9.4454776668604877E-3,1960,8.7930230054193738E-3,1979,8.6041607791134973E-3,2119,8.7360908982218616E-3,2063,8.1940842127840429E-3]
[null,"35-39 jaar",2957,1.3376458879942097E-2,2777,1.2210189374453135E-2,2248,9.9781173849165308E-3,2083,9.3448300613717117E-3,2058,8.9476315732266685E-3,2070,8.5340765263422613E-3,2117,8.4085682396819288E-3]
[null,"40-44 jaar",3272,1.4801411381525378E-2,3071,1.3502877770596175E-2,2669,1.1846795062429813E-2,2528,1.134120518250009E-2,2384,1.0364992065389883E-2,2238,9.2266972299294599E-3,2310,9.175150039520668E-3]
[null,"45-49 jaar",3355,1.5176875056545735E-2,3206,1.4096459176988388E-2,2853,1.2663509296782413E-2,2725,1.2224993719269281E-2,2846,1.2373644051216277E-2,2900,1.195595262144568E-2,2857,1.1347793793467769E-2]
[null,"50-54 jaar",3434,1.5534244096625351E-2,3298,1.4500973913196415E-2,3066,1.3608944796331887E-2,2947,1.3220938161719844E-2,3094,1.3451881480837372E-2,3159,1.3023742872809278E-2,3315,1.3166936095675763E-2]
[null,"55-59 jaar",3307,1.4959739437256854E-2,3335,1.4663659187540945E-2,3198,1.4194848486193535E-2,3084,1.3835552524853748E-2,3301,1.4351861916045303E-2,3430,1.414100603157196E-2,3689,1.4652436578264824E-2]
[null,"60-64 jaar",3551,1.6063512168641998E-2,3478,1.529241578838603E-2,3196,1.4185971157559268E-2,3370,1.5118616085848616E-2,3580,1.5564879024369035E-2,3796,1.5649929707244069E-2,3791,1.5057573073516387E-2]
[null,"65-69 jaar",3296,1.4909979191169818E-2,3660,1.6092651462188863E-2,3715,1.6489637938151652E-2,3981,1.7859706420701289E-2,4187,1.8203952087998087E-2,4413,1.8193661696013722E-2,4442,1.7643297175563118E-2]
[null,"70-74 jaar",3107,1.405500769021985E-2,3357,1.4760390972286343E-2,3448,1.5304514565476957E-2,3670,1.646448695402505E-2,3991,1.7351796700071736E-2,4435,1.8284362026245376E-2,4903,1.9474355257043219E-2]
[null,"75-79 jaar",3110,1.4068578666425404E-2,3143,1.3819454520672021E-2,3311,1.4696417554029641E-2,3500,1.5701826795391737E-2,3777,1.6421382143866438E-2,4198,1.7307272105113437E-2,4510,1.7913388172397494E-2]
[null,"80-84 jaar",2608,1.1797701981362527E-2,2686,1.1810071537551719E-2,2638,1.170919646859867E-2,3002,1.3467681154218857E-2,3233,1.4056216169213712E-2,3536,1.4578016713597217E-2,3609,1.433468246434203E-2]
[null,"85-89 jaar",1551,7.0161946982719627E-3,1684,7.4043784323295208E-3,1606,7.1284948933167027E-3,1860,8.3443993826938945E-3,2172,9.4432729723266887E-3,2398,9.8863359952506003E-3,2475,9.8305178994864302E-3]
[null,"90 jaar en ouder",700,3.1665611146295125E-3,747,3.2844837820369074E-3,834,3.7018460404894958E-3,1063,4.7688691095718336E-3,1177,5.1172800591291496E-3,1327,5.4708790098822136E-3,1429,5.675882859945902E-3]
[null,"Totaal",{"$f":"SUM(C7:C25)","v":221060},{"$f":"SUM(D7:D25)","v":0.99999999999999989},{"$f":"SUM(E7:E25)","v":227433},{"$f":"SUM(F7:F25)","v":1},225293,{"$f":"SUM(H7:H25)","v":0.99999999999999989},222904,{"$f":"SUM(J7:J25)","v":1},230005,{"$f":"SUM(L7:L25)","v":1.0000000000000002},242557,{"$f":"SUM(N7:N25)","v":1.0000000000000002},251767,{"$f":"SUM(P7:P25)","v":1}]

{"sheet":"Tabel 3","index":3,"n_rows":4034,"n_cols":5,"rows_kept":4034,"cut":false,"hidden":false,"merged":[]}
[]
[]
[]
[]
[]
[]
[null,"Postcode4","Aantal patiënten 2015","Aantal patiënten 2016","Aantal patiënten 2017"]
[null,"0000",637,623,599]
[null,"1011",67,69,61]
[null,"1012",47,55,53]
[null,"1013",206,223,232]
[null,"1014","Minder dan 10 patiënten","Minder dan 10 patiënten","Minder dan 10 patiënten"]
[null,"1015",120,126,118]
[null,"1016",67,87,76]
[null,"1017",75,92,82]
[null,"1018",193,195,213]
[null,"1019",268,249,242]
[null,"1021",103,97,92]
[null,"1022",32,40,41]
[null,"1023",34,38,27]
[null,"1024",250,284,327]
[null,"1025",195,235,229]
[null,"1026","Minder dan 10 patiënten","Minder dan 10 patiënten","Minder dan 10 patiënten"]
[null,"1027","Minder dan 10 patiënten","Minder dan 10 patiënten","Minder dan 10 patiënten"]
[null,"1028","Minder dan 10 patiënten","Minder dan 10 patiënten","Minder dan 10 patiënten"]
[null,"1031",96,88,99]
[null,"1032",59,70,73]
[null,"1033",142,154,139]
[null,"1034",233,235,252]
[null,"1035",157,156,166]
[null,"1036",29,37,39]
[null,"1037","Minder dan 10 patiënten","Minder dan 10 patiënten","Minder dan 10 patiënten"]
[null,"1042","Minder dan 10 patiënten"]
[null,"1045","Minder dan 10 patiënten"]
[null,"1051",153,137,122]
[null,"1052",133,128,110]
[null,"1053",142,180,170]
[null,"1054",149,131,124]
[null,"1055",276,301,314]
[null,"1056",218,245,231]
[null,"1057",221,218,232]
[null,"1058",136,143,137]
[null,"1059",71,68,60]
[null,"1060",116,141,130]
[null,"1061",280,261,276]
[null,"1062",112,127,144]
[null,"1063",232,280,282]
[null,"1064",293,318,304]
[null,"1065",184,221,225]
[null,"1066",200,219,252]
[null,"1067",368,376,413]
[null,"1068",249,276,321]
[null,"1069",536,578,545]
[null,"1071",123,116,127]
[null,"1072",108,110,96]
[null,"1073",116,129,141]
[null,"1074",90,79,86]
[null,"1075",123,122,103]
[null,"1076",94,118,103]
[null,"1077",99,93,100]
[null,"1078",134,138,132]
[null,"1079",121,126,139]
[null,"1081",48,59,56]
[null,"1082",102,117,125]
[null,"1083",62,78,84]
[null,"1086",95,68,67]
[null,"1087",364,341,378]
[null,"1091",178,200,223]
[null,"1092",106,129,114]
[null,"1093",101,100,127]
[null,"1094",174,170,169]
[null,"1095",181,199,190]
[null,"1096",11,24,24]
[null,"1097",148,143,167]
[null,"1098",170,168,151]
[null,"1100",40,60,82]
[null,"1101",null,"Minder dan 10 patiënten"]
[null,"1102",496,535,513]
[null,"1103",233,238,224]
[null,"1104",210,243,262]
[null,"1105",null,null,"Minder dan 10 patiënten"]
[null,"1106",265,289,309]
[null,"1107",136,148,161]
[null,"1108",31,30,34]
[null,"1109",13,14,11]
[null,"1111",121,151,155]
[null,"1112",94,121,129]
[null,"1113",34,34,43]
[null,"1115",58,61,59]
[null,"1121",91,106,95]
[null,"1127",10,"Minder dan 10 patiënten","Minder dan 10 patiënten"]
[null,"1131",73,63,99]
[null,"1132",124,122,137]
[null,"1135",36,43,45]
[null,"1141",91,82,95]
[null,"1145","Minder dan 10 patiënten","Minder dan 10 patiënten","Minder dan 10 patiënten"]
[null,"1151",26,21,32]
[null,"1153","Minder dan 10 patiënten","Minder dan 10 patiënten","Minder dan 10 patiënten"]
[null,"1154",null,null,"Minder dan 10 patiënten"]
[null,"1156",18,13,"Minder dan 10 patiënten"]
[null,"1161",103,111,101]
[null,"1165",32,32,43]
[null,"1171",125,151,153]
[null,"1175","Minder dan 10 patiënten","Minder dan 10 patiënten",11]
[null,"1181",231,244,259]
[null,"1182",29,27,33]
[null,"1183",107,114,123]
[null,"1184",12,"Minder dan 10 patiënten","Minder dan 10 patiënten"]
[null,"1185",118,134,118]
[null,"1186",112,152,182]
[null,"1187",247,231,241]
[null,"1188",68,82,80]
[null,"1189","Minder dan 10 patiënten","Minder dan 10 patiënten","Minder dan 10 patiënten"]
[null,"1191",105,94,89]
[null,"1200","Minder dan 10 patiënten","Minder dan 10 patiënten","Minder dan 10 patiënten"]
[null,"1211",112,132,130]
[null,"1212",49,57,72]
[null,"1213",73,77,79]
[null,"1214",92,80,82]
[null,"1215",131,144,126]
[null,"1216",100,97,108]
[null,"1217",86,82,74]
[null,"1218",54,53,55]
[null,"1221",125,131,134]
[null,"1222",164,186,222]
[null,"1223",143,159,167]
[null,"1231",90,110,93]
[null,"1241",67,84,109]
[null,"1243",17,16,18]
[null,"1244",11,11,14]
[null,"1251",118,148,150]
[null,"1252","Minder dan 10 patiënten","Minder dan 10 patiënten","Minder dan 10 patiënten"]
[null,"1261",100,118,174]
[null,"1262",null,null,"Minder dan 10 patiënten"]
[null,"1271",93,88,97]
[null,"1272",70,70,84]
[null,"1273",92,98,127]
[null,"1274",80,96,104]
[null,"1275",35,27,24]
[null,"1276",98,115,105]
[null,"1277",32,28,24]
[null,"1300","Minder dan 10 patiënten","Minder dan 10 patiënten","Minder dan 10 patiënten"]
[null,"1301","Minder dan 10 patiënten","Minder dan 10 patiënten"]
[null,"1311",72,74,69]
[null,"1312",106,114,120]
[null,"1313",70,66,58]
[null,"1314",132,140,152]
[null,"1315",61,65,63]
[null,"1316",70,69,63]
[null,"1317",102,110,97]
[null,"1318",102,122,156]
[null,"1319",98,101,116]
[null,"1321",132,136,164]
[null,"1323",86,92,81]
[null,"1324",204,245,234]
[null,"1325",185,205,182]
[null,"1326",209,201,208]
[null,"1328",158,184,156]
[null,"1331","Minder dan 10 patiënten","Minder dan 10 patiënten","Minder dan 10 patiënten"]
[null,"1332",null,null,"Minder dan 10 patiënten"]
[null,"1333",215,226,241]
[null,"1334",29,40,45]
[null,"1335",204,230,233]
[null,"1336",164,180,205]
[null,"1338",152,151,159]
[null,"1339",188,205,221]
[null,"1341","Minder dan 10 patiënten","Minder dan 10 patiënten",20]
[null,"1343","Minder dan 10 patiënten","Minder dan 10 patiënten","Minder dan 10 patiënten"]
[null,"1349",null,"Minder dan 10 patiënten","Minder dan 10 patiënten"]
[null,"1351",12,25,21]
[null,"1352",10,13,14]
[null,"1353",74,73,97]
[null,"1354",47,51,54]
[null,"1355",43,48,44]
[null,"1356",34,46,49]
[null,"1357",50,62,59]
[null,"1358","Minder dan 10 patiënten","Minder dan 10 patiënten","Minder dan 10 patiënten"]
[null,"1359",15,23,29]
[null,"1361","Minder dan 10 patiënten","Minder dan 10 patiënten","Minder dan 10 patiënten"]
[null,"1363",185,220,263]
[null,"1381",61,70,55]
[null,"1382",149,152,139]
[null,"1383",33,44,40]
[null,"1384",null,"Minder dan 10 patiënten","Minder dan 10 patiënten"]
[null,"1391",73,89,103]
[null,"1393",13,16,14]
[null,"1394",51,73,78]
[null,"1396",13,14,15]
[null,"1398",32,31,18]
[null,"1399",28,20,16]
[null,"1401",68,75,74]
[null,"1402",110,108,125]
[null,"1403",104,128,128]
[null,"1404",30,35,39]
[null,"1405",31,28,37]
[null,"1406",39,40,30]
[null,"1411",93,96,117]
[null,"1412",91,96,123]
[null,"1421",73,84,71]
[null,"1422",148,141,154]
[null,"1423",61,59,51]
[null,"1424",29,33,37]
[null,"1426","Minder dan 10 patiënten","Minder dan 10 patiënten","Minder dan 10 patiënten"]
[null,"1427","Minder dan 10 patiënten","Minder dan 10 patiënten","Minder dan 10 patiënten"]
[null,"1431",129,124,106]
[null,"1432",138,143,124]
[null,"1433",96,91,121]
[null,"1435",30,30,37]
[null,"1436","Minder dan 10 patiënten","Minder dan 10 patiënten","Minder dan 10 patiënten"]
[null,"1437","Minder dan 10 patiënten","Minder dan 10 patiënten"]
[null,"1438","Minder dan 10 patiënten"]
[null,"1441",98,109,130]
[null,"1442",82,87,92]
[null,"1443",77,102,103]
[null,"1444",57,55,56]
[null,"1445",83,95,108]
[null,"1446",36,57,67]
[null,"1447",104,117,107]
[null,"1448",239,241,239]
[null,"1451","Minder dan 10 patiënten","Minder dan 10 patiënten","Minder dan 10 patiënten"]
[null,"1452",11,17,"Minder dan 10 patiënten"]
[null,"1454","Minder dan 10 patiënten","Minder dan 10 patiënten","Minder dan 10 patiënten"]
[null,"1456","Minder dan 10 patiënten",14,11]
[null,"1458","Minder dan 10 patiënten"]
[null,"1461",25,38,37]
[null,"1462",37,46,41]
[null,"1463","Minder dan 10 patiënten",11,"Minder dan 10 patiënten"]
[null,"1464","Minder dan 10 patiënten",11,"Minder dan 10 patiënten"]
[null,"1471","Minder dan 10 patiënten","Minder dan 10 patiënten","Minder dan 10 patiënten"]
[null,"1472","Minder dan 10 patiënten","Minder dan 10 patiënten","Minder dan 10 patiënten"]
[null,"1473",10,"Minder dan 10 patiënten","Minder dan 10 patiënten"]
[null,"1474",36,34,40]
[null,"1475","Minder dan 10 patiënten","Minder dan 10 patiënten","Minder dan 10 patiënten"]
[null,"1477","Minder dan 10 patiënten","Minder dan 10 patiënten","Minder dan 10 patiënten"]
[null,"1481",null,null,"Minder dan 10 patiënten"]
[null,"1482","Minder dan 10 patiënten","Minder dan 10 patiënten","Minder dan 10 patiënten"]
[null,"1483",57,57,60]
[null,"1484",11,12,"Minder dan 10 patiënten"]
[null,"1485","Minder dan 10 patiënten","Minder dan 10 patiënten","Minder dan 10 patiënten"]
[null,"1486","Minder dan 10 patiënten","Minder dan 10 patiënten",12]
[null,"1487","Minder dan 10 patiënten",null,"Minder dan 10 patiënten"]
[null,"1488","Minder dan 10 patiënten","Minder dan 10 patiënten","Minder dan 10 patiënten"]
[null,"1489","Minder dan 10 patiënten","Minder dan 10 patiënten","Minder dan 10 patiënten"]
[null,"1501",71,71,77]
[null,"1502",96,121,108]
[null,"1503",136,177,184]
[null,"1504",168,212,169]
[null,"1505",101,106,118]
[null,"1506",143,139,134]
[null,"1507",132,115,122]
[null,"1508",77,87,73]
[null,"1509",62,55,59]
[null,"1511",107,116,106]
[null,"1521",92,118,117]
[null,"1525","Minder dan 10 patiënten","Minder dan 10 patiënten","Minder dan 10 patiënten"]
[null,"1531",129,144,139]
[null,"1534","Minder dan 10 patiënten","Minder dan 10 patiënten","Minder dan 10 patiënten"]
[null,"1536","Minder dan 10 patiënten","Minder dan 10 patiënten","Minder dan 10 patiënten"]
[null,"1541",88,84,97]
[null,"1544",70,91,94]
[null,"1546","Minder dan 10 patiënten",10,"Minder dan 10 patiënten"]
[null,"1551",31,30,29]
[null,"1561",76,63,73]
[null,"1562",65,61,69]
[null,"1566",106,121,127]
[null,"1567",135,158,184]
[null,"1601",75,89,87]
[null,"1602",214,200,194]
[null,"1606",82,93,93]
[null,"1607",22,24,34]
[null,"1608",17,16,17]
[null,"1609","Minder dan 10 patiënten"]
[null,"1611",141,153,135]
[null,"1613",125,126,157]
[null,"1614",40,36,40]
[null,"1616",124,142,157]
[null,"1617",20,33,27]
[null,"1619",73,98,101]
[null,"1621",58,46,46]
[null,"1622",115,135,147]
[null,"1623",30,29,29]
[null,"1624",78,77,67]
[null,"1625",106,126,128]
[null,"1628",337,327,310]
[null,"1631","Minder dan 10 patiënten","Minder dan 10 patiënten","Minder dan 10 patiënten"]
[null,"1633",37,31,39]
[null,"1634",null,null,"Minder dan 10 patiënten"]
[null,"1636",14,13,16]
[null,"1641",14,13,11]
[null,"1642","Minder dan 10 patiënten","Minder dan 10 patiënten","Minder dan 10 patiënten"]
[null,"1643","Minder dan 10 patiënten","Minder dan 10 patiënten","Minder dan 10 patiënten"]
[null,"1645",25,25,29]
[null,"1646",null,null,"Minder dan 10 patiënten"]
[null,"1647",33,38,30]
[null,"1648",41,41,51]
[null,"1652","Minder dan 10 patiënten","Minder dan 10 patiënten","Minder dan 10 patiënten"]
[null,"1654","Minder dan 10 patiënten","Minder dan 10 patiënten",11]
[null,"1655","Minder dan 10 patiënten",14,11]
[null,"1657",15,27,24]
[null,"1658",null,"Minder dan 10 patiënten","Minder dan 10 patiënten"]
[null,"1661","Minder dan 10 patiënten","Minder dan 10 patiënten","Minder dan 10 patiënten"]
[null,"1662","Minder dan 10 patiënten","Minder dan 10 patiënten","Minder dan 10 patiënten"]
[null,"1663","Minder dan 10 patiënten","Minder dan 10 patiënten","Minder dan 10 patiënten"]
[null,"1671",118,119,112]
[null,"1674",15,15,22]
[null,"1676",17,13,10]
[null,"1678","Minder dan 10 patiënten",10,"Minder dan 10 patiënten"]
[null,"1679",28,33,36]
[null,"1681","Minder dan 10 patiënten","Minder dan 10 patiënten","Minder dan 10 patiënten"]
[null,"1682",null,"Minder dan 10 patiënten","Minder dan 10 patiënten"]
[null,"1683","Minder dan 10 patiënten","Minder dan 10 patiënten","Minder dan 10 patiënten"]
[null,"1684","Minder dan 10 patiënten","Minder dan 10 patiënten","Minder dan 10 patiënten"]
[null,"1685","Minder dan 10 patiënten","Minder dan 10 patiënten","Minder dan 10 patiënten"]
[null,"1686","Minder dan 10 patiënten","Minder dan 10 patiënten","Minder dan 10 patiënten"]
[null,"1687",82,93,89]
[null,"1688",29,35,44]
[null,"1689",274,273,296]
[null,"1691","Minder dan 10 patiënten","Minder dan 10 patiënten","Minder dan 10 patiënten"]
[null,"1693",100,117,107]
[null,"1695",47,46,46]
[null,"1696",16,14,16]
[null,"1697","Minder dan 10 patiënten","Minder dan 10 patiënten","Minder dan 10 patiënten"]
[null,"1701",97,118,100]
[null,"1702",108,103,94]
[null,"1703",157,169,189]
[null,"1704",71,75,100]
[null,"1705",259,255,242]
[null,"1706",12,17,17]
[null,"1711","Minder dan 10 patiënten",21,16]
[null,"1713",78,68,85]
[null,"1715",69,80,74]
[null,"1716",38,33,33]
[null,"1718",66,67,47]
[null,"1719","Minder dan 10 patiënten",10,"Minder dan 10 patiënten"]
[null,"1720",null,null,"Minder dan 10 patiënten"]
[null,"1721",70,71,60]
[null,"1722",80,84,76]
[null,"1723",53,56,62]
[null,"1724",49,52,61]
[null,"1731",89,81,80]
[null,"1732","Minder dan 10 patiënten","Minder dan 10 patiënten",11]
[null,"1733",57,58,51]
[null,"1734","Minder dan 10 patiënten","Minder dan 10 patiënten","Minder dan 10 patiënten"]
[null,"1735",35,33,30]
[null,"1736","Minder dan 10 patiënten","Minder dan 10 patiënten","Minder dan 10 patiënten"]
[null,"1738",26,28,28]
[null,"1741",184,202,220]
[null,"1742",89,91,89]
[null,"1744",28,18,20]
[null,"1746",31,33,21]
[null,"1747",40,55,59]
[null,"1749",56,72,59]
[null,"1751",19,15,23]
[null,"1752",14,12,"Minder dan 10 patiënten"]
[null,"1753","Minder dan 10 patiënten","Minder dan 10 patiënten","Minder dan 10 patiënten"]
[null,"1754","Minder dan 10 patiënten","Minder dan 10 patiënten",10]
[null,"1755",27,30,26]
[null,"1756",38,48,41]
[null,"1757","Minder dan 10 patiënten","Minder dan 10 patiënten",10]
[null,"1759",22,23,26]
[null,"1761",181,193,194]
[null,"1764",71,87,92]
[null,"1766",42,36,38]
[null,"1767",14,"Minder dan 10 patiënten","Minder dan 10 patiënten"]
[null,"1768",10,13,"Minder dan 10 patiënten"]
[null,"1769","Minder dan 10 patiënten","Minder dan 10 patiënten","Minder dan 10 patiënten"]
[null,"1771",97,86,71]
[null,"1773","Minder dan 10 patiënten",13,12]
[null,"1774",29,30,35]
[null,"1775",65,64,53]
[null,"1777",71,80,89]
[null,"1778",12,"Minder dan 10 patiënten","Minder dan 10 patiënten"]
[null,"1779",36,38,29]
[null,"1781",131,137,131]
[null,"1782",166,177,157]
[null,"1783",39,41,34]
[null,"1784",105,137,130]
[null,"1785",76,84,94]
[null,"1786","Minder dan 10 patiënten","Minder dan 10 patiënten"]
[null,"1787",17,18,14]
[null,"1788",158,175,178]
[null,"1789","Minder dan 10 patiënten","Minder dan 10 patiënten","Minder dan 10 patiënten"]
[null,"1791",63,69,65]
[null,"1792",16,18,13]
[null,"1793","Minder dan 10 patiënten",null,"Minder dan 10 patiënten"]
[null,"1794",12,11,13]
[null,"1795","Minder dan 10 patiënten","Minder dan 10 patiënten","Minder dan 10 patiënten"]
[null,"1796",16,14,16]
[null,"1797","Minder dan 10 patiënten","Minder dan 10 patiënten","Minder dan 10 patiënten"]
[null,"1800",null,"Minder dan 10 patiënten","Minder dan 10 patiënten"]
[null,"1802","Minder dan 10 patiënten",null,"Minder dan 10 patiënten"]
[null,"1810","Minder dan 10 patiënten","Minder dan 10 patiënten"]
[null,"1811",31,27,31]
[null,"1812","Minder dan 10 patiënten","Minder dan 10 patiënten","Minder dan 10 patiënten"]
[null,"1813",108,128,142]
[null,"1814",77,84,100]
[null,"1815",54,51,60]
[null,"1816",108,113,108]
[null,"1817",30,36,45]
[null,"1821",17,22,17]
[null,"1822",47,42,43]
[null,"1823",92,79,80]
[null,"1824",92,84,96]
[null,"1825",93,111,128]
[null,"1826",80,77,77]
[null,"1827",149,165,129]
[null,"1829",26,31,32]
[null,"1831",27,32,21]
[null,"1834",61,70,63]
[null,"1841",15,25,15]
[null,"1842","Minder dan 10 patiënten","Minder dan 10 patiënten",10]
[null,"1843","Minder dan 10 patiënten",12,10]
[null,"1844","Minder dan 10 patiënten","Minder dan 10 patiënten","Minder dan 10 patiënten"]
[null,"1846","Minder dan 10 patiënten","Minder dan 10 patiënten","Minder dan 10 patiënten"]
[null,"1847","Minder dan 10 patiënten","Minder dan 10 patiënten","Minder dan 10 patiënten"]
[null,"1851",129,136,143]
[null,"1852",106,111,114]
[null,"1853",null,"Minder dan 10 patiënten","Minder dan 10 patiënten"]
[null,"1861",47,53,50]
[null,"1862",53,48,46]
[null,"1865","Minder dan 10 patiënten","Minder dan 10 patiënten","Minder dan 10 patiënten"]
[null,"1871",37,37,37]
[null,"1873",13,19,17]
[null,"1901",142,152,148]
[null,"1902",81,73,99]
[null,"1906",59,54,51]
[null,"1911",112,128,136]
[null,"1921",44,44,51]
[null,"1931",33,33,35]
[null,"1934",22,29,27]
[null,"1935",12,18,22]
[null,"1941",19,26,28]
[null,"1942",12,16,12]
[null,"1943",51,52,50]
[null,"1944",62,76,89]
[null,"1945",62,64,81]
[null,"1946",69,60,60]
[null,"1947",49,49,47]
[null,"1948",94,97,121]
[null,"1949",13,11,13]
[null,"1951",47,51,61]
[null,"1961","Minder dan 10 patiënten","Minder dan 10 patiënten","Minder dan 10 patiënten"]
[null,"1962",78,76,88]
[null,"1963",45,60,55]
[null,"1964",56,57,61]
[null,"1965",46,42,55]
[null,"1966",37,42,53]
[null,"1967",70,65,63]
[null,"1968","Minder dan 10 patiënten","Minder dan 10 patiënten","Minder dan 10 patiënten"]
[null,"1969","Minder dan 10 patiënten","Minder dan 10 patiënten","Minder dan 10 patiënten"]
[null,"1971",99,105,131]
[null,"1972",70,77,84]
[null,"1973",69,83,70]
[null,"1974",64,56,73]
[null,"1975",24,25,28]
[null,"1976","Minder dan 10 patiënten","Minder dan 10 patiënten","Minder dan 10 patiënten"]
[null,"1981",17,20,16]
[null,"1985",36,30,36]
[null,"1991",146,151,155]
[null,"1992",20,27,30]
[null,"2000",null,"Minder dan 10 patiënten","Minder dan 10 patiënten"]
[null,"2001","Minder dan 10 patiënten","Minder dan 10 patiënten"]
[null,"2003","Minder dan 10 patiënten"]
[null,"2011",81,89,96]
[null,"2012",141,153,142]
[null,"2013",90,93,91]
[null,"2014",92,92,105]
[null,"2015",52,68,66]
[null,"2019","Minder dan 10 patiënten","Minder dan 10 patiënten"]
[null,"2021",97,119,115]
[null,"2022",90,112,114]
[null,"2023",136,190,181]
[null,"2024",78,101,110]
[null,"2025",109,120,129]
[null,"2026",80,105,87]
[null,"2031",13,15,24]
[null,"2032",65,75,82]
[null,"2033",122,135,153]
[null,"2034",134,160,150]
[null,"2035",99,112,105]
[null,"2036",79,109,110]
[null,"2037",112,135,133]
[null,"2041",78,84,63]
[null,"2042",66,67,55]
[null,"2051",48,73,73]
[null,"2061",69,103,109]
[null,"2063","Minder dan 10 patiënten","Minder dan 10 patiënten","Minder dan 10 patiënten"]
[null,"2064",28,32,27]
[null,"2065","Minder dan 10 patiënten","Minder dan 10 patiënten","Minder dan 10 patiënten"]
[null,"2071",75,79,72]
[null,"2082",33,41,42]
[null,"2101",68,65,80]
[null,"2102",55,71,64]
[null,"2103",41,35,40]
[null,"2104",39,42,42]
[null,"2105",21,22,38]
[null,"2106",39,35,41]
[null,"2111",55,61,68]
[null,"2114",22,24,30]
[null,"2116","Minder dan 10 patiënten","Minder dan 10 patiënten","Minder dan 10 patiënten"]
[null,"2121",40,43,53]
[null,"2131",98,128,105]
[null,"2132",120,139,145]
[null,"2133",74,79,77]
[null,"2134",342,347,352]
[null,"2135",188,182,195]
[null,"2136",17,11,16]
[null,"2141",37,44,36]
[null,"2142","Minder dan 10 patiënten","Minder dan 10 patiënten","Minder dan 10 patiënten"]
[null,"2143","Minder dan 10 patiënten",null,"Minder dan 10 patiënten"]
[null,"2144","Minder dan 10 patiënten",10,"Minder dan 10 patiënten"]
[null,"2151",184,174,195]
[null,"2152",182,189,167]
[null,"2153",22,23,26]
[null,"2154",null,"Minder dan 10 patiënten","Minder dan 10 patiënten"]
[null,"2155",null,null,"Minder dan 10 patiënten"]
[null,"2156","Minder dan 10 patiënten","Minder dan 10 patiënten","Minder dan 10 patiënten"]
[null,"2157",10,12,16]
[null,"2158","Minder dan 10 patiënten","Minder dan 10 patiënten","Minder dan 10 patiënten"]
[null,"2159","Minder dan 10 patiënten","Minder dan 10 patiënten","Minder dan 10 patiënten"]
[null,"2161",90,113,112]
[null,"2162",73,78,68]
[null,"2163",27,20,14]
[null,"2165",37,38,52]
[null,"2171",137,127,116]
[null,"2172",106,86,89]
[null,"2181",112,112,104]
[null,"2182",120,134,123]
[null,"2191",20,17,18]
[null,"2201",138,134,132]
[null,"2202",72,60,67]
[null,"2203",32,32,40]
[null,"2204","Minder dan 10 patiënten","Minder dan 10 patiënten","Minder dan 10 patiënten"]
[null,"2211",172,147,149]
[null,"2215",180,178,226]
[null,"2216",null,"Minder dan 10 patiënten","Minder dan 10 patiënten"]
[null,"2221",212,171,194]
[null,"2223",85,74,72]
[null,"2224",159,152,136]
[null,"2225",158,190,184]
[null,"2231",197,228,209]
[null,"2232",null,null,"Minder dan 10 patiënten"]
[null,"2235",59,66,73]
[null,"2241",106,104,96]
[null,"2242",102,104,107]
[null,"2243",30,37,36]
[null,"2244",17,17,20]
[null,"2245",21,23,22]
[null,"2251",160,182,176]
[null,"2252",70,83,102]
[null,"2253",101,124,128]
[null,"2254",15,17,22]
[null,"2260",null,null,"Minder dan 10 patiënten"]
[null,"2261",41,40,50]
[null,"2262",36,36,29]
[null,"2263",96,83,73]
[null,"2264",79,78,89]
[null,"2265",31,40,47]
[null,"2266",67,75,87]
[null,"2267","Minder dan 10 patiënten","Minder dan 10 patiënten","Minder dan 10 patiënten"]
[null,"2271",70,72,66]
[null,"2272",70,87,103]
[null,"2273",103,103,112]
[null,"2274",115,132,151]
[null,"2275",59,53,70]
[null,"2281",56,73,72]
[null,"2282",129,140,139]
[null,"2283",73,82,104]
[null,"2284",41,62,78]
[null,"2285",107,111,134]
[null,"2286",130,139,162]
[null,"2287",54,70,77]
[null,"2288",13,12,12]
[null,"2289",24,24,29]
[null,"2290",null,null,"Minder dan 10 patiënten"]
[null,"2291",234,252,265]
[null,"2292",90,100,108]
[null,"2295",60,64,75]
[null,"2301","Minder dan 10 patiënten","Minder dan 10 patiënten"]
[null,"2311",68,59,52]
[null,"2312",94,99,84]
[null,"2313",116,117,107]
[null,"2314",72,78,89]
[null,"2315",120,102,123]
[null,"2316",104,119,121]
[null,"2317",183,181,177]
[null,"2318",43,42,46]
[null,"2321",116,110,120]
[null,"2322","Minder dan 10 patiënten","Minder dan 10 patiënten","Minder dan 10 patiënten"]
[null,"2323",null,"Minder dan 10 patiënten","Minder dan 10 patiënten"]
[null,"2324",97,97,131]
[null,"2331",110,128,143]
[null,"2332",131,124,146]
[null,"2333",18,"Minder dan 10 patiënten",17]
[null,"2334",16,23,25]
[null,"2341",99,110,133]
[null,"2342",26,40,30]
[null,"2343",151,129,154]
[null,"2351",51,53,61]
[null,"2352",111,118,107]
[null,"2353",153,160,169]
[null,"2355","Minder dan 10 patiënten","Minder dan 10 patiënten",19]
[null,"2361",56,50,58]
[null,"2362","Minder dan 10 patiënten","Minder dan 10 patiënten","Minder dan 10 patiënten"]
[null,"2371",123,88,80]
[null,"2374","Minder dan 10 patiënten","Minder dan 10 patiënten","Minder dan 10 patiënten"]
[null,"2375",21,18,16]
[null,"2376",14,11,15]
[null,"2377",46,51,58]
[null,"2381",41,47,47]
[null,"2382",30,30,28]
[null,"2391",69,80,70]
[null,"2394",47,59,50]
[null,"2396",37,34,38]
[null,"2401",91,93,93]
[null,"2402",142,165,156]
[null,"2403",123,93,126]
[null,"2404",38,34,40]
[null,"2405",70,71,81]
[null,"2406",58,45,74]
[null,"2407","Minder dan 10 patiënten","Minder dan 10 patiënten","Minder dan 10 patiënten"]
[null,"2408",182,209,246]
[null,"2411",177,166,191]
[null,"2412","Minder dan 10 patiënten",11,13]
[null,"2415",21,16,13]
[null,"2421",91,95,109]
[null,"2431",14,14,16]
[null,"2432",null,null,"Minder dan 10 patiënten"]
[null,"2435",23,30,30]
[null,"2441",60,48,39]
[null,"2445",12,14,"Minder dan 10 patiënten"]
[null,"2451",37,33,39]
[null,"2461",83,70,83]
[null,"2465","Minder dan 10 patiënten","Minder dan 10 patiënten",13]
[null,"2471","Minder dan 10 patiënten",10,10]
[null,"2481",32,36,37]
[null,"2491","Minder dan 10 patiënten","Minder dan 10 patiënten","Minder dan 10 patiënten"]
[null,"2492",180,189,182]
[null,"2493",159,180,174]
[null,"2495","Minder dan 10 patiënten","Minder dan 10 patiënten","Minder dan 10 patiënten"]
[null,"2496",161,183,196]
[null,"2497",174,194,177]
[null,"2498",106,104,110]
[null,"2500","Minder dan 10 patiënten","Minder dan 10 patiënten","Minder dan 10 patiënten"]
[null,"2511",33,39,33]
[null,"2512",206,222,235]
[null,"2513",80,87,96]
[null,"2514",10,17,15]
[null,"2515",229,222,194]
[null,"2516",178,163,176]
[null,"2517",70,89,89]
[null,"2518",82,98,94]
[null,"2521",179,180,185]
[null,"2522",205,223,202]
[null,"2523",95,110,104]
[null,"2524",118,139,134]
[null,"2525",443,394,383]
[null,"2526",338,333,325]
[null,"2531",148,183,188]
[null,"2532",103,121,155]
[null,"2533",126,156,171]
[null,"2541",166,210,183]
[null,"2542",201,251,278]
[null,"2543",132,164,192]
[null,"2544",203,234,244]
[null,"2545",163,201,254]
[null,"2546",79,87,92]
[null,"2547",89,91,92]
[null,"2548",371,453,460]
[null,"2551",86,127,145]
[null,"2552",153,210,215]
[null,"2553",67,72,99]
[null,"2554","Minder dan 10 patiënten",12,18]
[null,"2555",68,85,76]
[null,"2561",53,51,56]
[null,"2562",103,114,115]
[null,"2563",98,131,133]
[null,"2564",110,138,123]
[null,"2565",99,119,129]
[null,"2566",77,67,65]
[null,"2571",169,197,193]
[null,"2572",257,243,228]
[null,"2573",222,219,219]
[null,"2574",115,142,126]
[null,"2581",31,28,32]
[null,"2582",83,71,70]
[null,"2583",120,131,143]
[null,"2584",62,66,69]
[null,"2585",41,41,46]
[null,"2586",69,66,69]
[null,"2587",65,74,66]
[null,"2591",105,101,108]
[null,"2592",59,82,80]
[null,"2593",80,92,74]
[null,"2594",16,"Minder dan 10 patiënten",12]
[null,"2595",98,107,124]
[null,"2596",86,88,111]
[null,"2597",85,83,90]
[null,"2600",null,null,"Minder dan 10 patiënten"]
[null,"2601",null,null,"Minder dan 10 patiënten"]
[null,"2611",84,90,89]
[null,"2612",88,109,117]
[null,"2613",114,146,153]
[null,"2614",174,183,205]
[null,"2616",null,"Minder dan 10 patiënten","Minder dan 10 patiënten"]
[null,"2622",88,83,93]
[null,"2623",57,69,78]
[null,"2624",120,129,168]
[null,"2625",152,171,225]
[null,"2626","Minder dan 10 patiënten",null,"Minder dan 10 patiënten"]
[null,"2627",15,14,23]
[null,"2628",76,138,146]
[null,"2629","Minder dan 10 patiënten","Minder dan 10 patiënten","Minder dan 10 patiënten"]
[null,"2631",262,296,301]
[null,"2632",83,81,88]
[null,"2635",130,139,156]
[null,"2636",62,60,65]
[null,"2641",212,233,213]
[null,"2642",170,148,132]
[null,"2643",85,98,93]
[null,"2645",216,217,205]
[null,"2651",263,273,258]
[null,"2652",231,233,206]
[null,"2661",156,162,151]
[null,"2662",91,97,95]
[null,"2665",195,217,191]
[null,"2671",188,243,237]
[null,"2672",65,64,75]
[null,"2673",50,43,56]
[null,"2675",188,190,175]
[null,"2676",80,87,92]
[null,"2678",204,208,200]
[null,"2681",233,228,257]
[null,"2684",15,16,16]
[null,"2685",133,136,154]
[null,"2691",206,231,256]
[null,"2692",58,68,65]
[null,"2693",17,19,18]
[null,"2694",62,65,66]
[null,"2701",null,null,"Minder dan 10 patiënten"]
[null,"2711",55,49,59]
[null,"2712",48,65,63]
[null,"2713",92,87,89]
[null,"2715",69,72,86]
[null,"2716",126,137,165]
[null,"2717",109,110,123]
[null,"2718",93,122,109]
[null,"2719",111,130,113]
[null,"2721",173,193,199]
[null,"2722",102,90,93]
[null,"2723",51,55,57]
[null,"2724",77,89,87]
[null,"2725",67,75,68]
[null,"2726",87,78,102]
[null,"2727",72,86,71]
[null,"2728",99,112,103]
[null,"2729",217,230,205]
[null,"2731",45,49,42]
[null,"2735","Minder dan 10 patiënten","Minder dan 10 patiënten"]
[null,"2741",109,120,138]
[null,"2742",72,74,109]
[null,"2743",56,71,74]
[null,"2751",46,60,74]
[null,"2752","Minder dan 10 patiënten","Minder dan 10 patiënten","Minder dan 10 patiënten"]
[null,"2761",78,84,99]
[null,"2771",141,142,130]
[null,"2800","Minder dan 10 patiënten","Minder dan 10 patiënten"]
[null,"2801",84,86,105]
[null,"2802",163,179,165]
[null,"2803",95,120,121]
[null,"2804",147,146,167]
[null,"2805",126,152,135]
[null,"2806",165,173,152]
[null,"2807",174,188,185]
[null,"2808","Minder dan 10 patiënten","Minder dan 10 patiënten","Minder dan 10 patiënten"]
[null,"2809","Minder dan 10 patiënten",null,15]
[null,"2811",100,112,143]
[null,"2821",60,64,65]
[null,"2825",25,26,32]
[null,"2831",31,40,47]
[null,"2841",123,124,142]
[null,"2851",45,46,46]
[null,"2855",10,"Minder dan 10 patiënten",10]
[null,"2861",121,123,114]
[null,"2865",18,16,22]
[null,"2871",233,226,262]
[null,"2872","Minder dan 10 patiënten","Minder dan 10 patiënten",15]
[null,"2901",111,136,153]
[null,"2902",119,126,160]
[null,"2903",186,216,232]
[null,"2904",120,110,130]
[null,"2905",143,143,161]
[null,"2906",96,110,118]
[null,"2907",256,282,294]
[null,"2908",48,46,45]
[null,"2909",101,116,114]
[null,"2911",107,116,118]
[null,"2912",86,114,121]
[null,"2913","Minder dan 10 patiënten","Minder dan 10 patiënten","Minder dan 10 patiënten"]
[null,"2914",113,126,123]
[null,"2921",40,30,29]
[null,"2922",97,118,99]
[null,"2923",103,121,116]
[null,"2924",57,66,61]
[null,"2925",111,116,114]
[null,"2926",47,40,44]
[null,"2931",77,95,89]
[null,"2935",70,75,73]
[null,"2941",104,110,142]
[null,"2951",133,131,142]
[null,"2952",14,10,"Minder dan 10 patiënten"]
[null,"2953",110,104,95]
[null,"2954",27,29,33]
[null,"2957",104,107,96]
[null,"2959",30,31,24]
[null,"2961","Minder dan 10 patiënten","Minder dan 10 patiënten",10]
[null,"2964",71,74,64]
[null,"2965",24,15,12]
[null,"2967",27,20,15]
[null,"2968","Minder dan 10 patiënten","Minder dan 10 patiënten"]
[null,"2969",27,21,27]
[null,"2971",49,42,37]
[null,"2973",16,14,11]
[null,"2974",17,14,20]
[null,"2975",20,15,15]
[null,"2977",16,11,"Minder dan 10 patiënten"]
[null,"2981",80,76,75]
[null,"2982",93,90,100]
[null,"2983",118,145,136]
[null,"2984",36,44,44]
[null,"2985",43,52,59]
[null,"2986",104,104,112]
[null,"2987",78,96,105]
[null,"2988",40,38,41]
[null,"2989","Minder dan 10 patiënten","Minder dan 10 patiënten","Minder dan 10 patiënten"]
[null,"2991",230,206,230]
[null,"2992",237,213,218]
[null,"2993",277,277,221]
[null,"2994",252,244,231]
[null,"2995",74,72,80]
[null,"3001",null,"Minder dan 10 patiënten","Minder dan 10 patiënten"]
[null,"3005",null,null,"Minder dan 10 patiënten"]
[null,"3011",94,107,119]
[null,"3012",39,41,42]
[null,"3013",13,20,14]
[null,"3014",103,109,124]
[null,"3015",14,22,24]
[null,"3016",11,"Minder dan 10 patiënten",10]
[null,"3021",139,164,148]
[null,"3022",141,188,189]
[null,"3023",119,131,158]
[null,"3024",98,137,126]
[null,"3025",165,192,177]
[null,"3026",173,204,209]
[null,"3027",230,238,254]
[null,"3028",138,154,154]
[null,"3029",73,90,108]
[null,"3031",112,110,119]
[null,"3032",78,86,92]
[null,"3033",63,68,57]
[null,"3034",212,200,223]
[null,"3035",107,116,137]
[null,"3036",138,150,154]
[null,"3037",132,131,133]
[null,"3038",69,80,74]
[null,"3039",76,81,81]
[null,"3041",12,12,11]
[null,"3042",124,109,134]
[null,"3043",76,68,90]
[null,"3044","Minder dan 10 patiënten",null,"Minder dan 10 patiënten"]
[null,"3045",30,35,61]
[null,"3046","Minder dan 10 patiënten",null,"Minder dan 10 patiënten"]
[null,"3047",null,null,"Minder dan 10 patiënten"]
[null,"3051",113,99,93]
[null,"3052",154,151,153]
[null,"3053",174,173,182]
[null,"3054",116,109,81]
[null,"3055",156,145,133]
[null,"3056",42,55,57]
[null,"3059",326,352,341]
[null,"3061",248,243,259]
[null,"3062",87,88,82]
[null,"3063",85,79,78]
[null,"3064",25,24,31]
[null,"3065",132,130,133]
[null,"3066",177,150,206]
[null,"3067",346,434,441]
[null,"3068",352,413,398]
[null,"3069",282,309,315]
[null,"3071",310,372,348]
[null,"3072",275,289,260]
[null,"3073",243,268,320]
[null,"3074",246,277,265]
[null,"3075",146,160,184]
[null,"3076",197,218,233]
[null,"3077",330,338,318]
[null,"3078",190,188,187]
[null,"3079",223,214,239]
[null,"3081",259,280,270]
[null,"3082",195,185,188]
[null,"3083",200,228,213]
[null,"3084",18,19,20]
[null,"3085",184,231,216]
[null,"3086",269,312,339]
[null,"3087",34,39,35]
[null,"3089",17,18,16]
[null,"3111",52,63,61]
[null,"3112",191,217,215]
[null,"3114",89,91,75]
[null,"3116",36,35,41]
[null,"3117",130,118,150]
[null,"3118",101,108,101]
[null,"3119",172,176,176]
[null,"3121",40,31,34]
[null,"3122",198,216,220]
[null,"3123",94,84,90]
[null,"3124",93,83,75]
[null,"3125","Minder dan 10 patiënten","Minder dan 10 patiënten","Minder dan 10 patiënten"]
[null,"3131",332,340,321]
[null,"3132",222,244,308]
[null,"3133","Minder dan 10 patiënten","Minder dan 10 patiënten","Minder dan 10 patiënten"]
[null,"3134",129,151,163]
[null,"3135",294,329,365]
[null,"3136",157,177,192]
[null,"3137",260,248,236]
[null,"3141",129,146,155]
[null,"3142",101,93,111]
[null,"3143",35,31,30]
[null,"3144",116,114,133]
[null,"3145",121,111,103]
[null,"3146",74,63,68]
[null,"3147","Minder dan 10 patiënten","Minder dan 10 patiënten","Minder dan 10 patiënten"]
[null,"3151",140,136,153]
[null,"3155",96,72,64]
[null,"3161",120,127,143]
[null,"3162",178,178,178]
[null,"3170",null,"Minder dan 10 patiënten","Minder dan 10 patiënten"]
[null,"3171",100,116,105]
[null,"3172","Minder dan 10 patiënten",10,"Minder dan 10 patiënten"]
[null,"3176",39,36,37]
[null,"3181",222,217,244]
[null,"3191",95,104,105]
[null,"3192",148,190,188]
[null,"3193",86,85,92]
[null,"3194",103,128,156]
[null,"3195",41,64,68]
[null,"3201",151,178,189]
[null,"3202",94,104,89]
[null,"3203",44,53,52]
[null,"3204",128,123,113]
[null,"3205",136,159,156]
[null,"3206",179,186,190]
[null,"3207",216,202,214]
[null,"3208",73,62,66]
[null,"3209",12,16,17]
[null,"3211",21,24,15]
[null,"3212","Minder dan 10 patiënten","Minder dan 10 patiënten","Minder dan 10 patiënten"]
[null,"3214",57,87,96]
[null,"3216",17,18,11]
[null,"3218",26,40,44]
[null,"3221",82,93,91]
[null,"3222",92,108,106]
[null,"3223",240,229,245]
[null,"3224",208,204,218]
[null,"3225",200,207,215]
[null,"3227",21,26,25]
[null,"3231",54,57,52]
[null,"3232",134,173,203]
[null,"3233",81,89,67]
[null,"3234","Minder dan 10 patiënten","Minder dan 10 patiënten","Minder dan 10 patiënten"]
[null,"3235",72,80,79]
[null,"3237",26,29,34]
[null,"3238",21,25,36]
[null,"3241",114,124,132]
[null,"3243",15,22,21]
[null,"3244",30,34,41]
[null,"3245",132,138,126]
[null,"3247",97,101,101]
[null,"3248",23,28,26]
[null,"3249","Minder dan 10 patiënten",12,13]
[null,"3251",80,76,70]
[null,"3252",21,31,43]
[null,"3253",97,103,126]
[null,"3255",62,88,108]
[null,"3256",16,21,17]
[null,"3257",40,51,40]
[null,"3258",22,22,18]
[null,"3260","Minder dan 10 patiënten","Minder dan 10 patiënten"]
[null,"3261",147,165,194]
[null,"3262",117,150,181]
[null,"3263",75,67,75]
[null,"3264",66,64,80]
[null,"3265",16,21,25]
[null,"3267",20,26,33]
[null,"3271",56,62,79]
[null,"3273",30,27,29]
[null,"3274",39,51,59]
[null,"3281",145,138,153]
[null,"3284",27,35,63]
[null,"3286",43,64,57]
[null,"3291",125,113,108]
[null,"3292","Minder dan 10 patiënten","Minder dan 10 patiënten","Minder dan 10 patiënten"]
[null,"3293","Minder dan 10 patiënten","Minder dan 10 patiënten","Minder dan 10 patiënten"]
[null,"3295",150,166,155]
[null,"3297",88,88,103]
[null,"3299",66,77,74]
[null,"3300","Minder dan 10 patiënten","Minder dan 10 patiënten","Minder dan 10 patiënten"]
[null,"3311",307,323,317]
[null,"3312",230,235,214]
[null,"3313",102,117,94]
[null,"3314",352,437,414]
[null,"3315",317,350,361]
[null,"3316",14,15,17]
[null,"3317",388,415,374]
[null,"3318",85,86,86]
[null,"3319",129,136,145]
[null,"3328",219,233,250]
[null,"3329",35,25,36]
[null,"3330","Minder dan 10 patiënten",null,"Minder dan 10 patiënten"]
[null,"3331",267,247,230]
[null,"3332",151,160,156]
[null,"3333",173,160,144]
[null,"3334",129,144,136]
[null,"3335",124,115,115]
[null,"3336",null,null,"Minder dan 10 patiënten"]
[null,"3341",107,123,127]
[null,"3342",85,100,108]
[null,"3343",84,114,122]
[null,"3344",192,213,227]
[null,"3350",null,null,"Minder dan 10 patiënten"]
[null,"3351",109,128,159]
[null,"3352",50,42,46]
[null,"3353",76,83,76]
[null,"3354",34,31,33]
[null,"3355",89,99,87]
[null,"3356",80,108,88]
[null,"3360","Minder dan 10 patiënten"]
[null,"3361",96,98,81]
[null,"3362",137,144,146]
[null,"3363",85,92,92]
[null,"3364","Minder dan 10 patiënten","Minder dan 10 patiënten","Minder dan 10 patiënten"]
[null,"3366","Minder dan 10 patiënten","Minder dan 10 patiënten","Minder dan 10 patiënten"]
[null,"3371",172,172,162]
[null,"3372",46,53,49]
[null,"3373",16,29,27]
[null,"3381",57,54,55]
[null,"3401",165,186,199]
[null,"3402",146,161,163]
[null,"3403",24,23,24]
[null,"3404",151,167,152]
[null,"3405",38,47,46]
[null,"3411",99,115,130]
[null,"3412",14,18,20]
[null,"3413","Minder dan 10 patiënten","Minder dan 10 patiënten","Minder dan 10 patiënten"]
[null,"3415",27,18,19]
[null,"3417",145,138,127]
[null,"3421",107,116,127]
[null,"3425","Minder dan 10 patiënten",10,"Minder dan 10 patiënten"]
[null,"3431",103,101,121]
[null,"3432",100,109,118]
[null,"3433",43,47,39]
[null,"3434",88,106,118]
[null,"3435",66,64,87]
[null,"3436",91,113,110]
[null,"3437",190,176,188]
[null,"3438",140,131,128]
[null,"3439","Minder dan 10 patiënten","Minder dan 10 patiënten"]
[null,"3441",14,12,16]
[null,"3442",64,71,60]
[null,"3443",74,81,94]
[null,"3444","Minder dan 10 patiënten","Minder dan 10 patiënten","Minder dan 10 patiënten"]
[null,"3445",64,68,53]
[null,"3446",116,138,118]
[null,"3447",null,null,"Minder dan 10 patiënten"]
[null,"3448",143,120,114]
[null,"3449","Minder dan 10 patiënten","Minder dan 10 patiënten","Minder dan 10 patiënten"]
[null,"3451",142,141,167]
[null,"3452",340,361,354]
[null,"3453",181,168,153]
[null,"3454",133,160,178]
[null,"3455","Minder dan 10 patiënten","Minder dan 10 patiënten","Minder dan 10 patiënten"]
[null,"3461",64,67,62]
[null,"3464","Minder dan 10 patiënten","Minder dan 10 patiënten","Minder dan 10 patiënten"]
[null,"3465",11,19,23]
[null,"3466","Minder dan 10 patiënten",17,17]
[null,"3467",14,12,13]
[null,"3471",52,42,39]
[null,"3474",44,44,41]
[null,"3481",92,106,96]
[null,"3500","Minder dan 10 patiënten","Minder dan 10 patiënten","Minder dan 10 patiënten"]
[null,"3511",61,57,54]
[null,"3512",54,66,55]
[null,"3513",56,55,62]
[null,"3514",85,88,79]
[null,"3515",74,96,84]
[null,"3521",72,81,88]
[null,"3522",97,116,103]
[null,"3523",109,113,112]
[null,"3524",155,159,164]
[null,"3525",112,113,106]
[null,"3526",300,297,350]
[null,"3527",335,330,317]
[null,"3531",153,155,149]
[null,"3532",107,120,116]
[null,"3533",159,171,161]
[null,"3534",20,28,20]
[null,"3541",43,65,100]
[null,"3542","Minder dan 10 patiënten","Minder dan 10 patiënten","Minder dan 10 patiënten"]
[null,"3543",206,218,206]
[null,"3544",407,415,422]
[null,"3545","Minder dan 10 patiënten","Minder dan 10 patiënten","Minder dan 10 patiënten"]
[null,"3546",null,"Minder dan 10 patiënten","Minder dan 10 patiënten"]
[null,"3551",73,61,72]
[null,"3552",91,99,102]
[null,"3553",94,81,78]
[null,"3554",108,122,151]
[null,"3555",145,145,159]
[null,"3561",223,224,237]
[null,"3562",207,208,198]
[null,"3563",190,184,188]
[null,"3564",342,376,344]
[null,"3565",null,null,"Minder dan 10 patiënten"]
[null,"3566","Minder dan 10 patiënten","Minder dan 10 patiënten","Minder dan 10 patiënten"]
[null,"3571",114,117,117]
[null,"3572",134,144,133]
[null,"3573",47,54,56]
[null,"3581",118,90,107]
[null,"3582",72,66,68]
[null,"3583",76,78,72]
[null,"3584",36,50,38]
[null,"3585","Minder dan 10 patiënten","Minder dan 10 patiënten","Minder dan 10 patiënten"]
[null,"3601",85,79,107]
[null,"3602",39,46,42]
[null,"3603",31,37,41]
[null,"3604",29,36,44]
[null,"3605",84,89,108]
[null,"3606",null,null,"Minder dan 10 patiënten"]
[null,"3607",182,216,231]
[null,"3608",52,45,43]
[null,"3611","Minder dan 10 patiënten","Minder dan 10 patiënten","Minder dan 10 patiënten"]
[null,"3612",16,16,21]
[null,"3615",10,13,"Minder dan 10 patiënten"]
[null,"3621",169,137,139]
[null,"3625","Minder dan 10 patiënten","Minder dan 10 patiënten","Minder dan 10 patiënten"]
[null,"3626","Minder dan 10 patiënten","Minder dan 10 patiënten","Minder dan 10 patiënten"]
[null,"3628",69,57,48]
[null,"3631","Minder dan 10 patiënten","Minder dan 10 patiënten","Minder dan 10 patiënten"]
[null,"3632",61,65,63]
[null,"3633",20,15,19]
[null,"3634","Minder dan 10 patiënten","Minder dan 10 patiënten","Minder dan 10 patiënten"]
[null,"3641",90,83,101]
[null,"3642",33,30,28]
[null,"3643",13,"Minder dan 10 patiënten","Minder dan 10 patiënten"]
[null,"3645",78,75,78]
[null,"3646","Minder dan 10 patiënten","Minder dan 10 patiënten","Minder dan 10 patiënten"]
[null,"3648",48,42,42]
[null,"3651","Minder dan 10 patiënten","Minder dan 10 patiënten","Minder dan 10 patiënten"]
[null,"3652","Minder dan 10 patiënten","Minder dan 10 patiënten","Minder dan 10 patiënten"]
[null,"3701",63,65,55]
[null,"3702",42,61,56]
[null,"3703",86,79,67]
[null,"3704",108,115,120]
[null,"3705",111,119,109]
[null,"3706",86,106,124]
[null,"3707",85,78,77]
[null,"3708",86,110,95]
[null,"3709","Minder dan 10 patiënten","Minder dan 10 patiënten","Minder dan 10 patiënten"]
[null,"3711",11,14,18]
[null,"3712",19,18,28]
[null,"3721",167,166,156]
[null,"3722",58,74,76]
[null,"3723",150,157,145]
[null,"3731",75,93,90]
[null,"3732",65,66,59]
[null,"3734",44,48,40]
[null,"3735",21,18,16]
[null,"3737",26,19,15]
[null,"3738",73,56,61]
[null,"3739",23,17,17]
[null,"3741",123,116,105]
[null,"3742",126,128,128]
[null,"3743",40,39,39]
[null,"3744","Minder dan 10 patiënten","Minder dan 10 patiënten",11]
[null,"3749","Minder dan 10 patiënten","Minder dan 10 patiënten","Minder dan 10 patiënten"]
[null,"3751",137,132,114]
[null,"3752",197,187,182]
[null,"3754",18,18,13]
[null,"3755",98,89,108]
[null,"3761",53,51,53]
[null,"3762",113,134,146]
[null,"3763",53,51,57]
[null,"3764",103,114,129]
[null,"3765",120,139,154]
[null,"3766",88,84,98]
[null,"3768",70,65,76]
[null,"3769",115,100,110]
[null,"3771",108,155,157]
[null,"3772",267,294,302]
[null,"3773",36,43,45]
[null,"3774",71,68,76]
[null,"3775",null,null,"Minder dan 10 patiënten"]
[null,"3776",33,34,33]
[null,"3781",104,117,97]
[null,"3784",17,18,16]
[null,"3785",18,10,12]
[null,"3791",30,36,32]
[null,"3792","Minder dan 10 patiënten","Minder dan 10 patiënten","Minder dan 10 patiënten"]
[null,"3794","Minder dan 10 patiënten","Minder dan 10 patiënten",10]
[null,"3811",60,60,52]
[null,"3812",188,190,176]
[null,"3813",279,262,317]
[null,"3814",154,145,137]
[null,"3815",224,221,241]
[null,"3816",199,200,232]
[null,"3817",176,183,155]
[null,"3818",117,132,141]
[null,"3819","Minder dan 10 patiënten","Minder dan 10 patiënten","Minder dan 10 patiënten"]
[null,"3821","Minder dan 10 patiënten","Minder dan 10 patiënten","Minder dan 10 patiënten"]
[null,"3822",120,134,132]
[null,"3823",202,205,184]
[null,"3824",287,260,265]
[null,"3825",303,349,401]
[null,"3826",163,177,178]
[null,"3828",144,144,143]
[null,"3829",94,86,112]
[null,"3831",168,164,169]
[null,"3832",85,85,102]
[null,"3833",79,95,104]
[null,"3834",20,25,30]
[null,"3835","Minder dan 10 patiënten","Minder dan 10 patiënten","Minder dan 10 patiënten"]
[null,"3836","Minder dan 10 patiënten","Minder dan 10 patiënten","Minder dan 10 patiënten"]
[null,"3841",49,57,48]
[null,"3842",112,113,110]
[null,"3843",106,98,96]
[null,"3844",156,150,154]
[null,"3845",149,140,155]
[null,"3846","Minder dan 10 patiënten","Minder dan 10 patiënten","Minder dan 10 patiënten"]
[null,"3847","Minder dan 10 patiënten","Minder dan 10 patiënten","Minder dan 10 patiënten"]
[null,"3848",59,58,63]
[null,"3849",36,39,31]
[null,"3851",137,154,164]
[null,"3852",68,84,72]
[null,"3853",132,137,159]
[null,"3861",77,99,106]
[null,"3862",145,156,182]
[null,"3863",106,138,135]
[null,"3864",33,50,44]
[null,"3871",155,153,145]
[null,"3881",181,202,228]
[null,"3882",277,296,337]
[null,"3886",19,31,43]
[null,"3888",36,38,44]
[null,"3891",46,48,69]
[null,"3892",62,65,73]
[null,"3893",78,83,88]
[null,"3894",42,49,58]
[null,"3896","Minder dan 10 patiënten","Minder dan 10 patiënten","Minder dan 10 patiënten"]
[null,"3897","Minder dan 10 patiënten",10,12]
[null,"3898","Minder dan 10 patiënten","Minder dan 10 patiënten","Minder dan 10 patiënten"]
[null,"3899","Minder dan 10 patiënten","Minder dan 10 patiënten","Minder dan 10 patiënten"]
[null,"3901",150,161,156]
[null,"3902",172,180,183]
[null,"3903",66,74,94]
[null,"3904",170,185,180]
[null,"3905",211,195,205]
[null,"3906",68,86,74]
[null,"3907",46,44,58]
[null,"3911",232,220,217]
[null,"3912","Minder dan 10 patiënten","Minder dan 10 patiënten","Minder dan 10 patiënten"]
[null,"3921",59,67,61]
[null,"3922","Minder dan 10 patiënten","Minder dan 10 patiënten","Minder dan 10 patiënten"]
[null,"3925",133,144,151]
[null,"3927",96,107,94]
[null,"3931",262,286,307]
[null,"3941",208,186,169]
[null,"3945",48,45,49]
[null,"3947",47,54,47]
[null,"3951",59,64,61]
[null,"3953",14,"Minder dan 10 patiënten",16]
[null,"3956",121,114,131]
[null,"3958",84,90,82]
[null,"3959",15,17,15]
[null,"3961",126,105,107]
[null,"3962",112,119,101]
[null,"3971",87,95,100]
[null,"3972",177,182,180]
[null,"3981",77,89,94]
[null,"3984",75,65,63]
[null,"3985",32,29,38]
[null,"3991",285,304,329]
[null,"3992",75,81,86]
[null,"3993",72,77,90]
[null,"3994",175,241,216]
[null,"3995",43,49,62]
[null,"3997","Minder dan 10 patiënten","Minder dan 10 patiënten","Minder dan 10 patiënten"]
[null,"3998",26,27,29]
[null,"3999","Minder dan 10 patiënten","Minder dan 10 patiënten","Minder dan 10 patiënten"]
[null,"4001",167,161,174]
[null,"4002",34,27,36]
[null,"4003",114,113,96]
[null,"4004","Minder dan 10 patiënten","Minder dan 10 patiënten","Minder dan 10 patiënten"]
[null,"4005",130,121,126]
[null,"4006",90,76,80]
[null,"4007",155,167,158]
[null,"4011",13,21,16]
[null,"4012",15,13,16]
[null,"4013","Minder dan 10 patiënten","Minder dan 10 patiënten",12]
[null,"4014",15,21,22]
[null,"4016","Minder dan 10 patiënten","Minder dan 10 patiënten","Minder dan 10 patiënten"]
[null,"4017","Minder dan 10 patiënten","Minder dan 10 patiënten"]
[null,"4021",68,74,58]
[null,"4023","Minder dan 10 patiënten","Minder dan 10 patiënten","Minder dan 10 patiënten"]
[null,"4024",17,21,25]
[null,"4031",13,15,18]
[null,"4032","Minder dan 10 patiënten","Minder dan 10 patiënten","Minder dan 10 patiënten"]
[null,"4033",50,63,69]
[null,"4041",94,88,99]
[null,"4043",112,121,112]
[null,"4051",70,72,74]
[null,"4053",15,17,17]
[null,"4054","Minder dan 10 patiënten","Minder dan 10 patiënten","Minder dan 10 patiënten"]
[null,"4061",24,20,16]
[null,"4062","Minder dan 10 patiënten","Minder dan 10 patiënten","Minder dan 10 patiënten"]
[null,"4063","Minder dan 10 patiënten","Minder dan 10 patiënten","Minder dan 10 patiënten"]
[null,"4064","Minder dan 10 patiënten",10,12]
[null,"4101",114,111,99]
[null,"4102",142,149,162]
[null,"4103",23,14,18]
[null,"4104",null,"Minder dan 10 patiënten","Minder dan 10 patiënten"]
[null,"4105",169,150,162]
[null,"4106","Minder dan 10 patiënten","Minder dan 10 patiënten","Minder dan 10 patiënten"]
[null,"4107","Minder dan 10 patiënten",10,"Minder dan 10 patiënten"]
[null,"4111",11,"Minder dan 10 patiënten","Minder dan 10 patiënten"]
[null,"4112",40,53,52]
[null,"4115","Minder dan 10 patiënten","Minder dan 10 patiënten","Minder dan 10 patiënten"]
[null,"4116",35,42,41]
[null,"4117",11,"Minder dan 10 patiënten","Minder dan 10 patiënten"]
[null,"4119","Minder dan 10 patiënten","Minder dan 10 patiënten","Minder dan 10 patiënten"]
[null,"4121",33,16,23]
[null,"4122",11,11,"Minder dan 10 patiënten"]
[null,"4124",13,19,13]
[null,"4125",null,null,"Minder dan 10 patiënten"]
[null,"4126",13,10,11]
[null,"4128",44,40,48]
[null,"4131",109,91,88]
[null,"4132",69,74,62]
[null,"4133",118,125,109]
[null,"4141",59,48,48]
[null,"4142",105,94,100]
[null,"4143",85,77,70]
[null,"4145",18,17,19]
[null,"4147",29,30,29]
[null,"4151","Minder dan 10 patiënten","Minder dan 10 patiënten","Minder dan 10 patiënten"]
[null,"4152","Minder dan 10 patiënten","Minder dan 10 patiënten",11]
[null,"4153",49,52,50]
[null,"4155","Minder dan 10 patiënten","Minder dan 10 patiënten","Minder dan 10 patiënten"]
[null,"4156",11,"Minder dan 10 patiënten","Minder dan 10 patiënten"]
[null,"4157","Minder dan 10 patiënten","Minder dan 10 patiënten","Minder dan 10 patiënten"]
[null,"4158",32,27,23]
[null,"4161",20,21,12]
[null,"4163","Minder dan 10 patiënten","Minder dan 10 patiënten","Minder dan 10 patiënten"]
[null,"4171",30,43,42]
[null,"4174",15,14,18]
[null,"4175",46,43,55]
[null,"4176","Minder dan 10 patiënten",14,21]
[null,"4181",44,52,53]
[null,"4182","Minder dan 10 patiënten","Minder dan 10 patiënten",15]
[null,"4184",18,22,30]
[null,"4185","Minder dan 10 patiënten","Minder dan 10 patiënten","Minder dan 10 patiënten"]
[null,"4191",146,171,193]
[null,"4194",54,56,54]
[null,"4196",25,25,25]
[null,"4197",18,17,22]
[null,"4201",53,51,49]
[null,"4202","Minder dan 10 patiënten","Minder dan 10 patiënten","Minder dan 10 patiënten"]
[null,"4203","Minder dan 10 patiënten","Minder dan 10 patiënten","Minder dan 10 patiënten"]
[null,"4204",71,83,79]
[null,"4205",159,182,176]
[null,"4206",29,39,41]
[null,"4207",139,146,126]
[null,"4208",17,26,33]
[null,"4209",14,16,14]
[null,"4211","Minder dan 10 patiënten","Minder dan 10 patiënten","Minder dan 10 patiënten"]
[null,"4212","Minder dan 10 patiënten","Minder dan 10 patiënten","Minder dan 10 patiënten"]
[null,"4213","Minder dan 10 patiënten","Minder dan 10 patiënten",11]
[null,"4214",21,29,25]
[null,"4221",17,16,21]
[null,"4223",34,29,24]
[null,"4225",26,24,16]
[null,"4231",39,35,35]
[null,"4233",27,25,20]
[null,"4235","Minder dan 10 patiënten","Minder dan 10 patiënten","Minder dan 10 patiënten"]
[null,"4241",38,41,38]
[null,"4243",24,20,15]
[null,"4245",23,17,16]
[null,"4247",13,11,10]
[null,"4251",163,166,153]
[null,"4254",74,76,74]
[null,"4255",48,47,47]
[null,"4261",112,118,111]
[null,"4264",27,35,30]
[null,"4265",14,17,20]
[null,"4266",11,10,12]
[null,"4267","Minder dan 10 patiënten","Minder dan 10 patiënten","Minder dan 10 patiënten"]
[null,"4268",10,15,12]
[null,"4269","Minder dan 10 patiënten",10,"Minder dan 10 patiënten"]
[null,"4271",30,37,38]
[null,"4273",51,50,39]
[null,"4281",43,36,26]
[null,"4283",39,29,34]
[null,"4284",33,28,26]
[null,"4285",56,66,62]
[null,"4286",65,51,58]
[null,"4287","Minder dan 10 patiënten","Minder dan 10 patiënten","Minder dan 10 patiënten"]
[null,"4288","Minder dan 10 patiënten","Minder dan 10 patiënten","Minder dan 10 patiënten"]
[null,"4301",174,199,174]
[null,"4302",15,20,27]
[null,"4303",17,22,28]
[null,"4305",12,13,"Minder dan 10 patiënten"]
[null,"4306",49,48,48]
[null,"4307",48,47,46]
[null,"4308","Minder dan 10 patiënten","Minder dan 10 patiënten","Minder dan 10 patiënten"]
[null,"4311",117,118,124]
[null,"4315",14,21,14]
[null,"4316",19,21,18]
[null,"4317","Minder dan 10 patiënten","Minder dan 10 patiënten",10]
[null,"4318",19,19,13]
[null,"4321",15,15,12]
[null,"4322",23,17,15]
[null,"4323","Minder dan 10 patiënten","Minder dan 10 patiënten","Minder dan 10 patiënten"]
[null,"4325",21,19,18]
[null,"4326","Minder dan 10 patiënten","Minder dan 10 patiënten","Minder dan 10 patiënten"]
[null,"4327","Minder dan 10 patiënten","Minder dan 10 patiënten","Minder dan 10 patiënten"]
[null,"4328",56,58,47]
[null,"4330",11,11,10]
[null,"4331",49,50,44]
[null,"4332",58,67,69]
[null,"4333",51,56,42]
[null,"4334",29,41,50]
[null,"4335",75,73,77]
[null,"4336",106,106,88]
[null,"4337",136,129,135]
[null,"4338",null,"Minder dan 10 patiënten"]
[null,"4339",19,20,20]
[null,"4341",84,76,79]
[null,"4351",20,17,21]
[null,"4352","Minder dan 10 patiënten","Minder dan 10 patiënten","Minder dan 10 patiënten"]
[null,"4353",23,20,25]
[null,"4354",10,12,10]
[null,"4356",17,21,29]
[null,"4357",17,17,10]
[null,"4361",18,17,12]
[null,"4363",21,25,23]
[null,"4364",11,14,13]
[null,"4365",15,13,16]
[null,"4371",36,28,37]
[null,"4373","Minder dan 10 patiënten","Minder dan 10 patiënten","Minder dan 10 patiënten"]
[null,"4374",14,13,13]
[null,"4381",45,42,36]
[null,"4382",89,103,126]
[null,"4383",37,47,44]
[null,"4384",43,59,51]
[null,"4385",55,60,61]
[null,"4386",28,42,49]
[null,"4387","Minder dan 10 patiënten","Minder dan 10 patiënten","Minder dan 10 patiënten"]
[null,"4388",100,106,89]
[null,"4389","Minder dan 10 patiënten","Minder dan 10 patiënten","Minder dan 10 patiënten"]
[null,"4401",79,91,99]
[null,"4411",63,61,55]
[null,"4413",57,69,63]
[null,"4414",20,15,20]
[null,"4415","Minder dan 10 patiënten",11,15]
[null,"4416",72,68,77]
[null,"4417",29,30,38]
[null,"4421",128,131,155]
[null,"4423","Minder dan 10 patiënten","Minder dan 10 patiënten",10]
[null,"4424",26,34,34]
[null,"4431",69,67,63]
[null,"4433","Minder dan 10 patiënten","Minder dan 10 patiënten","Minder dan 10 patiënten"]
[null,"4434","Minder dan 10 patiënten",10,"Minder dan 10 patiënten"]
[null,"4435","Minder dan 10 patiënten","Minder dan 10 patiënten","Minder dan 10 patiënten"]
[null,"4436","Minder dan 10 patiënten","Minder dan 10 patiënten","Minder dan 10 patiënten"]
[null,"4437","Minder dan 10 patiënten","Minder dan 10 patiënten","Minder dan 10 patiënten"]
[null,"4438","Minder dan 10 patiënten","Minder dan 10 patiënten","Minder dan 10 patiënten"]
[null,"4441",13,12,17]
[null,"4443","Minder dan 10 patiënten","Minder dan 10 patiënten","Minder dan 10 patiënten"]
[null,"4444","Minder dan 10 patiënten","Minder dan 10 patiënten","Minder dan 10 patiënten"]
[null,"4451",47,54,57]
[null,"4453",29,29,27]
[null,"4454",28,22,18]
[null,"4455",10,12,12]
[null,"4456",18,16,19]
[null,"4458",13,15,15]
[null,"4460",null,null,"Minder dan 10 patiënten"]
[null,"4461",118,133,144]
[null,"4462",85,88,92]
[null,"4463",139,140,158]
[null,"4464",27,38,39]
[null,"4465","Minder dan 10 patiënten",10,"Minder dan 10 patiënten"]
[null,"4471",17,19,19]
[null,"4472","Minder dan 10 patiënten","Minder dan 10 patiënten","Minder dan 10 patiënten"]
[null,"4474","Minder dan 10 patiënten","Minder dan 10 patiënten","Minder dan 10 patiënten"]
[null,"4475",10,"Minder dan 10 patiënten","Minder dan 10 patiënten"]
[null,"4481",28,34,37]
[null,"4484",19,21,21]
[null,"4485","Minder dan 10 patiënten","Minder dan 10 patiënten","Minder dan 10 patiënten"]
[null,"4486",12,15,17]
[null,"4491",11,14,12]
[null,"4493",39,40,28]
[null,"4494","Minder dan 10 patiënten","Minder dan 10 patiënten","Minder dan 10 patiënten"]
[null,"4501",52,55,46]
[null,"4503",11,13,"Minder dan 10 patiënten"]
[null,"4504","Minder dan 10 patiënten","Minder dan 10 patiënten","Minder dan 10 patiënten"]
[null,"4505","Minder dan 10 patiënten","Minder dan 10 patiënten","Minder dan 10 patiënten"]
[null,"4506","Minder dan 10 patiënten"]
[null,"4507",19,17,14]
[null,"4508","Minder dan 10 patiënten","Minder dan 10 patiënten","Minder dan 10 patiënten"]
[null,"4511",45,49,56]
[null,"4513","Minder dan 10 patiënten","Minder dan 10 patiënten","Minder dan 10 patiënten"]
[null,"4515",30,32,33]
[null,"4521",10,"Minder dan 10 patiënten",10]
[null,"4522","Minder dan 10 patiënten","Minder dan 10 patiënten","Minder dan 10 patiënten"]
[null,"4524",14,27,15]
[null,"4525","Minder dan 10 patiënten","Minder dan 10 patiënten","Minder dan 10 patiënten"]
[null,"4527",30,22,"Minder dan 10 patiënten"]
[null,"4528","Minder dan 10 patiënten","Minder dan 10 patiënten","Minder dan 10 patiënten"]
[null,"4529","Minder dan 10 patiënten","Minder dan 10 patiënten","Minder dan 10 patiënten"]
[null,"4531",12,11,21]
[null,"4532",53,73,72]
[null,"4533",38,41,42]
[null,"4535",39,48,47]
[null,"4536",27,44,45]
[null,"4537",57,57,50]
[null,"4538","Minder dan 10 patiënten","Minder dan 10 patiënten","Minder dan 10 patiënten"]
[null,"4539","Minder dan 10 patiënten","Minder dan 10 patiënten"]
[null,"4541",28,35,38]
[null,"4542",18,18,19]
[null,"4543",22,28,30]
[null,"4551",54,47,38]
[null,"4553",10,12,11]
[null,"4554",15,16,22]
[null,"4561",95,115,105]
[null,"4562",12,"Minder dan 10 patiënten",12]
[null,"4564",23,29,28]
[null,"4565","Minder dan 10 patiënten","Minder dan 10 patiënten","Minder dan 10 patiënten"]
[null,"4566","Minder dan 10 patiënten","Minder dan 10 patiënten",12]
[null,"4567",22,44,41]
[null,"4568","Minder dan 10 patiënten","Minder dan 10 patiënten","Minder dan 10 patiënten"]
[null,"4569",14,12,"Minder dan 10 patiënten"]
[null,"4571",98,114,120]
[null,"4574","Minder dan 10 patiënten","Minder dan 10 patiënten",12]
[null,"4575","Minder dan 10 patiënten","Minder dan 10 patiënten","Minder dan 10 patiënten"]
[null,"4576",29,34,41]
[null,"4581",12,19,21]
[null,"4583","Minder dan 10 patiënten","Minder dan 10 patiënten","Minder dan 10 patiënten"]
[null,"4584","Minder dan 10 patiënten","Minder dan 10 patiënten","Minder dan 10 patiënten"]
[null,"4585","Minder dan 10 patiënten","Minder dan 10 patiënten","Minder dan 10 patiënten"]
[null,"4586","Minder dan 10 patiënten","Minder dan 10 patiënten","Minder dan 10 patiënten"]
[null,"4587",24,32,45]
[null,"4588","Minder dan 10 patiënten","Minder dan 10 patiënten","Minder dan 10 patiënten"]
[null,"4589","Minder dan 10 patiënten","Minder dan 10 patiënten","Minder dan 10 patiënten"]
[null,"4611",78,85,92]
[null,"4612",null,"Minder dan 10 patiënten","Minder dan 10 patiënten"]
[null,"4613",59,67,66]
[null,"4614",89,92,116]
[null,"4615",87,99,94]
[null,"4616","Minder dan 10 patiënten","Minder dan 10 patiënten",12]
[null,"4617",94,120,114]
[null,"4621",117,160,136]
[null,"4622","Minder dan 10 patiënten","Minder dan 10 patiënten","Minder dan 10 patiënten"]
[null,"4623",81,98,94]
[null,"4624",117,125,144]
[null,"4625",56,48,51]
[null,"4631",146,158,140]
[null,"4634",22,29,20]
[null,"4635",24,30,38]
[null,"4641",56,70,75]
[null,"4645",38,29,33]
[null,"4651",142,147,158]
[null,"4652","Minder dan 10 patiënten","Minder dan 10 patiënten","Minder dan 10 patiënten"]
[null,"4655",10,10,"Minder dan 10 patiënten"]
[null,"4661",148,159,207]
[null,"4664",14,13,14]
[null,"4671",66,68,65]
[null,"4675",25,41,41]
[null,"4681",42,34,26]
[null,"4691",112,101,113]
[null,"4693",25,21,30]
[null,"4694",27,27,27]
[null,"4695",19,33,51]
[null,"4696",18,22,28]
[null,"4697",51,36,39]
[null,"4698",45,41,41]
[null,"4700","Minder dan 10 patiënten"]
[null,"4701",68,85,84]
[null,"4702",213,292,291]
[null,"4703",173,169,179]
[null,"4704",null,"Minder dan 10 patiënten","Minder dan 10 patiënten"]
[null,"4705","Minder dan 10 patiënten",null,"Minder dan 10 patiënten"]
[null,"4706",217,219,236]
[null,"4707",285,301,356]
[null,"4708",190,194,197]
[null,"4709",22,11,14]
[null,"4711",124,129,133]
[null,"4714",67,80,76]
[null,"4715",61,52,53]
[null,"4721",19,20,15]
[null,"4722","Minder dan 10 patiënten","Minder dan 10 patiënten","Minder dan 10 patiënten"]
[null,"4724",86,78,83]
[null,"4725",19,19,13]
[null,"4726",24,25,24]
[null,"4727",11,11,14]
[null,"4731",169,197,236]
[null,"4735",27,25,36]
[null,"4741",79,76,86]
[null,"4744",31,28,29]
[null,"4751",82,75,79]
[null,"4754",14,15,19]
[null,"4756",19,29,22]
[null,"4758",30,27,26]
[null,"4759","Minder dan 10 patiënten","Minder dan 10 patiënten","Minder dan 10 patiënten"]
[null,"4761",177,193,185]
[null,"4762",10,13,17]
[null,"4765",23,22,25]
[null,"4771","Minder dan 10 patiënten","Minder dan 10 patiënten","Minder dan 10 patiënten"]
[null,"4772","Minder dan 10 patiënten","Minder dan 10 patiënten","Minder dan 10 patiënten"]
[null,"4781","Minder dan 10 patiënten","Minder dan 10 patiënten","Minder dan 10 patiënten"]
[null,"4782","Minder dan 10 patiënten","Minder dan 10 patiënten","Minder dan 10 patiënten"]
[null,"4791",72,84,80]
[null,"4793",83,66,64]
[null,"4794",12,12,11]
[null,"4796","Minder dan 10 patiënten","Minder dan 10 patiënten","Minder dan 10 patiënten"]
[null,"4797",31,29,41]
[null,"4811",139,142,126]
[null,"4812",169,160,147]
[null,"4813",111,117,125]
[null,"4814",173,162,159]
[null,"4815",56,56,49]
[null,"4816",83,87,88]
[null,"4817",242,248,238]
[null,"4818",116,117,82]
[null,"4819",56,68,46]
[null,"4822",123,136,135]
[null,"4823",125,117,102]
[null,"4824",162,162,134]
[null,"4825","Minder dan 10 patiënten","Minder dan 10 patiënten","Minder dan 10 patiënten"]
[null,"4826",187,196,203]
[null,"4827",180,176,161]
[null,"4834",146,177,158]
[null,"4835",94,99,95]
[null,"4836","Minder dan 10 patiënten","Minder dan 10 patiënten","Minder dan 10 patiënten"]
[null,"4837",25,31,29]
[null,"4838",16,10,10]
[null,"4839","Minder dan 10 patiënten","Minder dan 10 patiënten","Minder dan 10 patiënten"]
[null,"4841",155,153,159]
[null,"4844",78,78,72]
[null,"4845",18,27,27]
[null,"4847",93,109,119]
[null,"4849",28,39,52]
[null,"4851",54,53,62]
[null,"4854",105,114,100]
[null,"4855",12,17,17]
[null,"4856","Minder dan 10 patiënten","Minder dan 10 patiënten","Minder dan 10 patiënten"]
[null,"4858","Minder dan 10 patiënten","Minder dan 10 patiënten","Minder dan 10 patiënten"]
[null,"4861",42,48,43]
[null,"4870",null,null,"Minder dan 10 patiënten"]
[null,"4871",249,239,216]
[null,"4872",120,120,123]
[null,"4873",73,80,69]
[null,"4874",42,34,41]
[null,"4875",21,27,29]
[null,"4876",117,109,86]
[null,"4879","Minder dan 10 patiënten","Minder dan 10 patiënten","Minder dan 10 patiënten"]
[null,"4881",91,89,97]
[null,"4882",21,20,19]
[null,"4884",32,20,18]
[null,"4885",12,14,15]
[null,"4891",77,75,65]
[null,"4901",140,185,177]
[null,"4902",150,158,149]
[null,"4903","Minder dan 10 patiënten","Minder dan 10 patiënten","Minder dan 10 patiënten"]
[null,"4904",194,210,219]
[null,"4905",18,11,11]
[null,"4906",54,56,62]
[null,"4907",157,148,136]
[null,"4908",34,43,44]
[null,"4909",15,10,13]
[null,"4911",20,21,18]
[null,"4921",140,168,152]
[null,"4924",10,12,"Minder dan 10 patiënten"]
[null,"4926",33,39,40]
[null,"4927",29,34,30]
[null,"4931",74,91,85]
[null,"4941",138,130,127]
[null,"4942",65,82,63]
[null,"4944",28,36,24]
[null,"5000","Minder dan 10 patiënten","Minder dan 10 patiënten","Minder dan 10 patiënten"]
[null,"5011",147,175,180]
[null,"5012",40,50,60]
[null,"5013","Minder dan 10 patiënten","Minder dan 10 patiënten","Minder dan 10 patiënten"]
[null,"5014",116,115,125]
[null,"5015","Minder dan 10 patiënten",10,"Minder dan 10 patiënten"]
[null,"5017",53,69,55]
[null,"5018",47,61,51]
[null,"5021",164,182,174]
[null,"5022",95,127,129]
[null,"5025",152,169,190]
[null,"5026","Minder dan 10 patiënten","Minder dan 10 patiënten","Minder dan 10 patiënten"]
[null,"5032",58,57,60]
[null,"5035",101,98,87]
[null,"5036",116,124,132]
[null,"5037",101,105,109]
[null,"5038",117,126,109]
[null,"5041",89,101,94]
[null,"5042",118,132,168]
[null,"5043",117,123,153]
[null,"5044",109,123,130]
[null,"5045",184,190,201]
[null,"5046",103,112,138]
[null,"5047",null,"Minder dan 10 patiënten","Minder dan 10 patiënten"]
[null,"5049",134,167,179]
[null,"5051",132,133,146]
[null,"5052",41,42,40]
[null,"5053",30,28,22]
[null,"5056",111,129,129]
[null,"5057","Minder dan 10 patiënten","Minder dan 10 patiënten","Minder dan 10 patiënten"]
[null,"5059","Minder dan 10 patiënten","Minder dan 10 patiënten","Minder dan 10 patiënten"]
[null,"5061",132,137,152]
[null,"5062",77,84,62]
[null,"5063",22,25,26]
[null,"5066",49,56,54]
[null,"5071",67,93,71]
[null,"5074","Minder dan 10 patiënten",10,14]
[null,"5076",58,50,56]
[null,"5081",117,127,134]
[null,"5084",12,17,20]
[null,"5085",13,13,17]
[null,"5087",31,40,46]
[null,"5089",10,"Minder dan 10 patiënten",10]
[null,"5091",51,58,76]
[null,"5094",22,26,13]
[null,"5095",18,12,15]
[null,"5096",15,11,14]
[null,"5101",75,72,70]
[null,"5102",105,101,99]
[null,"5103",132,119,136]
[null,"5104",98,90,94]
[null,"5105","Minder dan 10 patiënten","Minder dan 10 patiënten","Minder dan 10 patiënten"]
[null,"5106",17,21,17]
[null,"5109",25,26,34]
[null,"5110","Minder dan 10 patiënten","Minder dan 10 patiënten","Minder dan 10 patiënten"]
[null,"5111",55,52,53]
[null,"5113",11,15,"Minder dan 10 patiënten"]
[null,"5121",155,151,171]
[null,"5122",61,51,68]
[null,"5124",13,"Minder dan 10 patiënten",18]
[null,"5125","Minder dan 10 patiënten","Minder dan 10 patiënten","Minder dan 10 patiënten"]
[null,"5126",74,87,70]
[null,"5131",36,42,50]
[null,"5133",19,26,30]
[null,"5141",72,60,59]
[null,"5142",149,163,148]
[null,"5143",59,67,72]
[null,"5144",123,125,132]
[null,"5145",null,"Minder dan 10 patiënten","Minder dan 10 patiënten"]
[null,"5146",35,48,58]
[null,"5151",180,205,246]
[null,"5152",91,100,112]
[null,"5154",25,21,20]
[null,"5161",118,107,110]
[null,"5165",52,57,53]
[null,"5171",176,155,166]
[null,"5172",27,27,40]
[null,"5175",77,86,80]
[null,"5176","Minder dan 10 patiënten","Minder dan 10 patiënten","Minder dan 10 patiënten"]
[null,"5200","Minder dan 10 patiënten","Minder dan 10 patiënten","Minder dan 10 patiënten"]
[null,"5201",null,null,"Minder dan 10 patiënten"]
[null,"5211",100,106,114]
[null,"5212",86,96,83]
[null,"5213",140,170,158]
[null,"5215",65,74,76]
[null,"5216",91,110,102]
[null,"5221",86,90,83]
[null,"5223",155,168,158]
[null,"5224",165,191,190]
[null,"5231",230,253,234]
[null,"5232",14,18,16]
[null,"5233",152,174,174]
[null,"5234","Minder dan 10 patiënten","Minder dan 10 patiënten","Minder dan 10 patiënten"]
[null,"5235",118,120,124]
[null,"5236",110,112,129]
[null,"5237",165,179,163]
[null,"5241",93,100,115]
[null,"5242",61,70,64]
[null,"5243",33,27,33]
[null,"5244",35,40,39]
[null,"5245",76,90,98]
[null,"5246",80,86,103]
[null,"5247",169,177,168]
[null,"5248",15,19,15]
[null,"5249","Minder dan 10 patiënten","Minder dan 10 patiënten","Minder dan 10 patiënten"]
[null,"5251",167,182,169]
[null,"5252",45,46,35]
[null,"5253",24,22,22]
[null,"5254",39,53,36]
[null,"5256",75,98,93]
[null,"5258",136,142,172]
[null,"5261",97,101,99]
[null,"5262",225,219,243]
[null,"5263",59,70,88]
[null,"5266",10,"Minder dan 10 patiënten",10]
[null,"5268",48,54,56]
[null,"5271",159,154,139]
[null,"5272",31,26,22]
[null,"5275",45,43,46]
[null,"5281",77,85,96]
[null,"5282",135,144,130]
[null,"5283",240,248,244]
[null,"5291",25,17,12]
[null,"5292","Minder dan 10 patiënten","Minder dan 10 patiënten","Minder dan 10 patiënten"]
[null,"5293","Minder dan 10 patiënten",10,11]
[null,"5294","Minder dan 10 patiënten","Minder dan 10 patiënten","Minder dan 10 patiënten"]
[null,"5296",22,26,26]
[null,"5298",80,77,93]
[null,"5301",168,193,222]
[null,"5302",33,40,37]
[null,"5305",17,19,31]
[null,"5306",60,49,58]
[null,"5307",15,22,27]
[null,"5308",22,31,38]
[null,"5311",40,44,46]
[null,"5313",16,24,24]
[null,"5314",20,28,35]
[null,"5315","Minder dan 10 patiënten",16,13]
[null,"5316","Minder dan 10 patiënten","Minder dan 10 patiënten","Minder dan 10 patiënten"]
[null,"5317",20,22,18]
[null,"5321",58,60,63]
[null,"5324",54,54,55]
[null,"5325",16,16,16]
[null,"5327","Minder dan 10 patiënten","Minder dan 10 patiënten",13]
[null,"5328",23,30,28]
[null,"5331",92,104,92]
[null,"5333","Minder dan 10 patiënten","Minder dan 10 patiënten","Minder dan 10 patiënten"]
[null,"5334",28,22,26]
[null,"5335",11,13,12]
[null,"5340","Minder dan 10 patiënten","Minder dan 10 patiënten"]
[null,"5341",90,87,92]
[null,"5342",100,89,84]
[null,"5343",101,100,124]
[null,"5344",141,173,192]
[null,"5345",215,235,254]
[null,"5346",119,135,118]
[null,"5347",12,24,23]
[null,"5348",190,199,193]
[null,"5349","Minder dan 10 patiënten","Minder dan 10 patiënten","Minder dan 10 patiënten"]
[null,"5351",154,182,187]
[null,"5352",null,null,"Minder dan 10 patiënten"]
[null,"5353",null,null,"Minder dan 10 patiënten"]
[null,"5354",null,null,"Minder dan 10 patiënten"]
[null,"5355",null,null,"Minder dan 10 patiënten"]
[null,"5356",null,null,"Minder dan 10 patiënten"]
[null,"5357",null,null,"Minder dan 10 patiënten"]
[null,"5358",null,null,"Minder dan 10 patiënten"]
[null,"5359",null,null,"Minder dan 10 patiënten"]
[null,"5361",237,254,265]
[null,"5363",15,23,23]
[null,"5364",24,22,23]
[null,"5366",15,20,26]
[null,"5367",10,15,18]
[null,"5368","Minder dan 10 patiënten",14,15]
[null,"5371",71,78,60]
[null,"5373",37,40,38]
[null,"5374",101,122,118]
[null,"5375",26,36,32]
[null,"5381","Minder dan 10 patiënten",12,12]
[null,"5382",34,24,25]
[null,"5383","Minder dan 10 patiënten","Minder dan 10 patiënten","Minder dan 10 patiënten"]
[null,"5384",199,223,211]
[null,"5386",74,93,87]
[null,"5388",79,86,91]
[null,"5391",63,72,75]
[null,"5392",16,19,23]
[null,"5394",16,13,14]
[null,"5395","Minder dan 10 patiënten","Minder dan 10 patiënten","Minder dan 10 patiënten"]
[null,"5396",12,"Minder dan 10 patiënten",10]
[null,"5397",35,39,31]
[null,"5398",16,14,15]
[null,"5401",122,123,117]
[null,"5402",135,130,113]
[null,"5403",148,161,161]
[null,"5404",50,49,51]
[null,"5405","Minder dan 10 patiënten","Minder dan 10 patiënten","Minder dan 10 patiënten"]
[null,"5406",98,106,124]
[null,"5408",51,50,46]
[null,"5409",19,25,23]
[null,"5411",105,109,91]
[null,"5421",223,233,230]
[null,"5422",84,91,72]
[null,"5423",25,25,25]
[null,"5424",15,17,23]
[null,"5425",23,28,34]
[null,"5427",103,109,106]
[null,"5428",28,21,14]
[null,"5431",275,306,283]
[null,"5432",145,181,199]
[null,"5433","Minder dan 10 patiënten","Minder dan 10 patiënten","Minder dan 10 patiënten"]
[null,"5434",18,24,25]
[null,"5435","Minder dan 10 patiënten",11,"Minder dan 10 patiënten"]
[null,"5437",17,20,19]
[null,"5438",33,26,29]
[null,"5439","Minder dan 10 patiënten","Minder dan 10 patiënten","Minder dan 10 patiënten"]
[null,"5441",32,25,22]
[null,"5443",45,40,41]
[null,"5445","Minder dan 10 patiënten","Minder dan 10 patiënten",11]
[null,"5446",36,38,36]
[null,"5447",33,32,29]
[null,"5449","Minder dan 10 patiënten","Minder dan 10 patiënten","Minder dan 10 patiënten"]
[null,"5451",90,94,100]
[null,"5453",33,24,25]
[null,"5454",18,30,24]
[null,"5455",20,15,13]
[null,"5461",48,60,61]
[null,"5462",51,51,64]
[null,"5463",136,123,135]
[null,"5464",96,114,98]
[null,"5465",33,21,20]
[null,"5466",13,"Minder dan 10 patiënten",12]
[null,"5467",126,129,120]
[null,"5469",93,96,85]
[null,"5471","Minder dan 10 patiënten","Minder dan 10 patiënten","Minder dan 10 patiënten"]
[null,"5472",16,13,11]
[null,"5473",87,95,110]
[null,"5476",16,22,26]
[null,"5481",128,124,143]
[null,"5482",187,186,183]
[null,"5490",null,"Minder dan 10 patiënten"]
[null,"5491",117,139,136]
[null,"5492",90,93,87]
[null,"5501",84,72,54]
[null,"5502",68,67,77]
[null,"5503",111,91,88]
[null,"5504",95,104,102]
[null,"5505",74,84,74]
[null,"5506",55,67,59]
[null,"5507",18,24,37]
[null,"5508",247,232,241]
[null,"5509",58,71,59]
[null,"5511",27,30,26]
[null,"5512",34,34,29]
[null,"5513",22,19,18]
[null,"5520",null,null,"Minder dan 10 patiënten"]
[null,"5521",173,168,159]
[null,"5524",14,15,13]
[null,"5525",16,17,23]
[null,"5527",57,64,62]
[null,"5528",37,41,36]
[null,"5529",11,13,15]
[null,"5531",134,147,130]
[null,"5534","Minder dan 10 patiënten",10,13]
[null,"5541",90,100,109]
[null,"5551",136,151,137]
[null,"5552",70,88,82]
[null,"5553",25,21,17]
[null,"5554",119,111,106]
[null,"5555",26,20,25]
[null,"5556",14,14,"Minder dan 10 patiënten"]
[null,"5561",37,31,36]
[null,"5563",45,33,36]
[null,"5571",146,156,150]
[null,"5575",38,47,30]
[null,"5581",111,112,134]
[null,"5582",77,85,86]
[null,"5583",80,107,106]
[null,"5590","Minder dan 10 patiënten"]
[null,"5591",116,129,119]
[null,"5595",76,87,88]
[null,"5600",null,null,"Minder dan 10 patiënten"]
[null,"5611",109,110,90]
[null,"5612",142,158,145]
[null,"5613",92,84,74]
[null,"5614",52,46,63]
[null,"5615",79,87,85]
[null,"5616",164,172,175]
[null,"5617","Minder dan 10 patiënten","Minder dan 10 patiënten","Minder dan 10 patiënten"]
[null,"5621",80,73,64]
[null,"5622",120,123,147]
[null,"5623",167,161,165]
[null,"5624",77,79,71]
[null,"5625",167,168,174]
[null,"5626",46,44,56]
[null,"5627",189,194,208]
[null,"5628",135,138,164]
[null,"5629",110,110,115]
[null,"5631",56,51,56]
[null,"5632",224,230,208]
[null,"5633","Minder dan 10 patiënten","Minder dan 10 patiënten","Minder dan 10 patiënten"]
[null,"5641",122,118,107]
[null,"5642",108,125,116]
[null,"5643",106,101,116]
[null,"5644",132,111,111]
[null,"5645",55,55,69]
[null,"5646",28,30,29]
[null,"5651",59,54,54]
[null,"5652",135,142,124]
[null,"5653",122,125,127]
[null,"5654",171,215,189]
[null,"5655",67,79,66]
[null,"5657","Minder dan 10 patiënten","Minder dan 10 patiënten"]
[null,"5658",342,327,326]
[null,"5661",22,24,18]
[null,"5662",63,55,62]
[null,"5663",110,93,95]
[null,"5664",77,55,47]
[null,"5665",111,141,131]
[null,"5666",78,88,77]
[null,"5667",79,80,85]
[null,"5671",52,59,57]
[null,"5672",71,71,74]
[null,"5673",70,85,84]
[null,"5674",45,43,46]
[null,"5681","Minder dan 10 patiënten",12,12]
[null,"5682",50,44,57]
[null,"5683",74,83,87]
[null,"5684",185,218,228]
[null,"5685",124,138,144]
[null,"5688",139,130,107]
[null,"5689","Minder dan 10 patiënten","Minder dan 10 patiënten",12]
[null,"5691",199,209,220]
[null,"5692",26,29,37]
[null,"5694",100,119,130]
[null,"5701",395,406,427]
[null,"5702",199,218,228]
[null,"5703",119,146,153]
[null,"5704",155,161,152]
[null,"5705",39,38,34]
[null,"5706",293,284,279]
[null,"5707",142,151,189]
[null,"5708",169,181,206]
[null,"5709",232,252,256]
[null,"5711",132,136,138]
[null,"5712",162,155,160]
[null,"5715",47,41,51]
[null,"5721",220,226,242]
[null,"5724",13,17,19]
[null,"5725",46,63,37]
[null,"5731",131,141,176]
[null,"5735",76,84,94]
[null,"5737",68,73,53]
[null,"5738",22,28,25]
[null,"5741",151,147,146]
[null,"5750","Minder dan 10 patiënten"]
[null,"5751",120,160,155]
[null,"5752",25,27,33]
[null,"5753",40,57,73]
[null,"5754",69,84,79]
[null,"5756",25,20,15]
[null,"5757",44,54,45]
[null,"5758",22,19,19]
[null,"5759","Minder dan 10 patiënten",12,14]
[null,"5761",64,66,81]
[null,"5763",26,31,36]
[null,"5764",17,21,19]
[null,"5766","Minder dan 10 patiënten","Minder dan 10 patiënten","Minder dan 10 patiënten"]
[null,"5768",72,77,84]
[null,"5800",null,null,"Minder dan 10 patiënten"]
[null,"5801",141,140,126]
[null,"5802",168,175,151]
[null,"5803",131,115,102]
[null,"5804",40,43,43]
[null,"5807",37,21,13]
[null,"5808",10,18,16]
[null,"5809",24,28,29]
[null,"5811","Minder dan 10 patiënten","Minder dan 10 patiënten",12]
[null,"5812","Minder dan 10 patiënten","Minder dan 10 patiënten","Minder dan 10 patiënten"]
[null,"5813",12,16,16]
[null,"5814","Minder dan 10 patiënten","Minder dan 10 patiënten","Minder dan 10 patiënten"]
[null,"5815","Minder dan 10 patiënten",15,13]
[null,"5816","Minder dan 10 patiënten","Minder dan 10 patiënten","Minder dan 10 patiënten"]
[null,"5817","Minder dan 10 patiënten","Minder dan 10 patiënten","Minder dan 10 patiënten"]
[null,"5821",17,19,18]
[null,"5823","Minder dan 10 patiënten","Minder dan 10 patiënten",10]
[null,"5824","Minder dan 10 patiënten","Minder dan 10 patiënten","Minder dan 10 patiënten"]
[null,"5825",30,36,34]
[null,"5826","Minder dan 10 patiënten","Minder dan 10 patiënten","Minder dan 10 patiënten"]
[null,"5827","Minder dan 10 patiënten","Minder dan 10 patiënten","Minder dan 10 patiënten"]
[null,"5831",131,156,141]
[null,"5835",24,29,21]
[null,"5836",16,19,"Minder dan 10 patiënten"]
[null,"5841",11,15,25]
[null,"5843",10,10,"Minder dan 10 patiënten"]
[null,"5844","Minder dan 10 patiënten",10,10]
[null,"5845",42,51,59]
[null,"5846","Minder dan 10 patiënten","Minder dan 10 patiënten",10]
[null,"5851",20,32,23]
[null,"5853",12,13,11]
[null,"5854",55,56,57]
[null,"5855",24,24,23]
[null,"5856","Minder dan 10 patiënten","Minder dan 10 patiënten",12]
[null,"5861",10,15,13]
[null,"5862","Minder dan 10 patiënten","Minder dan 10 patiënten","Minder dan 10 patiënten"]
[null,"5863",15,10,"Minder dan 10 patiënten"]
[null,"5864",18,13,21]
[null,"5865",18,19,18]
[null,"5866","Minder dan 10 patiënten",11,"Minder dan 10 patiënten"]
[null,"5871","Minder dan 10 patiënten","Minder dan 10 patiënten","Minder dan 10 patiënten"]
[null,"5872",11,"Minder dan 10 patiënten","Minder dan 10 patiënten"]
[null,"5900",null,null,"Minder dan 10 patiënten"]
[null,"5911",44,74,63]
[null,"5912",149,170,161]
[null,"5913",107,125,117]
[null,"5914",131,103,90]
[null,"5915",79,87,79]
[null,"5916",19,14,17]
[null,"5921",86,102,75]
[null,"5922",121,126,112]
[null,"5923",46,51,41]
[null,"5924",71,81,81]
[null,"5925",51,70,61]
[null,"5926",24,31,31]
[null,"5927","Minder dan 10 patiënten","Minder dan 10 patiënten","Minder dan 10 patiënten"]
[null,"5928","Minder dan 10 patiënten","Minder dan 10 patiënten",10]
[null,"5931",125,135,124]
[null,"5932",84,111,90]
[null,"5935",72,71,58]
[null,"5941",46,59,61]
[null,"5943","Minder dan 10 patiënten",11,12]
[null,"5944",28,20,19]
[null,"5951",64,59,81]
[null,"5953",158,174,172]
[null,"5954",20,33,31]
[null,"5961",146,183,177]
[null,"5962",23,23,16]
[null,"5963",34,23,23]
[null,"5964","Minder dan 10 patiënten",15,14]
[null,"5966",20,24,22]
[null,"5971",72,64,65]
[null,"5973",17,17,19]
[null,"5975",79,106,103]
[null,"5976","Minder dan 10 patiënten","Minder dan 10 patiënten","Minder dan 10 patiënten"]
[null,"5977","Minder dan 10 patiënten","Minder dan 10 patiënten","Minder dan 10 patiënten"]
[null,"5981",134,118,116]
[null,"5984",16,12,12]
[null,"5985",25,25,28]
[null,"5986",37,33,27]
[null,"5987",20,20,20]
[null,"5988",90,76,86]
[null,"5991",93,102,95]
[null,"5993",93,98,86]
[null,"5995",53,66,66]
[null,"6000",null,null,"Minder dan 10 patiënten"]
[null,"6001",95,98,87]
[null,"6002",111,111,122]
[null,"6003",73,78,80]
[null,"6004",156,186,202]
[null,"6005",67,87,94]
[null,"6006",210,220,261]
[null,"6011",39,39,29]
[null,"6012","Minder dan 10 patiënten","Minder dan 10 patiënten","Minder dan 10 patiënten"]
[null,"6013",20,27,14]
[null,"6014",26,17,24]
[null,"6015",19,21,19]
[null,"6017",33,28,33]
[null,"6019",28,39,38]
[null,"6021",180,190,213]
[null,"6023",28,40,39]
[null,"6024",20,23,35]
[null,"6026",144,155,141]
[null,"6027",38,49,48]
[null,"6028",10,13,12]
[null,"6029",27,27,33]
[null,"6031",181,186,174]
[null,"6034",30,23,24]
[null,"6035",97,99,103]
[null,"6037",23,35,19]
[null,"6039",65,61,72]
[null,"6040","Minder dan 10 patiënten",11,13]
[null,"6041",138,155,154]
[null,"6042",173,197,194]
[null,"6043",382,370,378]
[null,"6044",104,103,117]
[null,"6045",123,115,115]
[null,"6049",152,138,140]
[null,"6050",null,"Minder dan 10 patiënten","Minder dan 10 patiënten"]
[null,"6051",96,127,128]
[null,"6061",49,52,58]
[null,"6063",28,40,39]
[null,"6065",46,58,48]
[null,"6067",56,56,54]
[null,"6071",128,150,155]
[null,"6074",61,64,58]
[null,"6075",70,67,55]
[null,"6077",51,55,46]
[null,"6081",48,59,67]
[null,"6082",15,19,16]
[null,"6083",11,"Minder dan 10 patiënten","Minder dan 10 patiënten"]
[null,"6085",57,50,47]
[null,"6086",47,37,46]
[null,"6088",54,59,53]
[null,"6089",13,14,15]
[null,"6091",19,21,20]
[null,"6092","Minder dan 10 patiënten","Minder dan 10 patiënten","Minder dan 10 patiënten"]
[null,"6093",125,113,116]
[null,"6095",47,46,36]
[null,"6096",18,22,24]
[null,"6097",36,38,56]
[null,"6099",18,24,18]
[null,"6101",155,158,187]
[null,"6102",76,77,81]
[null,"6104",40,45,39]
[null,"6105",23,17,15]
[null,"6107",21,14,13]
[null,"6109","Minder dan 10 patiënten","Minder dan 10 patiënten",11]
[null,"6111",11,10,10]
[null,"6112",10,11,"Minder dan 10 patiënten"]
[null,"6114",168,175,189]
[null,"6116",28,23,34]
[null,"6118",60,75,68]
[null,"6121",113,114,113]
[null,"6122",34,38,39]
[null,"6123",16,22,19]
[null,"6124",11,"Minder dan 10 patiënten","Minder dan 10 patiënten"]
[null,"6125",28,33,28]
[null,"6127",23,30,27]
[null,"6129",141,131,126]
[null,"6130",null,null,"Minder dan 10 patiënten"]
[null,"6131",46,60,69]
[null,"6132",76,73,75]
[null,"6133",52,60,67]
[null,"6134",48,43,46]
[null,"6135",146,150,140]
[null,"6136",140,142,141]
[null,"6137",166,175,176]
[null,"6141",44,33,41]
[null,"6142",23,28,19]
[null,"6143",29,33,25]
[null,"6151",86,94,82]
[null,"6153","Minder dan 10 patiënten","Minder dan 10 patiënten","Minder dan 10 patiënten"]
[null,"6155",47,48,55]
[null,"6160",null,null,"Minder dan 10 patiënten"]
[null,"6161",117,121,104]
[null,"6162",84,89,98]
[null,"6163",198,197,220]
[null,"6164",185,184,173]
[null,"6165",122,132,121]
[null,"6166",97,105,99]
[null,"6167",null,null,"Minder dan 10 patiënten"]
[null,"6170",null,"Minder dan 10 patiënten","Minder dan 10 patiënten"]
[null,"6171",185,196,205]
[null,"6174","Minder dan 10 patiënten","Minder dan 10 patiënten","Minder dan 10 patiënten"]
[null,"6176",56,58,54]
[null,"6181",134,131,138]
[null,"6190",null,null,"Minder dan 10 patiënten"]
[null,"6191",249,261,253]
[null,"6199",null,"Minder dan 10 patiënten","Minder dan 10 patiënten"]
[null,"6201",null,null,"Minder dan 10 patiënten"]
[null,"6202",null,null,"Minder dan 10 patiënten"]
[null,"6211",92,92,101]
[null,"6212",58,55,54]
[null,"6213",60,71,65]
[null,"6214",109,120,115]
[null,"6215",189,188,157]
[null,"6216",138,139,134]
[null,"6217",201,233,216]
[null,"6218",130,125,134]
[null,"6219",30,26,23]
[null,"6221",121,135,123]
[null,"6222",93,110,103]
[null,"6223",44,52,47]
[null,"6224",143,149,155]
[null,"6225",116,113,114]
[null,"6226",150,137,134]
[null,"6227",117,116,123]
[null,"6228",137,137,143]
[null,"6229",84,103,92]
[null,"6230",null,null,"Minder dan 10 patiënten"]
[null,"6231",148,133,139]
[null,"6235",54,43,60]
[null,"6237","Minder dan 10 patiënten","Minder dan 10 patiënten","Minder dan 10 patiënten"]
[null,"6240",null,"Minder dan 10 patiënten","Minder dan 10 patiënten"]
[null,"6241",123,128,141]
[null,"6243",41,43,45]
[null,"6245",157,156,177]
[null,"6247",37,41,55]
[null,"6251","Minder dan 10 patiënten","Minder dan 10 patiënten","Minder dan 10 patiënten"]
[null,"6252","Minder dan 10 patiënten","Minder dan 10 patiënten","Minder dan 10 patiënten"]
[null,"6255","Minder dan 10 patiënten",13,14]
[null,"6261","Minder dan 10 patiënten",17,19]
[null,"6262",20,14,12]
[null,"6265",19,21,21]
[null,"6267",70,63,51]
[null,"6268","Minder dan 10 patiënten",10,"Minder dan 10 patiënten"]
[null,"6269",59,71,69]
[null,"6270",null,null,"Minder dan 10 patiënten"]
[null,"6271",39,39,42]
[null,"6273","Minder dan 10 patiënten","Minder dan 10 patiënten","Minder dan 10 patiënten"]
[null,"6274",14,11,13]
[null,"6276","Minder dan 10 patiënten","Minder dan 10 patiënten","Minder dan 10 patiënten"]
[null,"6277","Minder dan 10 patiënten","Minder dan 10 patiënten","Minder dan 10 patiënten"]
[null,"6278",null,null,"Minder dan 10 patiënten"]
[null,"6281",13,21,22]
[null,"6285","Minder dan 10 patiënten","Minder dan 10 patiënten",11]
[null,"6286",26,27,17]
[null,"6287",29,32,30]
[null,"6291",77,76,99]
[null,"6294",16,11,15]
[null,"6295","Minder dan 10 patiënten","Minder dan 10 patiënten",13]
[null,"6301",154,151,136]
[null,"6305",15,10,11]
[null,"6307","Minder dan 10 patiënten",null,"Minder dan 10 patiënten"]
[null,"6311",11,12,10]
[null,"6312","Minder dan 10 patiënten","Minder dan 10 patiënten","Minder dan 10 patiënten"]
[null,"6321",36,30,34]
[null,"6325",80,73,89]
[null,"6333",51,47,54]
[null,"6336",66,84,85]
[null,"6341","Minder dan 10 patiënten","Minder dan 10 patiënten","Minder dan 10 patiënten"]
[null,"6343",55,51,46]
[null,"6351",82,97,94]
[null,"6353","Minder dan 10 patiënten","Minder dan 10 patiënten","Minder dan 10 patiënten"]
[null,"6361",88,96,102]
[null,"6363",15,18,22]
[null,"6365",57,55,65]
[null,"6367",119,114,133]
[null,"6369",71,72,76]
[null,"6370",null,null,"Minder dan 10 patiënten"]
[null,"6371",113,112,110]
[null,"6372",152,169,204]
[null,"6373",117,132,133]
[null,"6374",182,192,258]
[null,"6400",null,null,"Minder dan 10 patiënten"]
[null,"6401",null,null,"Minder dan 10 patiënten"]
[null,"6411",105,87,104]
[null,"6412",192,195,213]
[null,"6413",194,168,174]
[null,"6414",124,119,138]
[null,"6415",138,149,160]
[null,"6416",92,111,108]
[null,"6417",82,107,122]
[null,"6418",173,199,185]
[null,"6419",68,64,58]
[null,"6422","Minder dan 10 patiënten","Minder dan 10 patiënten","Minder dan 10 patiënten"]
[null,"6431",126,149,164]
[null,"6432",53,63,62]
[null,"6433",69,70,77]
[null,"6436",51,42,48]
[null,"6438",65,78,74]
[null,"6439",25,26,23]
[null,"6440","Minder dan 10 patiënten","Minder dan 10 patiënten","Minder dan 10 patiënten"]
[null,"6441",94,102,96]
[null,"6442",34,41,50]
[null,"6443",50,41,57]
[null,"6444",74,72,85]
[null,"6445",27,32,41]
[null,"6446",80,83,84]
[null,"6447",23,19,30]
[null,"6451",63,54,62]
[null,"6454","Minder dan 10 patiënten","Minder dan 10 patiënten","Minder dan 10 patiënten"]
[null,"6456","Minder dan 10 patiënten","Minder dan 10 patiënten",10]
[null,"6460","Minder dan 10 patiënten","Minder dan 10 patiënten","Minder dan 10 patiënten"]
[null,"6461",104,105,126]
[null,"6462",120,121,131]
[null,"6463",91,99,115]
[null,"6464",62,61,65]
[null,"6465",28,33,37]
[null,"6466",108,129,128]
[null,"6467",86,90,100]
[null,"6468","Minder dan 10 patiënten","Minder dan 10 patiënten","Minder dan 10 patiënten"]
[null,"6469","Minder dan 10 patiënten",12,"Minder dan 10 patiënten"]
[null,"6471",75,84,96]
[null,"6500","Minder dan 10 patiënten"]
[null,"6511",79,59,68]
[null,"6512",57,52,40]
[null,"6515",213,210,193]
[null,"6521",44,54,47]
[null,"6522",25,33,31]
[null,"6523",70,66,64]
[null,"6524",60,70,63]
[null,"6525",47,60,73]
[null,"6531",145,144,154]
[null,"6532",61,59,54]
[null,"6533",143,153,158]
[null,"6534",25,38,26]
[null,"6535",149,174,165]
[null,"6536",42,41,38]
[null,"6537",189,196,180]
[null,"6538",157,164,165]
[null,"6541",84,114,122]
[null,"6542",91,91,85]
[null,"6543",90,99,97]
[null,"6544",125,133,122]
[null,"6545",70,69,74]
[null,"6546",157,172,155]
[null,"6551",27,35,31]
[null,"6561",57,101,102]
[null,"6562",136,167,164]
[null,"6564","Minder dan 10 patiënten","Minder dan 10 patiënten","Minder dan 10 patiënten"]
[null,"6566",114,117,123]
[null,"6571",20,17,13]
[null,"6572","Minder dan 10 patiënten","Minder dan 10 patiënten","Minder dan 10 patiënten"]
[null,"6573",42,47,53]
[null,"6574","Minder dan 10 patiënten","Minder dan 10 patiënten","Minder dan 10 patiënten"]
[null,"6575","Minder dan 10 patiënten","Minder dan 10 patiënten"]
[null,"6576",35,48,41]
[null,"6577","Minder dan 10 patiënten","Minder dan 10 patiënten","Minder dan 10 patiënten"]
[null,"6578",41,35,34]
[null,"6579","Minder dan 10 patiënten","Minder dan 10 patiënten","Minder dan 10 patiënten"]
[null,"6581",145,153,166]
[null,"6582",28,27,24]
[null,"6584",52,58,59]
[null,"6585",38,47,34]
[null,"6586","Minder dan 10 patiënten","Minder dan 10 patiënten","Minder dan 10 patiënten"]
[null,"6587","Minder dan 10 patiënten",11,"Minder dan 10 patiënten"]
[null,"6590",null,null,"Minder dan 10 patiënten"]
[null,"6591",114,102,104]
[null,"6595",21,20,24]
[null,"6596",36,36,26]
[null,"6598",18,19,22]
[null,"6599","Minder dan 10 patiënten","Minder dan 10 patiënten","Minder dan 10 patiënten"]
[null,"6601",185,218,216]
[null,"6602",86,83,79]
[null,"6603",78,76,78]
[null,"6604",48,48,57]
[null,"6605",219,224,194]
[null,"6606","Minder dan 10 patiënten",12,"Minder dan 10 patiënten"]
[null,"6611",58,53,59]
[null,"6612",18,18,22]
[null,"6613",15,17,17]
[null,"6615","Minder dan 10 patiënten","Minder dan 10 patiënten","Minder dan 10 patiënten"]
[null,"6616",15,10,14]
[null,"6617",27,27,18]
[null,"6621",58,52,42]
[null,"6624",16,18,14]
[null,"6626",19,18,16]
[null,"6627",21,25,17]
[null,"6628","Minder dan 10 patiënten","Minder dan 10 patiënten",10]
[null,"6629",17,13,13]
[null,"6631",24,29,15]
[null,"6634",10,11,"Minder dan 10 patiënten"]
[null,"6641",153,180,168]
[null,"6642",85,85,83]
[null,"6644",35,41,62]
[null,"6645",33,27,23]
[null,"6651",196,202,188]
[null,"6652",55,65,56]
[null,"6653",32,19,16]
[null,"6654",26,26,27]
[null,"6655",22,21,24]
[null,"6657",45,52,51]
[null,"6658",81,87,103]
[null,"6659",34,32,39]
[null,"6660",null,"Minder dan 10 patiënten","Minder dan 10 patiënten"]
[null,"6661",234,229,212]
[null,"6662",131,132,118]
[null,"6663",217,238,263]
[null,"6665",52,54,54]
[null,"6666",69,79,64]
[null,"6668",28,30,22]
[null,"6669",70,67,70]
[null,"6671",64,67,76]
[null,"6672","Minder dan 10 patiënten","Minder dan 10 patiënten","Minder dan 10 patiënten"]
[null,"6673",36,30,23]
[null,"6674",52,43,41]
[null,"6675",23,21,26]
[null,"6677","Minder dan 10 patiënten","Minder dan 10 patiënten","Minder dan 10 patiënten"]
[null,"6678",25,30,25]
[null,"6679",15,12,"Minder dan 10 patiënten"]
[null,"6681",225,238,239]
[null,"6684","Minder dan 10 patiënten","Minder dan 10 patiënten"]
[null,"6685",27,33,39]
[null,"6686",50,40,40]
[null,"6687",42,50,51]
[null,"6691",111,117,112]
[null,"6701",24,30,26]
[null,"6702",32,27,35]
[null,"6703",20,25,26]
[null,"6704",15,"Minder dan 10 patiënten","Minder dan 10 patiënten"]
[null,"6705",11,17,17]
[null,"6706",49,48,40]
[null,"6707",45,73,59]
[null,"6708",143,143,133]
[null,"6709",19,22,29]
[null,"6711",75,94,91]
[null,"6712",42,42,38]
[null,"6713",100,112,105]
[null,"6714",78,103,105]
[null,"6715",56,74,74]
[null,"6716",100,96,94]
[null,"6717",180,197,180]
[null,"6718",95,77,101]
[null,"6721",162,183,183]
[null,"6731",41,33,25]
[null,"6732",30,34,42]
[null,"6733",30,39,36]
[null,"6741",167,172,184]
[null,"6744",48,56,57]
[null,"6745","Minder dan 10 patiënten","Minder dan 10 patiënten","Minder dan 10 patiënten"]
[null,"6811",39,41,42]
[null,"6812",21,17,27]
[null,"6813",43,65,64]
[null,"6814",68,71,72]
[null,"6815",35,31,32]
[null,"6816",24,26,21]
[null,"6821",52,58,67]
[null,"6822",85,90,129]
[null,"6823",113,126,128]
[null,"6824",123,117,156]
[null,"6825",116,127,147]
[null,"6826",267,274,303]
[null,"6827","Minder dan 10 patiënten","Minder dan 10 patiënten","Minder dan 10 patiënten"]
[null,"6828",205,221,229]
[null,"6831",50,57,47]
[null,"6832",99,105,117]
[null,"6833",120,130,129]
[null,"6834",84,94,107]
[null,"6835",85,98,78]
[null,"6836",246,246,223]
[null,"6841",94,96,96]
[null,"6842",34,38,40]
[null,"6843",210,202,175]
[null,"6844",77,75,68]
[null,"6845",97,116,117]
[null,"6846",212,220,238]
[null,"6851",128,121,131]
[null,"6852",138,158,185]
[null,"6861",78,80,60]
[null,"6862",70,79,79]
[null,"6865",58,68,82]
[null,"6866",45,50,47]
[null,"6869",10,"Minder dan 10 patiënten",10]
[null,"6871",111,117,102]
[null,"6874",15,15,20]
[null,"6877","Minder dan 10 patiënten","Minder dan 10 patiënten","Minder dan 10 patiënten"]
[null,"6881",85,99,102]
[null,"6882",127,123,131]
[null,"6883",69,69,93]
[null,"6891",12,18,28]
[null,"6901",84,83,90]
[null,"6902",19,16,17]
[null,"6903",76,93,86]
[null,"6904",102,116,120]
[null,"6905",41,35,56]
[null,"6909",34,29,32]
[null,"6911",25,29,32]
[null,"6913","Minder dan 10 patiënten","Minder dan 10 patiënten","Minder dan 10 patiënten"]
[null,"6914","Minder dan 10 patiënten","Minder dan 10 patiënten",13]
[null,"6915",62,58,55]
[null,"6916",45,53,54]
[null,"6917",14,11,16]
[null,"6921",203,248,254]
[null,"6922",110,106,123]
[null,"6923",18,18,20]
[null,"6924","Minder dan 10 patiënten","Minder dan 10 patiënten",15]
[null,"6931",99,101,119]
[null,"6932",147,144,162]
[null,"6941",71,76,84]
[null,"6942",157,177,198]
[null,"6951",165,140,138]
[null,"6952",65,72,79]
[null,"6953",25,29,29]
[null,"6955",16,16,16]
[null,"6956",16,14,18]
[null,"6957","Minder dan 10 patiënten",12,10]
[null,"6961",160,147,144]
[null,"6964","Minder dan 10 patiënten",13,"Minder dan 10 patiënten"]
[null,"6971",118,123,134]
[null,"6974",12,11,13]
[null,"6975","Minder dan 10 patiënten","Minder dan 10 patiënten","Minder dan 10 patiënten"]
[null,"6981",57,73,81]
[null,"6982",64,61,71]
[null,"6983",75,95,94]
[null,"6984","Minder dan 10 patiënten","Minder dan 10 patiënten","Minder dan 10 patiënten"]
[null,"6986",19,22,16]
[null,"6987",39,40,43]
[null,"6988",17,24,18]
[null,"6991",168,179,208]
[null,"6994",18,15,14]
[null,"6996",22,32,32]
[null,"6997","Minder dan 10 patiënten","Minder dan 10 patiënten","Minder dan 10 patiënten"]
[null,"6998","Minder dan 10 patiënten","Minder dan 10 patiënten","Minder dan 10 patiënten"]
[null,"6999",26,32,25]
[null,"7001",42,47,58]
[null,"7002",94,115,137]
[null,"7003",46,44,56]
[null,"7004",55,64,80]
[null,"7005","Minder dan 10 patiënten","Minder dan 10 patiënten","Minder dan 10 patiënten"]
[null,"7006",146,155,167]
[null,"7007",130,137,138]
[null,"7008","Minder dan 10 patiënten",10,16]
[null,"7009",120,130,139]
[null,"7011",83,86,87]
[null,"7021",202,202,200]
[null,"7025",37,40,41]
[null,"7031",65,67,65]
[null,"7035",16,16,25]
[null,"7036","Minder dan 10 patiënten","Minder dan 10 patiënten","Minder dan 10 patiënten"]
[null,"7037",20,24,26]
[null,"7038",34,40,34]
[null,"7039","Minder dan 10 patiënten","Minder dan 10 patiënten","Minder dan 10 patiënten"]
[null,"7041",122,146,123]
[null,"7044","Minder dan 10 patiënten","Minder dan 10 patiënten","Minder dan 10 patiënten"]
[null,"7045","Minder dan 10 patiënten","Minder dan 10 patiënten","Minder dan 10 patiënten"]
[null,"7046","Minder dan 10 patiënten","Minder dan 10 patiënten","Minder dan 10 patiënten"]
[null,"7047",14,13,11]
[null,"7048","Minder dan 10 patiënten","Minder dan 10 patiënten","Minder dan 10 patiënten"]
[null,"7051",67,117,132]
[null,"7054",13,22,17]
[null,"7055",19,24,27]
[null,"7061",66,91,85]
[null,"7064",85,92,80]
[null,"7065",11,15,14]
[null,"7071",120,150,146]
[null,"7075",17,21,25]
[null,"7076","Minder dan 10 patiënten","Minder dan 10 patiënten",12]
[null,"7077","Minder dan 10 patiënten",10,"Minder dan 10 patiënten"]
[null,"7078",11,10,16]
[null,"7081",61,42,49]
[null,"7083","Minder dan 10 patiënten","Minder dan 10 patiënten","Minder dan 10 patiënten"]
[null,"7084",11,10,"Minder dan 10 patiënten"]
[null,"7091",90,86,79]
[null,"7095",11,"Minder dan 10 patiënten",11]
[null,"7101",113,122,147]
[null,"7102",48,40,48]
[null,"7103",87,81,98]
[null,"7104",16,10,21]
[null,"7105","Minder dan 10 patiënten","Minder dan 10 patiënten","Minder dan 10 patiënten"]
[null,"7106","Minder dan 10 patiënten","Minder dan 10 patiënten","Minder dan 10 patiënten"]
[null,"7107","Minder dan 10 patiënten","Minder dan 10 patiënten","Minder dan 10 patiënten"]
[null,"7108",10,"Minder dan 10 patiënten",11]
[null,"7109",13,"Minder dan 10 patiënten","Minder dan 10 patiënten"]
[null,"7113","Minder dan 10 patiënten","Minder dan 10 patiënten","Minder dan 10 patiënten"]
[null,"7115","Minder dan 10 patiënten","Minder dan 10 patiënten","Minder dan 10 patiënten"]
[null,"7119","Minder dan 10 patiënten",null,"Minder dan 10 patiënten"]
[null,"7121",114,144,143]
[null,"7122",136,143,127]
[null,"7123",29,30,30]
[null,"7126",15,19,24]
[null,"7131",135,133,158]
[null,"7132",54,64,57]
[null,"7134",10,"Minder dan 10 patiënten",13]
[null,"7135",16,22,22]
[null,"7136",17,25,35]
[null,"7137",16,21,20]
[null,"7141",111,119,125]
[null,"7142","Minder dan 10 patiënten","Minder dan 10 patiënten","Minder dan 10 patiënten"]
[null,"7151",125,141,154]
[null,"7152",56,47,45]
[null,"7156",25,36,43]
[null,"7157",23,22,16]
[null,"7161",171,175,200]
[null,"7165",12,13,16]
[null,"7200","Minder dan 10 patiënten","Minder dan 10 patiënten","Minder dan 10 patiënten"]
[null,"7201",50,52,54]
[null,"7202","Minder dan 10 patiënten",12,10]
[null,"7203",61,84,91]
[null,"7204",142,157,177]
[null,"7205",37,34,32]
[null,"7206",70,65,97]
[null,"7207",103,125,149]
[null,"7211",60,62,64]
[null,"7213",49,52,65]
[null,"7214",25,27,30]
[null,"7215","Minder dan 10 patiënten","Minder dan 10 patiënten","Minder dan 10 patiënten"]
[null,"7216","Minder dan 10 patiënten","Minder dan 10 patiënten","Minder dan 10 patiënten"]
[null,"7217",13,"Minder dan 10 patiënten",18]
[null,"7218",10,15,16]
[null,"7221",64,62,63]
[null,"7223",20,18,19]
[null,"7224",null,"Minder dan 10 patiënten"]
[null,"7225","Minder dan 10 patiënten","Minder dan 10 patiënten",10]
[null,"7226","Minder dan 10 patiënten","Minder dan 10 patiënten","Minder dan 10 patiënten"]
[null,"7227",14,13,20]
[null,"7231",58,74,84]
[null,"7232",52,45,48]
[null,"7233","Minder dan 10 patiënten","Minder dan 10 patiënten","Minder dan 10 patiënten"]
[null,"7234",10,"Minder dan 10 patiënten",11]
[null,"7241",113,128,126]
[null,"7242",99,112,117]
[null,"7244",20,18,28]
[null,"7245",32,45,52]
[null,"7251",93,97,96]
[null,"7255",69,91,113]
[null,"7256",13,16,20]
[null,"7261",122,121,114]
[null,"7263",12,"Minder dan 10 patiënten",16]
[null,"7271",138,140,161]
[null,"7273","Minder dan 10 patiënten","Minder dan 10 patiënten","Minder dan 10 patiënten"]
[null,"7274",15,20,23]
[null,"7275",17,12,"Minder dan 10 patiënten"]
[null,"7311",97,77,78]
[null,"7312",134,151,146]
[null,"7313",22,19,32]
[null,"7314",62,75,78]
[null,"7315",66,69,64]
[null,"7316",80,60,74]
[null,"7317","Minder dan 10 patiënten","Minder dan 10 patiënten","Minder dan 10 patiënten"]
[null,"7321",76,87,82]
[null,"7322",137,186,171]
[null,"7323",223,270,276]
[null,"7324",14,20,36]
[null,"7325",212,264,285]
[null,"7326",190,187,166]
[null,"7327",96,120,103]
[null,"7328",151,167,156]
[null,"7329",36,43,48]
[null,"7331",193,220,204]
[null,"7332","Minder dan 10 patiënten",14,15]
[null,"7333",107,111,125]
[null,"7334",35,38,39]
[null,"7335",96,94,105]
[null,"7336",null,"Minder dan 10 patiënten","Minder dan 10 patiënten"]
[null,"7339",79,80,82]
[null,"7341",12,11,"Minder dan 10 patiënten"]
[null,"7345",19,25,27]
[null,"7346","Minder dan 10 patiënten",null,"Minder dan 10 patiënten"]
[null,"7348",null,null,"Minder dan 10 patiënten"]
[null,"7351","Minder dan 10 patiënten","Minder dan 10 patiënten","Minder dan 10 patiënten"]
[null,"7352",null,"Minder dan 10 patiënten"]
[null,"7361",56,59,62]
[null,"7364",10,10,12]
[null,"7371",33,28,42]
[null,"7381",14,23,20]
[null,"7382",16,19,19]
[null,"7383",26,36,42]
[null,"7384",32,30,30]
[null,"7391",162,161,194]
[null,"7392",15,16,12]
[null,"7395","Minder dan 10 patiënten",13,11]
[null,"7396",21,24,32]
[null,"7397","Minder dan 10 patiënten","Minder dan 10 patiënten",11]
[null,"7399","Minder dan 10 patiënten","Minder dan 10 patiënten","Minder dan 10 patiënten"]
[null,"7400","Minder dan 10 patiënten"]
[null,"7411",56,59,66]
[null,"7412",136,146,143]
[null,"7413",90,91,103]
[null,"7414",78,74,85]
[null,"7415",153,139,191]
[null,"7416",65,49,43]
[null,"7417",70,69,76]
[null,"7418","Minder dan 10 patiënten","Minder dan 10 patiënten","Minder dan 10 patiënten"]
[null,"7419",37,29,38]
[null,"7421",66,59,58]
[null,"7422",42,30,27]
[null,"7423",68,85,95]
[null,"7424",75,83,86]
[null,"7425",122,138,139]
[null,"7426","Minder dan 10 patiënten"]
[null,"7427","Minder dan 10 patiënten","Minder dan 10 patiënten","Minder dan 10 patiënten"]
[null,"7428","Minder dan 10 patiënten","Minder dan 10 patiënten","Minder dan 10 patiënten"]
[null,"7429",16,24,19]
[null,"7431",51,50,44]
[null,"7433",60,75,73]
[null,"7434",15,18,11]
[null,"7435",10,11,"Minder dan 10 patiënten"]
[null,"7437",72,58,54]
[null,"7439","Minder dan 10 patiënten","Minder dan 10 patiënten","Minder dan 10 patiënten"]
[null,"7441",52,45,57]
[null,"7442",152,178,194]
[null,"7443",154,180,182]
[null,"7447",90,95,112]
[null,"7448",43,51,33]
[null,"7451",99,107,123]
[null,"7461",151,157,146]
[null,"7462",257,247,262]
[null,"7463",125,149,168]
[null,"7466","Minder dan 10 patiënten","Minder dan 10 patiënten","Minder dan 10 patiënten"]
[null,"7467","Minder dan 10 patiënten",11,"Minder dan 10 patiënten"]
[null,"7468",117,136,158]
[null,"7471",234,240,261]
[null,"7475",72,94,89]
[null,"7478",38,45,56]
[null,"7481",150,156,187]
[null,"7482",201,202,200]
[null,"7483",62,65,62]
[null,"7491",130,144,139]
[null,"7495",52,44,41]
[null,"7496",42,51,53]
[null,"7497",32,35,41]
[null,"7504",null,"Minder dan 10 patiënten"]
[null,"7511",82,99,99]
[null,"7512",83,83,105]
[null,"7513",65,80,85]
[null,"7514",59,53,75]
[null,"7521",129,148,166]
[null,"7522",54,72,71]
[null,"7523",315,299,318]
[null,"7524",24,47,53]
[null,"7525","Minder dan 10 patiënten","Minder dan 10 patiënten","Minder dan 10 patiënten"]
[null,"7531",126,137,148]
[null,"7532",84,101,100]
[null,"7533",62,68,93]
[null,"7534",218,244,304]
[null,"7535",41,41,46]
[null,"7536","Minder dan 10 patiënten","Minder dan 10 patiënten","Minder dan 10 patiënten"]
[null,"7541",49,48,65]
[null,"7542",153,197,244]
[null,"7543",99,133,130]
[null,"7544",358,385,437]
[null,"7545",214,256,313]
[null,"7546",102,120,147]
[null,"7547","Minder dan 10 patiënten","Minder dan 10 patiënten","Minder dan 10 patiënten"]
[null,"7548",40,44,54]
[null,"7550","Minder dan 10 patiënten","Minder dan 10 patiënten",16]
[null,"7551",76,66,67]
[null,"7552",337,375,376]
[null,"7553",293,294,334]
[null,"7554",46,55,50]
[null,"7555",251,250,262]
[null,"7556",358,341,341]
[null,"7557",356,360,376]
[null,"7558",318,354,393]
[null,"7559",431,410,403]
[null,"7561",39,42,41]
[null,"7562","Minder dan 10 patiënten","Minder dan 10 patiënten","Minder dan 10 patiënten"]
[null,"7571",27,22,27]
[null,"7572",77,78,90]
[null,"7573",42,54,56]
[null,"7574",56,64,65]
[null,"7575","Minder dan 10 patiënten","Minder dan 10 patiënten","Minder dan 10 patiënten"]
[null,"7576",94,121,129]
[null,"7577",184,187,209]
[null,"7581",124,115,122]
[null,"7582",77,83,91]
[null,"7585","Minder dan 10 patiënten",null,"Minder dan 10 patiënten"]
[null,"7586",78,94,95]
[null,"7587",64,48,53]
[null,"7588",12,15,14]
[null,"7591",122,141,144]
[null,"7595",62,55,57]
[null,"7596",41,38,24]
[null,"7597",49,44,36]
[null,"7600","Minder dan 10 patiënten"]
[null,"7601",145,153,161]
[null,"7602",48,63,61]
[null,"7603",84,100,107]
[null,"7604",101,124,121]
[null,"7605",73,74,83]
[null,"7606",147,174,186]
[null,"7607",111,125,135]
[null,"7608",228,216,234]
[null,"7609",200,217,255]
[null,"7610",null,null,"Minder dan 10 patiënten"]
[null,"7611",15,18,19]
[null,"7614","Minder dan 10 patiënten","Minder dan 10 patiënten","Minder dan 10 patiënten"]
[null,"7615",32,27,31]
[null,"7621",124,117,127]
[null,"7622",116,134,155]
[null,"7623",161,198,189]
[null,"7625",27,28,34]
[null,"7626",11,12,"Minder dan 10 patiënten"]
[null,"7627",39,44,51]
[null,"7631",61,58,75]
[null,"7634",13,14,"Minder dan 10 patiënten"]
[null,"7635",11,17,21]
[null,"7636",10,13,11]
[null,"7637",10,"Minder dan 10 patiënten","Minder dan 10 patiënten"]
[null,"7638","Minder dan 10 patiënten","Minder dan 10 patiënten","Minder dan 10 patiënten"]
[null,"7641",131,148,173]
[null,"7642",107,125,125]
[null,"7645",14,20,17]
[null,"7651",159,164,181]
[null,"7661",31,33,32]
[null,"7662","Minder dan 10 patiënten","Minder dan 10 patiënten","Minder dan 10 patiënten"]
[null,"7663",11,13,"Minder dan 10 patiënten"]
[null,"7664",10,12,12]
[null,"7665",103,94,85]
[null,"7666",19,20,22]
[null,"7667",26,25,30]
[null,"7668","Minder dan 10 patiënten","Minder dan 10 patiënten","Minder dan 10 patiënten"]
[null,"7671",196,187,185]
[null,"7672",40,62,61]
[null,"7675","Minder dan 10 patiënten","Minder dan 10 patiënten","Minder dan 10 patiënten"]
[null,"7676",77,91,100]
[null,"7678",93,85,100]
[null,"7679",24,26,23]
[null,"7681",110,201,198]
[null,"7683",103,104,107]
[null,"7685",28,30,29]
[null,"7686","Minder dan 10 patiënten",12,"Minder dan 10 patiënten"]
[null,"7687","Minder dan 10 patiënten",18,24]
[null,"7688",33,42,41]
[null,"7691",75,84,73]
[null,"7692",32,27,28]
[null,"7693",21,22,22]
[null,"7694",30,34,34]
[null,"7695",18,23,22]
[null,"7696","Minder dan 10 patiënten","Minder dan 10 patiënten","Minder dan 10 patiënten"]
[null,"7701",234,228,248]
[null,"7702",13,12,16]
[null,"7705",12,"Minder dan 10 patiënten","Minder dan 10 patiënten"]
[null,"7707",54,54,68]
[null,"7711",121,104,141]
[null,"7715",13,"Minder dan 10 patiënten","Minder dan 10 patiënten"]
[null,"7721",124,142,143]
[null,"7722",111,122,129]
[null,"7731",192,217,228]
[null,"7732",null,"Minder dan 10 patiënten","Minder dan 10 patiënten"]
[null,"7734","Minder dan 10 patiënten",10,"Minder dan 10 patiënten"]
[null,"7735","Minder dan 10 patiënten","Minder dan 10 patiënten","Minder dan 10 patiënten"]
[null,"7736","Minder dan 10 patiënten","Minder dan 10 patiënten","Minder dan 10 patiënten"]
[null,"7737",10,11,"Minder dan 10 patiënten"]
[null,"7738",12,11,15]
[null,"7739","Minder dan 10 patiënten","Minder dan 10 patiënten","Minder dan 10 patiënten"]
[null,"7741",165,156,169]
[null,"7742",153,142,134]
[null,"7751",46,54,52]
[null,"7753",18,16,12]
[null,"7754","Minder dan 10 patiënten","Minder dan 10 patiënten","Minder dan 10 patiënten"]
[null,"7755","Minder dan 10 patiënten","Minder dan 10 patiënten","Minder dan 10 patiënten"]
[null,"7756","Minder dan 10 patiënten","Minder dan 10 patiënten","Minder dan 10 patiënten"]
[null,"7761",55,61,59]
[null,"7764","Minder dan 10 patiënten","Minder dan 10 patiënten","Minder dan 10 patiënten"]
[null,"7765",25,26,26]
[null,"7766",18,20,22]
[null,"7771",75,70,85]
[null,"7772",184,198,217]
[null,"7773",129,125,113]
[null,"7775",39,38,36]
[null,"7776",58,63,57]
[null,"7777",14,18,22]
[null,"7778","Minder dan 10 patiënten","Minder dan 10 patiënten","Minder dan 10 patiënten"]
[null,"7779","Minder dan 10 patiënten","Minder dan 10 patiënten","Minder dan 10 patiënten"]
[null,"7781","Minder dan 10 patiënten","Minder dan 10 patiënten","Minder dan 10 patiënten"]
[null,"7782",24,28,32]
[null,"7783",67,71,92]
[null,"7784",10,10,14]
[null,"7785","Minder dan 10 patiënten","Minder dan 10 patiënten","Minder dan 10 patiënten"]
[null,"7786","Minder dan 10 patiënten","Minder dan 10 patiënten","Minder dan 10 patiënten"]
[null,"7787","Minder dan 10 patiënten","Minder dan 10 patiënten","Minder dan 10 patiënten"]
[null,"7788","Minder dan 10 patiënten","Minder dan 10 patiënten","Minder dan 10 patiënten"]
[null,"7791","Minder dan 10 patiënten","Minder dan 10 patiënten","Minder dan 10 patiënten"]
[null,"7792","Minder dan 10 patiënten","Minder dan 10 patiënten","Minder dan 10 patiënten"]
[null,"7793","Minder dan 10 patiënten","Minder dan 10 patiënten","Minder dan 10 patiënten"]
[null,"7794","Minder dan 10 patiënten","Minder dan 10 patiënten","Minder dan 10 patiënten"]
[null,"7795","Minder dan 10 patiënten","Minder dan 10 patiënten","Minder dan 10 patiënten"]
[null,"7796",10,"Minder dan 10 patiënten","Minder dan 10 patiënten"]
[null,"7797","Minder dan 10 patiënten",12,12]
[null,"7798","Minder dan 10 patiënten","Minder dan 10 patiënten","Minder dan 10 patiënten"]
[null,"7801","Minder dan 10 patiënten","Minder dan 10 patiënten"]
[null,"7811",33,34,33]
[null,"7812",129,152,134]
[null,"7813",19,16,21]
[null,"7814",12,12,11]
[null,"7815",83,82,78]
[null,"7822",34,26,31]
[null,"7823",158,151,146]
[null,"7824",129,146,141]
[null,"7825","Minder dan 10 patiënten","Minder dan 10 patiënten","Minder dan 10 patiënten"]
[null,"7826",44,39,38]
[null,"7827",135,148,134]
[null,"7828",42,34,29]
[null,"7831",39,32,42]
[null,"7833",59,51,47]
[null,"7841",40,30,23]
[null,"7842","Minder dan 10 patiënten","Minder dan 10 patiënten","Minder dan 10 patiënten"]
[null,"7843",12,"Minder dan 10 patiënten",11]
[null,"7844",32,22,26]
[null,"7845","Minder dan 10 patiënten","Minder dan 10 patiënten","Minder dan 10 patiënten"]
[null,"7846","Minder dan 10 patiënten","Minder dan 10 patiënten","Minder dan 10 patiënten"]
[null,"7847","Minder dan 10 patiënten","Minder dan 10 patiënten","Minder dan 10 patiënten"]
[null,"7848",49,42,53]
[null,"7849","Minder dan 10 patiënten","Minder dan 10 patiënten","Minder dan 10 patiënten"]
[null,"7851","Minder dan 10 patiënten","Minder dan 10 patiënten",10]
[null,"7852","Minder dan 10 patiënten","Minder dan 10 patiënten","Minder dan 10 patiënten"]
[null,"7853","Minder dan 10 patiënten","Minder dan 10 patiënten","Minder dan 10 patiënten"]
[null,"7854",28,22,23]
[null,"7855","Minder dan 10 patiënten","Minder dan 10 patiënten","Minder dan 10 patiënten"]
[null,"7856","Minder dan 10 patiënten","Minder dan 10 patiënten","Minder dan 10 patiënten"]
[null,"7858",null,null,"Minder dan 10 patiënten"]
[null,"7859",null,null,"Minder dan 10 patiënten"]
[null,"7861",18,24,18]
[null,"7863","Minder dan 10 patiënten","Minder dan 10 patiënten","Minder dan 10 patiënten"]
[null,"7864","Minder dan 10 patiënten","Minder dan 10 patiënten","Minder dan 10 patiënten"]
[null,"7871","Minder dan 10 patiënten",10,"Minder dan 10 patiënten"]
[null,"7872",10,10,"Minder dan 10 patiënten"]
[null,"7873",24,35,27]
[null,"7874","Minder dan 10 patiënten","Minder dan 10 patiënten","Minder dan 10 patiënten"]
[null,"7875",10,11,12]
[null,"7876",48,60,59]
[null,"7877",null,"Minder dan 10 patiënten","Minder dan 10 patiënten"]
[null,"7881",77,94,85]
[null,"7884","Minder dan 10 patiënten",15,16]
[null,"7885",30,22,30]
[null,"7887",90,68,71]
[null,"7889","Minder dan 10 patiënten","Minder dan 10 patiënten","Minder dan 10 patiënten"]
[null,"7891",148,151,146]
[null,"7892","Minder dan 10 patiënten","Minder dan 10 patiënten","Minder dan 10 patiënten"]
[null,"7894",36,31,35]
[null,"7895","Minder dan 10 patiënten","Minder dan 10 patiënten",11]
[null,"7901",33,31,46]
[null,"7902",50,50,63]
[null,"7903","Minder dan 10 patiënten","Minder dan 10 patiënten","Minder dan 10 patiënten"]
[null,"7904",116,104,123]
[null,"7905",75,87,69]
[null,"7906",99,90,83]
[null,"7907",28,25,23]
[null,"7908",149,194,171]
[null,"7909",14,21,21]
[null,"7910",null,"Minder dan 10 patiënten"]
[null,"7911","Minder dan 10 patiënten","Minder dan 10 patiënten","Minder dan 10 patiënten"]
[null,"7912",11,19,18]
[null,"7913",61,65,76]
[null,"7914",27,27,28]
[null,"7915","Minder dan 10 patiënten","Minder dan 10 patiënten","Minder dan 10 patiënten"]
[null,"7916",44,40,46]
[null,"7917",25,29,31]
[null,"7918",15,16,25]
[null,"7921",63,77,97]
[null,"7924",14,14,14]
[null,"7925",10,11,"Minder dan 10 patiënten"]
[null,"7926",15,14,21]
[null,"7927","Minder dan 10 patiënten","Minder dan 10 patiënten",13]
[null,"7931","Minder dan 10 patiënten",10,"Minder dan 10 patiënten"]
[null,"7932","Minder dan 10 patiënten","Minder dan 10 patiënten","Minder dan 10 patiënten"]
[null,"7933",18,13,16]
[null,"7934","Minder dan 10 patiënten","Minder dan 10 patiënten","Minder dan 10 patiënten"]
[null,"7935",null,"Minder dan 10 patiënten"]
[null,"7936",13,10,"Minder dan 10 patiënten"]
[null,"7937",null,null,"Minder dan 10 patiënten"]
[null,"7938","Minder dan 10 patiënten",15,"Minder dan 10 patiënten"]
[null,"7941",109,95,103]
[null,"7942",131,125,139]
[null,"7943",145,144,122]
[null,"7944",300,298,248]
[null,"7946",22,20,21]
[null,"7948",58,59,52]
[null,"7949",null,"Minder dan 10 patiënten","Minder dan 10 patiënten"]
[null,"7951",132,118,142]
[null,"7954",52,51,55]
[null,"7955","Minder dan 10 patiënten","Minder dan 10 patiënten",10]
[null,"7957",27,31,32]
[null,"7958",26,35,34]
[null,"7961",50,57,64]
[null,"7963",37,39,45]
[null,"7964","Minder dan 10 patiënten","Minder dan 10 patiënten","Minder dan 10 patiënten"]
[null,"7965","Minder dan 10 patiënten",null,"Minder dan 10 patiënten"]
[null,"7966",null,"Minder dan 10 patiënten"]
[null,"7971",37,41,51]
[null,"7973","Minder dan 10 patiënten","Minder dan 10 patiënten",13]
[null,"7974","Minder dan 10 patiënten","Minder dan 10 patiënten","Minder dan 10 patiënten"]
[null,"7975",17,20,23]
[null,"7981",33,27,23]
[null,"7983","Minder dan 10 patiënten","Minder dan 10 patiënten","Minder dan 10 patiënten"]
[null,"7984","Minder dan 10 patiënten","Minder dan 10 patiënten","Minder dan 10 patiënten"]
[null,"7986","Minder dan 10 patiënten","Minder dan 10 patiënten","Minder dan 10 patiënten"]
[null,"7991",52,61,58]
[null,"8000","Minder dan 10 patiënten",11,"Minder dan 10 patiënten"]
[null,"8011",64,59,63]
[null,"8012",72,71,85]
[null,"8013",45,45,37]
[null,"8014",223,226,220]
[null,"8015",53,42,42]
[null,"8016",132,129,138]
[null,"8017",84,86,97]
[null,"8019",27,29,27]
[null,"8021",59,58,59]
[null,"8022",70,72,71]
[null,"8023",72,76,67]
[null,"8024",44,45,57]
[null,"8025","Minder dan 10 patiënten","Minder dan 10 patiënten","Minder dan 10 patiënten"]
[null,"8026",11,"Minder dan 10 patiënten","Minder dan 10 patiënten"]
[null,"8028","Minder dan 10 patiënten","Minder dan 10 patiënten","Minder dan 10 patiënten"]
[null,"8031",224,208,192]
[null,"8032",167,147,174]
[null,"8033",34,34,38]
[null,"8034",10,10,"Minder dan 10 patiënten"]
[null,"8035","Minder dan 10 patiënten","Minder dan 10 patiënten","Minder dan 10 patiënten"]
[null,"8041","Minder dan 10 patiënten","Minder dan 10 patiënten","Minder dan 10 patiënten"]
[null,"8042",90,84,107]
[null,"8043",669,681,661]
[null,"8044",25,30,53]
[null,"8051",147,157,151]
[null,"8052",36,32,33]
[null,"8055","Minder dan 10 patiënten","Minder dan 10 patiënten","Minder dan 10 patiënten"]
[null,"8061",84,58,86]
[null,"8064",77,81,58]
[null,"8066",11,11,12]
[null,"8071",127,125,142]
[null,"8072",114,108,93]
[null,"8075",71,58,53]
[null,"8076","Minder dan 10 patiënten","Minder dan 10 patiënten","Minder dan 10 patiënten"]
[null,"8077",27,16,13]
[null,"8079","Minder dan 10 patiënten","Minder dan 10 patiënten","Minder dan 10 patiënten"]
[null,"8081",157,146,164]
[null,"8082","Minder dan 10 patiënten","Minder dan 10 patiënten","Minder dan 10 patiënten"]
[null,"8084",92,104,116]
[null,"8085",43,53,49]
[null,"8091",192,157,157]
[null,"8094",17,12,16]
[null,"8095",17,17,13]
[null,"8096",62,63,61]
[null,"8097",22,26,35]
[null,"8101",140,128,131]
[null,"8102",148,148,166]
[null,"8103",156,169,161]
[null,"8105",44,38,45]
[null,"8106",29,25,26]
[null,"8107",30,24,21]
[null,"8111",81,81,59]
[null,"8112",23,22,21]
[null,"8121",158,156,154]
[null,"8124",31,27,21]
[null,"8131",134,147,151]
[null,"8141",139,137,163]
[null,"8144","Minder dan 10 patiënten","Minder dan 10 patiënten","Minder dan 10 patiënten"]
[null,"8146","Minder dan 10 patiënten","Minder dan 10 patiënten","Minder dan 10 patiënten"]
[null,"8147","Minder dan 10 patiënten","Minder dan 10 patiënten","Minder dan 10 patiënten"]
[null,"8148",31,28,23]
[null,"8151",48,40,36]
[null,"8152",39,47,56]
[null,"8153","Minder dan 10 patiënten","Minder dan 10 patiënten","Minder dan 10 patiënten"]
[null,"8154","Minder dan 10 patiënten","Minder dan 10 patiënten","Minder dan 10 patiënten"]
[null,"8161",79,93,97]
[null,"8162",127,131,134]
[null,"8166",31,41,38]
[null,"8167",34,23,27]
[null,"8171",104,120,109]
[null,"8172",85,96,84]
[null,"8181",140,132,135]
[null,"8191",84,105,106]
[null,"8193","Minder dan 10 patiënten","Minder dan 10 patiënten","Minder dan 10 patiënten"]
[null,"8194","Minder dan 10 patiënten","Minder dan 10 patiënten","Minder dan 10 patiënten"]
[null,"8196",13,"Minder dan 10 patiënten","Minder dan 10 patiënten"]
[null,"8200","Minder dan 10 patiënten","Minder dan 10 patiënten"]
[null,"8211","Minder dan 10 patiënten","Minder dan 10 patiënten","Minder dan 10 patiënten"]
[null,"8212",49,50,49]
[null,"8218","Minder dan 10 patiënten","Minder dan 10 patiënten","Minder dan 10 patiënten"]
[null,"8219",26,32,44]
[null,"8221","Minder dan 10 patiënten","Minder dan 10 patiënten"]
[null,"8222","Minder dan 10 patiënten","Minder dan 10 patiënten","Minder dan 10 patiënten"]
[null,"8223",88,73,72]
[null,"8224",76,85,95]
[null,"8225",77,108,143]
[null,"8226",135,164,180]
[null,"8231",55,67,76]
[null,"8232",83,87,114]
[null,"8233","Minder dan 10 patiënten","Minder dan 10 patiënten",11]
[null,"8239","Minder dan 10 patiënten","Minder dan 10 patiënten","Minder dan 10 patiënten"]
[null,"8241","Minder dan 10 patiënten","Minder dan 10 patiënten",13]
[null,"8242",63,76,83]
[null,"8243",112,135,148]
[null,"8244",46,58,71]
[null,"8245",63,64,66]
[null,"8251",162,177,196]
[null,"8252",68,70,90]
[null,"8253",140,141,148]
[null,"8254","Minder dan 10 patiënten","Minder dan 10 patiënten","Minder dan 10 patiënten"]
[null,"8255",83,79,83]
[null,"8256",113,97,96]
[null,"8261",51,49,39]
[null,"8262",109,125,116]
[null,"8263",10,10,"Minder dan 10 patiënten"]
[null,"8264",24,26,35]
[null,"8265",224,238,225]
[null,"8266",130,133,129]
[null,"8267",10,14,"Minder dan 10 patiënten"]
[null,"8271",222,186,188]
[null,"8274",30,29,30]
[null,"8275",11,16,21]
[null,"8276","Minder dan 10 patiënten","Minder dan 10 patiënten","Minder dan 10 patiënten"]
[null,"8277",18,17,"Minder dan 10 patiënten"]
[null,"8278",11,10,14]
[null,"8281",195,162,171]
[null,"8293","Minder dan 10 patiënten"]
[null,"8294","Minder dan 10 patiënten","Minder dan 10 patiënten","Minder dan 10 patiënten"]
[null,"8301",35,25,24]
[null,"8302",109,113,82]
[null,"8303",116,130,102]
[null,"8304",43,40,32]
[null,"8305","Minder dan 10 patiënten","Minder dan 10 patiënten","Minder dan 10 patiënten"]
[null,"8307",28,32,28]
[null,"8308",17,20,12]
[null,"8309",39,43,27]
[null,"8311","Minder dan 10 patiënten",12,12]
[null,"8312",15,14,"Minder dan 10 patiënten"]
[null,"8313",20,22,21]
[null,"8314",13,15,13]
[null,"8315",19,19,15]
[null,"8316",33,33,20]
[null,"8317",16,16,13]
[null,"8321",209,212,224]
[null,"8322",160,183,176]
[null,"8325",61,62,66]
[null,"8326",31,41,39]
[null,"8331",151,157,161]
[null,"8332",90,104,83]
[null,"8333","Minder dan 10 patiënten","Minder dan 10 patiënten",12]
[null,"8334",20,27,31]
[null,"8335","Minder dan 10 patiënten","Minder dan 10 patiënten","Minder dan 10 patiënten"]
[null,"8336",null,null,"Minder dan 10 patiënten"]
[null,"8337","Minder dan 10 patiënten","Minder dan 10 patiënten","Minder dan 10 patiënten"]
[null,"8338",12,"Minder dan 10 patiënten",14]
[null,"8339","Minder dan 10 patiënten",null,"Minder dan 10 patiënten"]
[null,"8341",41,33,35]
[null,"8342","Minder dan 10 patiënten","Minder dan 10 patiënten","Minder dan 10 patiënten"]
[null,"8343",10,11,"Minder dan 10 patiënten"]
[null,"8344","Minder dan 10 patiënten","Minder dan 10 patiënten","Minder dan 10 patiënten"]
[null,"8345","Minder dan 10 patiënten","Minder dan 10 patiënten","Minder dan 10 patiënten"]
[null,"8346","Minder dan 10 patiënten","Minder dan 10 patiënten","Minder dan 10 patiënten"]
[null,"8347","Minder dan 10 patiënten","Minder dan 10 patiënten","Minder dan 10 patiënten"]
[null,"8351","Minder dan 10 patiënten","Minder dan 10 patiënten",11]
[null,"8355",27,25,40]
[null,"8356",13,17,28]
[null,"8361",null,null,"Minder dan 10 patiënten"]
[null,"8363","Minder dan 10 patiënten","Minder dan 10 patiënten"]
[null,"8371",11,10,"Minder dan 10 patiënten"]
[null,"8372","Minder dan 10 patiënten","Minder dan 10 patiënten","Minder dan 10 patiënten"]
[null,"8373","Minder dan 10 patiënten","Minder dan 10 patiënten","Minder dan 10 patiënten"]
[null,"8374",13,14,12]
[null,"8375",51,64,50]
[null,"8376","Minder dan 10 patiënten","Minder dan 10 patiënten","Minder dan 10 patiënten"]
[null,"8377","Minder dan 10 patiënten","Minder dan 10 patiënten","Minder dan 10 patiënten"]
[null,"8378","Minder dan 10 patiënten","Minder dan 10 patiënten",10]
[null,"8381",28,27,22]
[null,"8382","Minder dan 10 patiënten","Minder dan 10 patiënten","Minder dan 10 patiënten"]
[null,"8383","Minder dan 10 patiënten",13,"Minder dan 10 patiënten"]
[null,"8384",14,16,19]
[null,"8385","Minder dan 10 patiënten","Minder dan 10 patiënten","Minder dan 10 patiënten"]
[null,"8386","Minder dan 10 patiënten","Minder dan 10 patiënten","Minder dan 10 patiënten"]
[null,"8387",null,"Minder dan 10 patiënten","Minder dan 10 patiënten"]
[null,"8388","Minder dan 10 patiënten","Minder dan 10 patiënten","Minder dan 10 patiënten"]
[null,"8389","Minder dan 10 patiënten","Minder dan 10 patiënten","Minder dan 10 patiënten"]
[null,"8391",33,40,47]
[null,"8392","Minder dan 10 patiënten",13,16]
[null,"8393","Minder dan 10 patiënten","Minder dan 10 patiënten"]
[null,"8394","Minder dan 10 patiënten","Minder dan 10 patiënten","Minder dan 10 patiënten"]
[null,"8395",17,14,"Minder dan 10 patiënten"]
[null,"8396","Minder dan 10 patiënten","Minder dan 10 patiënten","Minder dan 10 patiënten"]
[null,"8397",13,13,16]
[null,"8398",12,"Minder dan 10 patiënten","Minder dan 10 patiënten"]
[null,"8401",87,90,82]
[null,"8403",null,null,"Minder dan 10 patiënten"]
[null,"8404","Minder dan 10 patiënten","Minder dan 10 patiënten","Minder dan 10 patiënten"]
[null,"8405","Minder dan 10 patiënten","Minder dan 10 patiënten","Minder dan 10 patiënten"]
[null,"8406",11,10,15]
[null,"8407",13,13,11]
[null,"8408",10,"Minder dan 10 patiënten",13]
[null,"8409","Minder dan 10 patiënten","Minder dan 10 patiënten","Minder dan 10 patiënten"]
[null,"8411",22,32,31]
[null,"8412","Minder dan 10 patiënten",14,11]
[null,"8413","Minder dan 10 patiënten","Minder dan 10 patiënten","Minder dan 10 patiënten"]
[null,"8414",16,12,14]
[null,"8415",null,null,"Minder dan 10 patiënten"]
[null,"8421",20,19,25]
[null,"8422","Minder dan 10 patiënten","Minder dan 10 patiënten"]
[null,"8423",18,16,11]
[null,"8424","Minder dan 10 patiënten","Minder dan 10 patiënten","Minder dan 10 patiënten"]
[null,"8425","Minder dan 10 patiënten","Minder dan 10 patiënten","Minder dan 10 patiënten"]
[null,"8426",39,66,70]
[null,"8427","Minder dan 10 patiënten","Minder dan 10 patiënten","Minder dan 10 patiënten"]
[null,"8428","Minder dan 10 patiënten","Minder dan 10 patiënten","Minder dan 10 patiënten"]
[null,"8431",114,120,106]
[null,"8432","Minder dan 10 patiënten","Minder dan 10 patiënten","Minder dan 10 patiënten"]
[null,"8433",30,34,39]
[null,"8434","Minder dan 10 patiënten","Minder dan 10 patiënten","Minder dan 10 patiënten"]
[null,"8435",22,26,25]
[null,"8437","Minder dan 10 patiënten","Minder dan 10 patiënten","Minder dan 10 patiënten"]
[null,"8438","Minder dan 10 patiënten",null,"Minder dan 10 patiënten"]
[null,"8441",42,39,44]
[null,"8442",74,74,70]
[null,"8443",37,38,42]
[null,"8444","Minder dan 10 patiënten","Minder dan 10 patiënten","Minder dan 10 patiënten"]
[null,"8445","Minder dan 10 patiënten",12,"Minder dan 10 patiënten"]
[null,"8446",98,83,94]
[null,"8447",24,21,28]
[null,"8448",76,72,74]
[null,"8449","Minder dan 10 patiënten","Minder dan 10 patiënten","Minder dan 10 patiënten"]
[null,"8451",24,23,28]
[null,"8452",null,"Minder dan 10 patiënten","Minder dan 10 patiënten"]
[null,"8453","Minder dan 10 patiënten",13,10]
[null,"8454","Minder dan 10 patiënten","Minder dan 10 patiënten","Minder dan 10 patiënten"]
[null,"8455","Minder dan 10 patiënten","Minder dan 10 patiënten","Minder dan 10 patiënten"]
[null,"8456",12,11,"Minder dan 10 patiënten"]
[null,"8457","Minder dan 10 patiënten",null,"Minder dan 10 patiënten"]
[null,"8458","Minder dan 10 patiënten","Minder dan 10 patiënten","Minder dan 10 patiënten"]
[null,"8459","Minder dan 10 patiënten","Minder dan 10 patiënten","Minder dan 10 patiënten"]
[null,"8461","Minder dan 10 patiënten","Minder dan 10 patiënten",11]
[null,"8463","Minder dan 10 patiënten","Minder dan 10 patiënten","Minder dan 10 patiënten"]
[null,"8464","Minder dan 10 patiënten",10,18]
[null,"8465",20,14,23]
[null,"8466","Minder dan 10 patiënten","Minder dan 10 patiënten","Minder dan 10 patiënten"]
[null,"8467","Minder dan 10 patiënten","Minder dan 10 patiënten","Minder dan 10 patiënten"]
[null,"8468","Minder dan 10 patiënten","Minder dan 10 patiënten","Minder dan 10 patiënten"]
[null,"8469","Minder dan 10 patiënten","Minder dan 10 patiënten","Minder dan 10 patiënten"]
[null,"8471",212,198,217]
[null,"8472",41,33,34]
[null,"8474",11,12,20]
[null,"8475","Minder dan 10 patiënten","Minder dan 10 patiënten","Minder dan 10 patiënten"]
[null,"8476","Minder dan 10 patiënten","Minder dan 10 patiënten","Minder dan 10 patiënten"]
[null,"8478","Minder dan 10 patiënten","Minder dan 10 patiënten","Minder dan 10 patiënten"]
[null,"8479","Minder dan 10 patiënten","Minder dan 10 patiënten","Minder dan 10 patiënten"]
[null,"8481","Minder dan 10 patiënten","Minder dan 10 patiënten"]
[null,"8482",null,null,"Minder dan 10 patiënten"]
[null,"8483","Minder dan 10 patiënten","Minder dan 10 patiënten","Minder dan 10 patiënten"]
[null,"8484",null,"Minder dan 10 patiënten","Minder dan 10 patiënten"]
[null,"8485",10,"Minder dan 10 patiënten","Minder dan 10 patiënten"]
[null,"8486","Minder dan 10 patiënten","Minder dan 10 patiënten","Minder dan 10 patiënten"]
[null,"8487","Minder dan 10 patiënten","Minder dan 10 patiënten","Minder dan 10 patiënten"]
[null,"8488","Minder dan 10 patiënten","Minder dan 10 patiënten","Minder dan 10 patiënten"]
[null,"8489",null,null,"Minder dan 10 patiënten"]
[null,"8491",44,42,48]
[null,"8493","Minder dan 10 patiënten","Minder dan 10 patiënten","Minder dan 10 patiënten"]
[null,"8494","Minder dan 10 patiënten","Minder dan 10 patiënten",15]
[null,"8495",27,28,26]
[null,"8501",111,128,114]
[null,"8502",33,36,23]
[null,"8505","Minder dan 10 patiënten","Minder dan 10 patiënten"]
[null,"8506","Minder dan 10 patiënten","Minder dan 10 patiënten","Minder dan 10 patiënten"]
[null,"8507","Minder dan 10 patiënten","Minder dan 10 patiënten","Minder dan 10 patiënten"]
[null,"8508","Minder dan 10 patiënten","Minder dan 10 patiënten","Minder dan 10 patiënten"]
[null,"8511","Minder dan 10 patiënten",null,"Minder dan 10 patiënten"]
[null,"8512","Minder dan 10 patiënten",null,"Minder dan 10 patiënten"]
[null,"8513","Minder dan 10 patiënten","Minder dan 10 patiënten","Minder dan 10 patiënten"]
[null,"8514",null,null,"Minder dan 10 patiënten"]
[null,"8515","Minder dan 10 patiënten","Minder dan 10 patiënten"]
[null,"8516","Minder dan 10 patiënten"]
[null,"8517",10,13,10]
[null,"8521",43,43,38]
[null,"8522","Minder dan 10 patiënten",10,"Minder dan 10 patiënten"]
[null,"8523",10,"Minder dan 10 patiënten","Minder dan 10 patiënten"]
[null,"8525","Minder dan 10 patiënten",10,"Minder dan 10 patiënten"]
[null,"8526","Minder dan 10 patiënten","Minder dan 10 patiënten"]
[null,"8528",null,null,"Minder dan 10 patiënten"]
[null,"8529","Minder dan 10 patiënten","Minder dan 10 patiënten","Minder dan 10 patiënten"]
[null,"8531",86,89,94]
[null,"8532",25,25,25]
[null,"8535","Minder dan 10 patiënten","Minder dan 10 patiënten","Minder dan 10 patiënten"]
[null,"8536",19,15,12]
[null,"8537","Minder dan 10 patiënten"]
[null,"8538","Minder dan 10 patiënten","Minder dan 10 patiënten","Minder dan 10 patiënten"]
[null,"8539",15,15,16]
[null,"8541","Minder dan 10 patiënten","Minder dan 10 patiënten"]
[null,"8542","Minder dan 10 patiënten"]
[null,"8551",18,20,17]
[null,"8552","Minder dan 10 patiënten","Minder dan 10 patiënten","Minder dan 10 patiënten"]
[null,"8554","Minder dan 10 patiënten","Minder dan 10 patiënten","Minder dan 10 patiënten"]
[null,"8556",13,"Minder dan 10 patiënten","Minder dan 10 patiënten"]
[null,"8561",59,74,70]
[null,"8563","Minder dan 10 patiënten","Minder dan 10 patiënten","Minder dan 10 patiënten"]
[null,"8564","Minder dan 10 patiënten","Minder dan 10 patiënten"]
[null,"8565",13,11,"Minder dan 10 patiënten"]
[null,"8566","Minder dan 10 patiënten","Minder dan 10 patiënten","Minder dan 10 patiënten"]
[null,"8567",24,21,22]
[null,"8571",10,11,"Minder dan 10 patiënten"]
[null,"8572","Minder dan 10 patiënten","Minder dan 10 patiënten","Minder dan 10 patiënten"]
[null,"8573","Minder dan 10 patiënten","Minder dan 10 patiënten","Minder dan 10 patiënten"]
[null,"8574",19,17,17]
[null,"8581","Minder dan 10 patiënten","Minder dan 10 patiënten","Minder dan 10 patiënten"]
[null,"8582","Minder dan 10 patiënten","Minder dan 10 patiënten","Minder dan 10 patiënten"]
[null,"8584",11,13,"Minder dan 10 patiënten"]
[null,"8601",21,19,26]
[null,"8602",44,45,48]
[null,"8603",34,44,47]
[null,"8604",61,51,60]
[null,"8605",16,15,25]
[null,"8606",33,38,42]
[null,"8607",60,50,57]
[null,"8608",44,48,53]
[null,"8611","Minder dan 10 patiënten","Minder dan 10 patiënten","Minder dan 10 patiënten"]
[null,"8612","Minder dan 10 patiënten","Minder dan 10 patiënten"]
[null,"8614",13,10,10]
[null,"8615","Minder dan 10 patiënten","Minder dan 10 patiënten","Minder dan 10 patiënten"]
[null,"8616","Minder dan 10 patiënten","Minder dan 10 patiënten"]
[null,"8617","Minder dan 10 patiënten","Minder dan 10 patiënten","Minder dan 10 patiënten"]
[null,"8618","Minder dan 10 patiënten","Minder dan 10 patiënten","Minder dan 10 patiënten"]
[null,"8621",37,40,32]
[null,"8622",10,11,13]
[null,"8623","Minder dan 10 patiënten","Minder dan 10 patiënten","Minder dan 10 patiënten"]
[null,"8624","Minder dan 10 patiënten","Minder dan 10 patiënten"]
[null,"8625","Minder dan 10 patiënten","Minder dan 10 patiënten","Minder dan 10 patiënten"]
[null,"8627","Minder dan 10 patiënten","Minder dan 10 patiënten","Minder dan 10 patiënten"]
[null,"8628","Minder dan 10 patiënten","Minder dan 10 patiënten"]
[null,"8629","Minder dan 10 patiënten","Minder dan 10 patiënten",12]
[null,"8631","Minder dan 10 patiënten","Minder dan 10 patiënten"]
[null,"8632","Minder dan 10 patiënten","Minder dan 10 patiënten","Minder dan 10 patiënten"]
[null,"8633","Minder dan 10 patiënten","Minder dan 10 patiënten","Minder dan 10 patiënten"]
[null,"8635","Minder dan 10 patiënten","Minder dan 10 patiënten","Minder dan 10 patiënten"]
[null,"8636","Minder dan 10 patiënten","Minder dan 10 patiënten","Minder dan 10 patiënten"]
[null,"8637","Minder dan 10 patiënten","Minder dan 10 patiënten","Minder dan 10 patiënten"]
[null,"8642","Minder dan 10 patiënten","Minder dan 10 patiënten","Minder dan 10 patiënten"]
[null,"8644",null,"Minder dan 10 patiënten","Minder dan 10 patiënten"]
[null,"8647","Minder dan 10 patiënten","Minder dan 10 patiënten","Minder dan 10 patiënten"]
[null,"8651",33,27,22]
[null,"8658","Minder dan 10 patiënten","Minder dan 10 patiënten"]
[null,"8701",108,100,84]
[null,"8702",42,40,25]
[null,"8711",61,66,51]
[null,"8713","Minder dan 10 patiënten",10,11]
[null,"8715",10,14,19]
[null,"8721","Minder dan 10 patiënten","Minder dan 10 patiënten","Minder dan 10 patiënten"]
[null,"8722","Minder dan 10 patiënten","Minder dan 10 patiënten","Minder dan 10 patiënten"]
[null,"8723",35,51,60]
[null,"8724","Minder dan 10 patiënten","Minder dan 10 patiënten","Minder dan 10 patiënten"]
[null,"8731",30,24,18]
[null,"8732","Minder dan 10 patiënten",null,"Minder dan 10 patiënten"]
[null,"8734",18,"Minder dan 10 patiënten",17]
[null,"8735","Minder dan 10 patiënten","Minder dan 10 patiënten","Minder dan 10 patiënten"]
[null,"8736","Minder dan 10 patiënten","Minder dan 10 patiënten","Minder dan 10 patiënten"]
[null,"8737","Minder dan 10 patiënten","Minder dan 10 patiënten","Minder dan 10 patiënten"]
[null,"8741","Minder dan 10 patiënten","Minder dan 10 patiënten","Minder dan 10 patiënten"]
[null,"8742","Minder dan 10 patiënten","Minder dan 10 patiënten","Minder dan 10 patiënten"]
[null,"8743","Minder dan 10 patiënten","Minder dan 10 patiënten","Minder dan 10 patiënten"]
[null,"8744","Minder dan 10 patiënten","Minder dan 10 patiënten","Minder dan 10 patiënten"]
[null,"8746","Minder dan 10 patiënten","Minder dan 10 patiënten","Minder dan 10 patiënten"]
[null,"8747","Minder dan 10 patiënten","Minder dan 10 patiënten","Minder dan 10 patiënten"]
[null,"8748",31,25,21]
[null,"8749","Minder dan 10 patiënten","Minder dan 10 patiënten",10]
[null,"8751","Minder dan 10 patiënten",null,"Minder dan 10 patiënten"]
[null,"8754",47,45,44]
[null,"8755",null,"Minder dan 10 patiënten","Minder dan 10 patiënten"]
[null,"8757","Minder dan 10 patiënten","Minder dan 10 patiënten","Minder dan 10 patiënten"]
[null,"8758","Minder dan 10 patiënten",null,"Minder dan 10 patiënten"]
[null,"8759","Minder dan 10 patiënten","Minder dan 10 patiënten","Minder dan 10 patiënten"]
[null,"8761","Minder dan 10 patiënten","Minder dan 10 patiënten","Minder dan 10 patiënten"]
[null,"8762","Minder dan 10 patiënten","Minder dan 10 patiënten","Minder dan 10 patiënten"]
[null,"8763","Minder dan 10 patiënten","Minder dan 10 patiënten","Minder dan 10 patiënten"]
[null,"8764","Minder dan 10 patiënten","Minder dan 10 patiënten","Minder dan 10 patiënten"]
[null,"8765",12,"Minder dan 10 patiënten","Minder dan 10 patiënten"]
[null,"8771",16,"Minder dan 10 patiënten","Minder dan 10 patiënten"]
[null,"8772","Minder dan 10 patiënten"]
[null,"8773","Minder dan 10 patiënten","Minder dan 10 patiënten","Minder dan 10 patiënten"]
[null,"8774","Minder dan 10 patiënten","Minder dan 10 patiënten","Minder dan 10 patiënten"]
[null,"8775","Minder dan 10 patiënten","Minder dan 10 patiënten","Minder dan 10 patiënten"]
[null,"8801",77,87,107]
[null,"8802",85,82,102]
[null,"8804","Minder dan 10 patiënten",12,20]
[null,"8805","Minder dan 10 patiënten",null,"Minder dan 10 patiënten"]
[null,"8806","Minder dan 10 patiënten","Minder dan 10 patiënten","Minder dan 10 patiënten"]
[null,"8807","Minder dan 10 patiënten","Minder dan 10 patiënten","Minder dan 10 patiënten"]
[null,"8808","Minder dan 10 patiënten","Minder dan 10 patiënten","Minder dan 10 patiënten"]
[null,"8809","Minder dan 10 patiënten"]
[null,"8811","Minder dan 10 patiënten","Minder dan 10 patiënten","Minder dan 10 patiënten"]
[null,"8812","Minder dan 10 patiënten","Minder dan 10 patiënten","Minder dan 10 patiënten"]
[null,"8813","Minder dan 10 patiënten","Minder dan 10 patiënten","Minder dan 10 patiënten"]
[null,"8814",null,"Minder dan 10 patiënten"]
[null,"8816","Minder dan 10 patiënten","Minder dan 10 patiënten","Minder dan 10 patiënten"]
[null,"8821","Minder dan 10 patiënten","Minder dan 10 patiënten","Minder dan 10 patiënten"]
[null,"8822",12,14,18]
[null,"8823","Minder dan 10 patiënten","Minder dan 10 patiënten","Minder dan 10 patiënten"]
[null,"8831",19,12,11]
[null,"8832","Minder dan 10 patiënten","Minder dan 10 patiënten","Minder dan 10 patiënten"]
[null,"8833","Minder dan 10 patiënten","Minder dan 10 patiënten","Minder dan 10 patiënten"]
[null,"8834","Minder dan 10 patiënten","Minder dan 10 patiënten","Minder dan 10 patiënten"]
[null,"8835","Minder dan 10 patiënten","Minder dan 10 patiënten","Minder dan 10 patiënten"]
[null,"8841",null,"Minder dan 10 patiënten","Minder dan 10 patiënten"]
[null,"8842","Minder dan 10 patiënten","Minder dan 10 patiënten","Minder dan 10 patiënten"]
[null,"8843","Minder dan 10 patiënten","Minder dan 10 patiënten","Minder dan 10 patiënten"]
[null,"8844",null,null,"Minder dan 10 patiënten"]
[null,"8845","Minder dan 10 patiënten","Minder dan 10 patiënten","Minder dan 10 patiënten"]
[null,"8851",12,15,26]
[null,"8852",null,"Minder dan 10 patiënten"]
[null,"8854","Minder dan 10 patiënten","Minder dan 10 patiënten","Minder dan 10 patiënten"]
[null,"8855",11,11,21]
[null,"8856",null,"Minder dan 10 patiënten"]
[null,"8857","Minder dan 10 patiënten","Minder dan 10 patiënten","Minder dan 10 patiënten"]
[null,"8861",54,81,69]
[null,"8862",121,138,136]
[null,"8872","Minder dan 10 patiënten","Minder dan 10 patiënten","Minder dan 10 patiënten"]
[null,"8881",17,25,29]
[null,"8882","Minder dan 10 patiënten","Minder dan 10 patiënten"]
[null,"8883",null,"Minder dan 10 patiënten","Minder dan 10 patiënten"]
[null,"8884",null,"Minder dan 10 patiënten","Minder dan 10 patiënten"]
[null,"8888",84,87,31]
[null,"8891",10,15,11]
[null,"8892",null,"Minder dan 10 patiënten","Minder dan 10 patiënten"]
[null,"8893","Minder dan 10 patiënten",null,"Minder dan 10 patiënten"]
[null,"8895","Minder dan 10 patiënten","Minder dan 10 patiënten","Minder dan 10 patiënten"]
[null,"8896",10,"Minder dan 10 patiënten","Minder dan 10 patiënten"]
[null,"8897","Minder dan 10 patiënten","Minder dan 10 patiënten","Minder dan 10 patiënten"]
[null,"8899","Minder dan 10 patiënten",12,10]
[null,"8901","Minder dan 10 patiënten","Minder dan 10 patiënten","Minder dan 10 patiënten"]
[null,"8903",null,null,"Minder dan 10 patiënten"]
[null,"8911",37,31,30]
[null,"8913",55,62,63]
[null,"8914","Minder dan 10 patiënten","Minder dan 10 patiënten","Minder dan 10 patiënten"]
[null,"8915",70,70,63]
[null,"8916",41,46,52]
[null,"8917",44,51,36]
[null,"8918",105,132,116]
[null,"8919","Minder dan 10 patiënten","Minder dan 10 patiënten","Minder dan 10 patiënten"]
[null,"8921",90,111,106]
[null,"8922",28,44,49]
[null,"8923",62,70,63]
[null,"8924",58,48,54]
[null,"8925",59,64,72]
[null,"8926",73,81,91]
[null,"8927","Minder dan 10 patiënten","Minder dan 10 patiënten","Minder dan 10 patiënten"]
[null,"8931",33,33,34]
[null,"8932",76,80,80]
[null,"8933",48,51,42]
[null,"8934",21,21,23]
[null,"8935",55,54,62]
[null,"8936","Minder dan 10 patiënten",10,12]
[null,"8937",32,43,33]
[null,"8938","Minder dan 10 patiënten"]
[null,"8939",93,92,82]
[null,"8941",29,25,35]
[null,"9001",64,57,61]
[null,"9003","Minder dan 10 patiënten",10,"Minder dan 10 patiënten"]
[null,"9005",19,14,14]
[null,"9006","Minder dan 10 patiënten","Minder dan 10 patiënten","Minder dan 10 patiënten"]
[null,"9007","Minder dan 10 patiënten"]
[null,"9008",13,15,19]
[null,"9009","Minder dan 10 patiënten","Minder dan 10 patiënten","Minder dan 10 patiënten"]
[null,"9011",14,16,17]
[null,"9012","Minder dan 10 patiënten","Minder dan 10 patiënten","Minder dan 10 patiënten"]
[null,"9013","Minder dan 10 patiënten","Minder dan 10 patiënten","Minder dan 10 patiënten"]
[null,"9014","Minder dan 10 patiënten","Minder dan 10 patiënten","Minder dan 10 patiënten"]
[null,"9021","Minder dan 10 patiënten","Minder dan 10 patiënten","Minder dan 10 patiënten"]
[null,"9022",10,"Minder dan 10 patiënten",14]
[null,"9023","Minder dan 10 patiënten","Minder dan 10 patiënten","Minder dan 10 patiënten"]
[null,"9024","Minder dan 10 patiënten","Minder dan 10 patiënten","Minder dan 10 patiënten"]
[null,"9025",null,"Minder dan 10 patiënten","Minder dan 10 patiënten"]
[null,"9026","Minder dan 10 patiënten","Minder dan 10 patiënten","Minder dan 10 patiënten"]
[null,"9027","Minder dan 10 patiënten"]
[null,"9031","Minder dan 10 patiënten","Minder dan 10 patiënten","Minder dan 10 patiënten"]
[null,"9032",null,"Minder dan 10 patiënten","Minder dan 10 patiënten"]
[null,"9033",10,14,10]
[null,"9034",14,15,"Minder dan 10 patiënten"]
[null,"9035",47,43,48]
[null,"9036",32,39,45]
[null,"9037","Minder dan 10 patiënten","Minder dan 10 patiënten","Minder dan 10 patiënten"]
[null,"9038","Minder dan 10 patiënten","Minder dan 10 patiënten","Minder dan 10 patiënten"]
[null,"9041",29,32,33]
[null,"9043","Minder dan 10 patiënten","Minder dan 10 patiënten"]
[null,"9044","Minder dan 10 patiënten","Minder dan 10 patiënten","Minder dan 10 patiënten"]
[null,"9045","Minder dan 10 patiënten","Minder dan 10 patiënten","Minder dan 10 patiënten"]
[null,"9047",23,18,18]
[null,"9051",99,101,103]
[null,"9053","Minder dan 10 patiënten","Minder dan 10 patiënten","Minder dan 10 patiënten"]
[null,"9054","Minder dan 10 patiënten","Minder dan 10 patiënten",11]
[null,"9055",11,13,14]
[null,"9056","Minder dan 10 patiënten","Minder dan 10 patiënten","Minder dan 10 patiënten"]
[null,"9057","Minder dan 10 patiënten","Minder dan 10 patiënten","Minder dan 10 patiënten"]
[null,"9061",43,29,28]
[null,"9062",18,25,21]
[null,"9063",11,"Minder dan 10 patiënten",10]
[null,"9064","Minder dan 10 patiënten","Minder dan 10 patiënten","Minder dan 10 patiënten"]
[null,"9067","Minder dan 10 patiënten","Minder dan 10 patiënten","Minder dan 10 patiënten"]
[null,"9071","Minder dan 10 patiënten","Minder dan 10 patiënten","Minder dan 10 patiënten"]
[null,"9072","Minder dan 10 patiënten","Minder dan 10 patiënten",10]
[null,"9073",26,32,32]
[null,"9074",49,44,51]
[null,"9075","Minder dan 10 patiënten","Minder dan 10 patiënten","Minder dan 10 patiënten"]
[null,"9076",70,62,54]
[null,"9077",10,"Minder dan 10 patiënten",12]
[null,"9078",13,10,"Minder dan 10 patiënten"]
[null,"9079",22,29,23]
[null,"9081","Minder dan 10 patiënten","Minder dan 10 patiënten","Minder dan 10 patiënten"]
[null,"9082",null,"Minder dan 10 patiënten","Minder dan 10 patiënten"]
[null,"9083","Minder dan 10 patiënten","Minder dan 10 patiënten"]
[null,"9084",32,30,30]
[null,"9086",null,"Minder dan 10 patiënten","Minder dan 10 patiënten"]
[null,"9088",20,18,25]
[null,"9089",13,11,"Minder dan 10 patiënten"]
[null,"9091",null,"Minder dan 10 patiënten","Minder dan 10 patiënten"]
[null,"9101",138,137,170]
[null,"9102",13,22,24]
[null,"9103",69,63,52]
[null,"9104",138,143,138]
[null,"9105",25,22,19]
[null,"9106",null,"Minder dan 10 patiënten","Minder dan 10 patiënten"]
[null,"9107",null,"Minder dan 10 patiënten","Minder dan 10 patiënten"]
[null,"9108",20,26,33]
[null,"9109","Minder dan 10 patiënten","Minder dan 10 patiënten","Minder dan 10 patiënten"]
[null,"9111","Minder dan 10 patiënten",11,12]
[null,"9112",12,12,13]
[null,"9113",16,20,21]
[null,"9114",15,22,22]
[null,"9121","Minder dan 10 patiënten","Minder dan 10 patiënten","Minder dan 10 patiënten"]
[null,"9122","Minder dan 10 patiënten"]
[null,"9123",19,17,21]
[null,"9124",null,null,"Minder dan 10 patiënten"]
[null,"9125","Minder dan 10 patiënten","Minder dan 10 patiënten","Minder dan 10 patiënten"]
[null,"9131",10,"Minder dan 10 patiënten","Minder dan 10 patiënten"]
[null,"9132",11,"Minder dan 10 patiënten","Minder dan 10 patiënten"]
[null,"9133",17,19,18]
[null,"9134","Minder dan 10 patiënten","Minder dan 10 patiënten","Minder dan 10 patiënten"]
[null,"9135","Minder dan 10 patiënten","Minder dan 10 patiënten","Minder dan 10 patiënten"]
[null,"9136","Minder dan 10 patiënten","Minder dan 10 patiënten","Minder dan 10 patiënten"]
[null,"9137",18,21,19]
[null,"9138","Minder dan 10 patiënten","Minder dan 10 patiënten","Minder dan 10 patiënten"]
[null,"9141","Minder dan 10 patiënten","Minder dan 10 patiënten","Minder dan 10 patiënten"]
[null,"9142","Minder dan 10 patiënten","Minder dan 10 patiënten","Minder dan 10 patiënten"]
[null,"9143","Minder dan 10 patiënten","Minder dan 10 patiënten","Minder dan 10 patiënten"]
[null,"9144","Minder dan 10 patiënten","Minder dan 10 patiënten","Minder dan 10 patiënten"]
[null,"9145",28,26,28]
[null,"9146","Minder dan 10 patiënten","Minder dan 10 patiënten","Minder dan 10 patiënten"]
[null,"9147","Minder dan 10 patiënten","Minder dan 10 patiënten","Minder dan 10 patiënten"]
[null,"9148","Minder dan 10 patiënten","Minder dan 10 patiënten","Minder dan 10 patiënten"]
[null,"9151",26,17,19]
[null,"9152","Minder dan 10 patiënten","Minder dan 10 patiënten"]
[null,"9153","Minder dan 10 patiënten",null,"Minder dan 10 patiënten"]
[null,"9154","Minder dan 10 patiënten","Minder dan 10 patiënten","Minder dan 10 patiënten"]
[null,"9155","Minder dan 10 patiënten","Minder dan 10 patiënten","Minder dan 10 patiënten"]
[null,"9156","Minder dan 10 patiënten","Minder dan 10 patiënten","Minder dan 10 patiënten"]
[null,"9161",24,17,14]
[null,"9162","Minder dan 10 patiënten","Minder dan 10 patiënten","Minder dan 10 patiënten"]
[null,"9163","Minder dan 10 patiënten","Minder dan 10 patiënten","Minder dan 10 patiënten"]
[null,"9164","Minder dan 10 patiënten","Minder dan 10 patiënten","Minder dan 10 patiënten"]
[null,"9166",18,19,13]
[null,"9171",12,15,15]
[null,"9172",25,26,22]
[null,"9173","Minder dan 10 patiënten","Minder dan 10 patiënten","Minder dan 10 patiënten"]
[null,"9174","Minder dan 10 patiënten","Minder dan 10 patiënten"]
[null,"9175","Minder dan 10 patiënten","Minder dan 10 patiënten","Minder dan 10 patiënten"]
[null,"9176","Minder dan 10 patiënten","Minder dan 10 patiënten","Minder dan 10 patiënten"]
[null,"9177","Minder dan 10 patiënten","Minder dan 10 patiënten","Minder dan 10 patiënten"]
[null,"9178","Minder dan 10 patiënten","Minder dan 10 patiënten","Minder dan 10 patiënten"]
[null,"9201",122,121,122]
[null,"9202",122,121,126]
[null,"9203",90,95,78]
[null,"9204",116,116,112]
[null,"9205",53,62,55]
[null,"9206","Minder dan 10 patiënten","Minder dan 10 patiënten"]
[null,"9207",67,80,71]
[null,"9211",null,"Minder dan 10 patiënten","Minder dan 10 patiënten"]
[null,"9212",12,15,22]
[null,"9213","Minder dan 10 patiënten","Minder dan 10 patiënten","Minder dan 10 patiënten"]
[null,"9214",null,null,"Minder dan 10 patiënten"]
[null,"9215","Minder dan 10 patiënten","Minder dan 10 patiënten","Minder dan 10 patiënten"]
[null,"9216",26,33,27]
[null,"9217",11,"Minder dan 10 patiënten","Minder dan 10 patiënten"]
[null,"9218",21,21,20]
[null,"9219","Minder dan 10 patiënten","Minder dan 10 patiënten","Minder dan 10 patiënten"]
[null,"9221",20,17,17]
[null,"9222",11,13,10]
[null,"9223",14,15,10]
[null,"9231",49,53,45]
[null,"9233","Minder dan 10 patiënten",10,14]
[null,"9241",20,27,22]
[null,"9243",15,19,20]
[null,"9244",27,29,32]
[null,"9245",23,28,31]
[null,"9246","Minder dan 10 patiënten",null,"Minder dan 10 patiënten"]
[null,"9247",59,49,42]
[null,"9248",16,23,12]
[null,"9249","Minder dan 10 patiënten","Minder dan 10 patiënten","Minder dan 10 patiënten"]
[null,"9251",99,94,91]
[null,"9254",62,66,64]
[null,"9255",23,23,23]
[null,"9256","Minder dan 10 patiënten",15,17]
[null,"9257",34,28,27]
[null,"9258",16,11,"Minder dan 10 patiënten"]
[null,"9261",17,15,18]
[null,"9262",13,15,13]
[null,"9263",21,18,19]
[null,"9264","Minder dan 10 patiënten","Minder dan 10 patiënten","Minder dan 10 patiënten"]
[null,"9265","Minder dan 10 patiënten","Minder dan 10 patiënten","Minder dan 10 patiënten"]
[null,"9269",68,74,62]
[null,"9271",116,117,114]
[null,"9281",62,56,61]
[null,"9283","Minder dan 10 patiënten","Minder dan 10 patiënten","Minder dan 10 patiënten"]
[null,"9284",14,17,16]
[null,"9285",76,82,97]
[null,"9286",14,11,17]
[null,"9287",39,41,48]
[null,"9288",47,45,38]
[null,"9289",23,17,16]
[null,"9291",41,50,60]
[null,"9292","Minder dan 10 patiënten",null,"Minder dan 10 patiënten"]
[null,"9293","Minder dan 10 patiënten","Minder dan 10 patiënten","Minder dan 10 patiënten"]
[null,"9294",16,12,10]
[null,"9295",15,16,12]
[null,"9296","Minder dan 10 patiënten","Minder dan 10 patiënten","Minder dan 10 patiënten"]
[null,"9297",null,null,"Minder dan 10 patiënten"]
[null,"9298",56,74,78]
[null,"9299",17,13,11]
[null,"9301",147,143,148]
[null,"9302",45,51,56]
[null,"9304","Minder dan 10 patiënten","Minder dan 10 patiënten","Minder dan 10 patiënten"]
[null,"9305","Minder dan 10 patiënten","Minder dan 10 patiënten","Minder dan 10 patiënten"]
[null,"9307","Minder dan 10 patiënten","Minder dan 10 patiënten","Minder dan 10 patiënten"]
[null,"9311",26,16,18]
[null,"9312","Minder dan 10 patiënten",10,"Minder dan 10 patiënten"]
[null,"9313","Minder dan 10 patiënten"]
[null,"9314","Minder dan 10 patiënten",null,"Minder dan 10 patiënten"]
[null,"9315","Minder dan 10 patiënten","Minder dan 10 patiënten","Minder dan 10 patiënten"]
[null,"9321",56,56,69]
[null,"9331",46,39,39]
[null,"9333","Minder dan 10 patiënten","Minder dan 10 patiënten","Minder dan 10 patiënten"]
[null,"9335",null,"Minder dan 10 patiënten","Minder dan 10 patiënten"]
[null,"9336",null,null,"Minder dan 10 patiënten"]
[null,"9337","Minder dan 10 patiënten","Minder dan 10 patiënten","Minder dan 10 patiënten"]
[null,"9341","Minder dan 10 patiënten",11,12]
[null,"9342","Minder dan 10 patiënten",13,13]
[null,"9343","Minder dan 10 patiënten","Minder dan 10 patiënten","Minder dan 10 patiënten"]
[null,"9351",147,130,147]
[null,"9354",27,27,19]
[null,"9355","Minder dan 10 patiënten","Minder dan 10 patiënten","Minder dan 10 patiënten"]
[null,"9356",55,49,36]
[null,"9359","Minder dan 10 patiënten","Minder dan 10 patiënten"]
[null,"9361","Minder dan 10 patiënten","Minder dan 10 patiënten","Minder dan 10 patiënten"]
[null,"9362","Minder dan 10 patiënten","Minder dan 10 patiënten","Minder dan 10 patiënten"]
[null,"9363",51,56,69]
[null,"9364","Minder dan 10 patiënten","Minder dan 10 patiënten","Minder dan 10 patiënten"]
[null,"9365","Minder dan 10 patiënten","Minder dan 10 patiënten","Minder dan 10 patiënten"]
[null,"9366",null,null,"Minder dan 10 patiënten"]
[null,"9367","Minder dan 10 patiënten",11,15]
[null,"9400","Minder dan 10 patiënten","Minder dan 10 patiënten",10]
[null,"9401",57,54,49]
[null,"9402",106,130,127]
[null,"9403",191,205,186]
[null,"9404",52,65,58]
[null,"9405",80,88,80]
[null,"9406",162,164,141]
[null,"9407",97,114,109]
[null,"9408",190,221,222]
[null,"9409","Minder dan 10 patiënten","Minder dan 10 patiënten","Minder dan 10 patiënten"]
[null,"9411",94,88,80]
[null,"9412","Minder dan 10 patiënten","Minder dan 10 patiënten","Minder dan 10 patiënten"]
[null,"9413",20,16,19]
[null,"9414",11,15,10]
[null,"9415",16,11,"Minder dan 10 patiënten"]
[null,"9416","Minder dan 10 patiënten","Minder dan 10 patiënten","Minder dan 10 patiënten"]
[null,"9417","Minder dan 10 patiënten","Minder dan 10 patiënten","Minder dan 10 patiënten"]
[null,"9418","Minder dan 10 patiënten",10,11]
[null,"9419","Minder dan 10 patiënten","Minder dan 10 patiënten","Minder dan 10 patiënten"]
[null,"9421",43,37,48]
[null,"9422",72,69,64]
[null,"9423",24,19,19]
[null,"9431",53,61,51]
[null,"9433","Minder dan 10 patiënten","Minder dan 10 patiënten","Minder dan 10 patiënten"]
[null,"9435","Minder dan 10 patiënten","Minder dan 10 patiënten"]
[null,"9436","Minder dan 10 patiënten","Minder dan 10 patiënten","Minder dan 10 patiënten"]
[null,"9438",null,"Minder dan 10 patiënten","Minder dan 10 patiënten"]
[null,"9439","Minder dan 10 patiënten","Minder dan 10 patiënten","Minder dan 10 patiënten"]
[null,"9441","Minder dan 10 patiënten","Minder dan 10 patiënten","Minder dan 10 patiënten"]
[null,"9442","Minder dan 10 patiënten","Minder dan 10 patiënten","Minder dan 10 patiënten"]
[null,"9443",null,"Minder dan 10 patiënten","Minder dan 10 patiënten"]
[null,"9444","Minder dan 10 patiënten","Minder dan 10 patiënten",13]
[null,"9446","Minder dan 10 patiënten","Minder dan 10 patiënten"]
[null,"9447",null,"Minder dan 10 patiënten","Minder dan 10 patiënten"]
[null,"9448",null,null,"Minder dan 10 patiënten"]
[null,"9449","Minder dan 10 patiënten","Minder dan 10 patiënten","Minder dan 10 patiënten"]
[null,"9451",43,47,29]
[null,"9453","Minder dan 10 patiënten","Minder dan 10 patiënten","Minder dan 10 patiënten"]
[null,"9454","Minder dan 10 patiënten","Minder dan 10 patiënten","Minder dan 10 patiënten"]
[null,"9457","Minder dan 10 patiënten","Minder dan 10 patiënten"]
[null,"9458","Minder dan 10 patiënten","Minder dan 10 patiënten","Minder dan 10 patiënten"]
[null,"9461",51,46,46]
[null,"9462",12,10,11]
[null,"9463",15,13,12]
[null,"9465","Minder dan 10 patiënten","Minder dan 10 patiënten","Minder dan 10 patiënten"]
[null,"9466","Minder dan 10 patiënten","Minder dan 10 patiënten","Minder dan 10 patiënten"]
[null,"9467","Minder dan 10 patiënten","Minder dan 10 patiënten","Minder dan 10 patiënten"]
[null,"9468",40,34,24]
[null,"9469","Minder dan 10 patiënten","Minder dan 10 patiënten",10]
[null,"9471",50,60,48]
[null,"9472",44,36,43]
[null,"9473","Minder dan 10 patiënten","Minder dan 10 patiënten","Minder dan 10 patiënten"]
[null,"9474",null,"Minder dan 10 patiënten","Minder dan 10 patiënten"]
[null,"9475","Minder dan 10 patiënten",null,"Minder dan 10 patiënten"]
[null,"9479","Minder dan 10 patiënten","Minder dan 10 patiënten","Minder dan 10 patiënten"]
[null,"9481",47,33,37]
[null,"9482",19,31,23]
[null,"9483","Minder dan 10 patiënten","Minder dan 10 patiënten","Minder dan 10 patiënten"]
[null,"9484","Minder dan 10 patiënten"]
[null,"9485","Minder dan 10 patiënten",null,"Minder dan 10 patiënten"]
[null,"9487","Minder dan 10 patiënten","Minder dan 10 patiënten"]
[null,"9488","Minder dan 10 patiënten"]
[null,"9489","Minder dan 10 patiënten","Minder dan 10 patiënten","Minder dan 10 patiënten"]
[null,"9491",11,13,10]
[null,"9492","Minder dan 10 patiënten","Minder dan 10 patiënten","Minder dan 10 patiënten"]
[null,"9493","Minder dan 10 patiënten","Minder dan 10 patiënten","Minder dan 10 patiënten"]
[null,"9494",13,"Minder dan 10 patiënten","Minder dan 10 patiënten"]
[null,"9496","Minder dan 10 patiënten","Minder dan 10 patiënten","Minder dan 10 patiënten"]
[null,"9497","Minder dan 10 patiënten","Minder dan 10 patiënten","Minder dan 10 patiënten"]
[null,"9501",143,137,128]
[null,"9502",51,55,74]
[null,"9503",58,41,54]
[null,"9511",14,"Minder dan 10 patiënten","Minder dan 10 patiënten"]
[null,"9512","Minder dan 10 patiënten",null,"Minder dan 10 patiënten"]
[null,"9514",13,12,21]
[null,"9515","Minder dan 10 patiënten","Minder dan 10 patiënten","Minder dan 10 patiënten"]
[null,"9521",77,82,66]
[null,"9523","Minder dan 10 patiënten","Minder dan 10 patiënten","Minder dan 10 patiënten"]
[null,"9524","Minder dan 10 patiënten","Minder dan 10 patiënten","Minder dan 10 patiënten"]
[null,"9525","Minder dan 10 patiënten","Minder dan 10 patiënten","Minder dan 10 patiënten"]
[null,"9526","Minder dan 10 patiënten","Minder dan 10 patiënten","Minder dan 10 patiënten"]
[null,"9527","Minder dan 10 patiënten","Minder dan 10 patiënten"]
[null,"9528","Minder dan 10 patiënten","Minder dan 10 patiënten","Minder dan 10 patiënten"]
[null,"9531",58,56,55]
[null,"9533","Minder dan 10 patiënten","Minder dan 10 patiënten","Minder dan 10 patiënten"]
[null,"9534","Minder dan 10 patiënten",null,"Minder dan 10 patiënten"]
[null,"9536","Minder dan 10 patiënten",null,"Minder dan 10 patiënten"]
[null,"9537","Minder dan 10 patiënten","Minder dan 10 patiënten","Minder dan 10 patiënten"]
[null,"9541",27,22,19]
[null,"9545","Minder dan 10 patiënten","Minder dan 10 patiënten","Minder dan 10 patiënten"]
[null,"9551",15,10,15]
[null,"9561",132,144,142]
[null,"9563",25,24,22]
[null,"9564","Minder dan 10 patiënten",null,"Minder dan 10 patiënten"]
[null,"9566","Minder dan 10 patiënten","Minder dan 10 patiënten","Minder dan 10 patiënten"]
[null,"9571",29,35,30]
[null,"9573","Minder dan 10 patiënten","Minder dan 10 patiënten","Minder dan 10 patiënten"]
[null,"9581",120,112,109]
[null,"9584",17,20,15]
[null,"9585","Minder dan 10 patiënten",null,"Minder dan 10 patiënten"]
[null,"9591",28,28,22]
[null,"9601",93,89,106]
[null,"9602",257,261,257]
[null,"9603",43,53,52]
[null,"9605",12,12,16]
[null,"9606",18,16,16]
[null,"9607",23,25,35]
[null,"9608","Minder dan 10 patiënten","Minder dan 10 patiënten","Minder dan 10 patiënten"]
[null,"9611",100,96,99]
[null,"9613","Minder dan 10 patiënten","Minder dan 10 patiënten",10]
[null,"9614",null,null,"Minder dan 10 patiënten"]
[null,"9615",16,15,14]
[null,"9616","Minder dan 10 patiënten","Minder dan 10 patiënten","Minder dan 10 patiënten"]
[null,"9617",40,46,50]
[null,"9618","Minder dan 10 patiënten"]
[null,"9619","Minder dan 10 patiënten","Minder dan 10 patiënten","Minder dan 10 patiënten"]
[null,"9621",25,30,29]
[null,"9622",null,null,"Minder dan 10 patiënten"]
[null,"9623","Minder dan 10 patiënten","Minder dan 10 patiënten","Minder dan 10 patiënten"]
[null,"9624","Minder dan 10 patiënten","Minder dan 10 patiënten"]
[null,"9625",11,"Minder dan 10 patiënten","Minder dan 10 patiënten"]
[null,"9626",16,23,30]
[null,"9627","Minder dan 10 patiënten","Minder dan 10 patiënten",10]
[null,"9628",43,51,41]
[null,"9629","Minder dan 10 patiënten","Minder dan 10 patiënten","Minder dan 10 patiënten"]
[null,"9631","Minder dan 10 patiënten","Minder dan 10 patiënten","Minder dan 10 patiënten"]
[null,"9632",null,"Minder dan 10 patiënten","Minder dan 10 patiënten"]
[null,"9633","Minder dan 10 patiënten","Minder dan 10 patiënten"]
[null,"9635",30,31,21]
[null,"9636",44,42,41]
[null,"9641",69,83,87]
[null,"9642",119,118,98]
[null,"9644",16,13,11]
[null,"9645",71,61,78]
[null,"9646",31,28,22]
[null,"9648",48,70,75]
[null,"9649",61,55,57]
[null,"9651",10,16,"Minder dan 10 patiënten"]
[null,"9654","Minder dan 10 patiënten","Minder dan 10 patiënten","Minder dan 10 patiënten"]
[null,"9655",null,null,"Minder dan 10 patiënten"]
[null,"9656","Minder dan 10 patiënten"]
[null,"9657","Minder dan 10 patiënten","Minder dan 10 patiënten","Minder dan 10 patiënten"]
[null,"9658","Minder dan 10 patiënten","Minder dan 10 patiënten","Minder dan 10 patiënten"]
[null,"9659","Minder dan 10 patiënten","Minder dan 10 patiënten","Minder dan 10 patiënten"]
[null,"9661",12,13,16]
[null,"9663",59,49,49]
[null,"9665",76,85,98]
[null,"9671",22,23,25]
[null,"9672","Minder dan 10 patiënten","Minder dan 10 patiënten","Minder dan 10 patiënten"]
[null,"9673",36,33,39]
[null,"9674",26,22,33]
[null,"9675",62,70,79]
[null,"9677",12,20,17]
[null,"9678",21,21,16]
[null,"9679",56,58,68]
[null,"9681",25,35,29]
[null,"9682","Minder dan 10 patiënten","Minder dan 10 patiënten","Minder dan 10 patiënten"]
[null,"9684",17,21,27]
[null,"9685",null,"Minder dan 10 patiënten","Minder dan 10 patiënten"]
[null,"9686",18,25,36]
[null,"9687","Minder dan 10 patiënten","Minder dan 10 patiënten","Minder dan 10 patiënten"]
[null,"9688","Minder dan 10 patiënten","Minder dan 10 patiënten","Minder dan 10 patiënten"]
[null,"9693",18,22,25]
[null,"9695",29,33,40]
[null,"9697",28,23,25]
[null,"9698","Minder dan 10 patiënten","Minder dan 10 patiënten",10]
[null,"9699","Minder dan 10 patiënten","Minder dan 10 patiënten","Minder dan 10 patiënten"]
[null,"9701","Minder dan 10 patiënten","Minder dan 10 patiënten","Minder dan 10 patiënten"]
[null,"9702","Minder dan 10 patiënten","Minder dan 10 patiënten","Minder dan 10 patiënten"]
[null,"9711",30,50,48]
[null,"9712",57,67,58]
[null,"9713",94,115,124]
[null,"9714",37,35,36]
[null,"9715",93,91,79]
[null,"9716",42,36,35]
[null,"9717",49,53,47]
[null,"9718",45,51,58]
[null,"9721",117,107,134]
[null,"9722",81,88,80]
[null,"9723",31,37,42]
[null,"9724",23,28,24]
[null,"9725",30,30,40]
[null,"9726",18,22,24]
[null,"9727",46,47,52]
[null,"9728",129,115,100]
[null,"9731",62,71,82]
[null,"9732",98,85,96]
[null,"9733",60,53,56]
[null,"9734",45,34,35]
[null,"9735","Minder dan 10 patiënten","Minder dan 10 patiënten","Minder dan 10 patiënten"]
[null,"9736",87,96,98]
[null,"9737",74,81,76]
[null,"9738","Minder dan 10 patiënten","Minder dan 10 patiënten","Minder dan 10 patiënten"]
[null,"9741",73,77,78]
[null,"9742",117,118,125]
[null,"9743",142,145,142]
[null,"9744",64,86,88]
[null,"9745",42,40,36]
[null,"9746",79,97,97]
[null,"9749","Minder dan 10 patiënten","Minder dan 10 patiënten"]
[null,"9751",74,84,94]
[null,"9752",60,62,67]
[null,"9753",63,81,80]
[null,"9755","Minder dan 10 patiënten",10,"Minder dan 10 patiënten"]
[null,"9756",24,23,18]
[null,"9761",82,76,93]
[null,"9765",45,43,53]
[null,"9766",29,38,32]
[null,"9771",11,17,19]
[null,"9773","Minder dan 10 patiënten","Minder dan 10 patiënten","Minder dan 10 patiënten"]
[null,"9774","Minder dan 10 patiënten","Minder dan 10 patiënten",11]
[null,"9781",100,96,88]
[null,"9784","Minder dan 10 patiënten","Minder dan 10 patiënten","Minder dan 10 patiënten"]
[null,"9785",11,11,17]
[null,"9791",53,54,69]
[null,"9792","Minder dan 10 patiënten","Minder dan 10 patiënten","Minder dan 10 patiënten"]
[null,"9793","Minder dan 10 patiënten","Minder dan 10 patiënten","Minder dan 10 patiënten"]
[null,"9794","Minder dan 10 patiënten","Minder dan 10 patiënten","Minder dan 10 patiënten"]
[null,"9795","Minder dan 10 patiënten","Minder dan 10 patiënten","Minder dan 10 patiënten"]
[null,"9796","Minder dan 10 patiënten"]
[null,"9797",12,"Minder dan 10 patiënten","Minder dan 10 patiënten"]
[null,"9798","Minder dan 10 patiënten","Minder dan 10 patiënten","Minder dan 10 patiënten"]
[null,"9801",63,89,114]
[null,"9804",12,11,14]
[null,"9805","Minder dan 10 patiënten","Minder dan 10 patiënten","Minder dan 10 patiënten"]
[null,"9811","Minder dan 10 patiënten","Minder dan 10 patiënten","Minder dan 10 patiënten"]
[null,"9812","Minder dan 10 patiënten","Minder dan 10 patiënten"]
[null,"9821",11,"Minder dan 10 patiënten","Minder dan 10 patiënten"]
[null,"9822",13,17,13]
[null,"9824","Minder dan 10 patiënten","Minder dan 10 patiënten","Minder dan 10 patiënten"]
[null,"9825","Minder dan 10 patiënten","Minder dan 10 patiënten","Minder dan 10 patiënten"]
[null,"9827","Minder dan 10 patiënten","Minder dan 10 patiënten"]
[null,"9828","Minder dan 10 patiënten","Minder dan 10 patiënten",11]
[null,"9831",21,26,24]
[null,"9832",null,"Minder dan 10 patiënten","Minder dan 10 patiënten"]
[null,"9833","Minder dan 10 patiënten","Minder dan 10 patiënten","Minder dan 10 patiënten"]
[null,"9842","Minder dan 10 patiënten","Minder dan 10 patiënten","Minder dan 10 patiënten"]
[null,"9843",19,23,27]
[null,"9844","Minder dan 10 patiënten",null,"Minder dan 10 patiënten"]
[null,"9845","Minder dan 10 patiënten","Minder dan 10 patiënten","Minder dan 10 patiënten"]
[null,"9851","Minder dan 10 patiënten","Minder dan 10 patiënten","Minder dan 10 patiënten"]
[null,"9852","Minder dan 10 patiënten","Minder dan 10 patiënten","Minder dan 10 patiënten"]
[null,"9853","Minder dan 10 patiënten","Minder dan 10 patiënten"]
[null,"9861",30,35,38]
[null,"9862","Minder dan 10 patiënten","Minder dan 10 patiënten","Minder dan 10 patiënten"]
[null,"9863",12,11,"Minder dan 10 patiënten"]
[null,"9864","Minder dan 10 patiënten","Minder dan 10 patiënten","Minder dan 10 patiënten"]
[null,"9865",12,15,11]
[null,"9866","Minder dan 10 patiënten",12,"Minder dan 10 patiënten"]
[null,"9871","Minder dan 10 patiënten"]
[null,"9872","Minder dan 10 patiënten","Minder dan 10 patiënten","Minder dan 10 patiënten"]
[null,"9873",16,11,12]
[null,"9881","Minder dan 10 patiënten","Minder dan 10 patiënten","Minder dan 10 patiënten"]
[null,"9882","Minder dan 10 patiënten","Minder dan 10 patiënten","Minder dan 10 patiënten"]
[null,"9883",15,13,12]
[null,"9884","Minder dan 10 patiënten","Minder dan 10 patiënten","Minder dan 10 patiënten"]
[null,"9885",null,null,"Minder dan 10 patiënten"]
[null,"9891","Minder dan 10 patiënten","Minder dan 10 patiënten","Minder dan 10 patiënten"]
[null,"9892",null,"Minder dan 10 patiënten","Minder dan 10 patiënten"]
[null,"9893","Minder dan 10 patiënten","Minder dan 10 patiënten","Minder dan 10 patiënten"]
[null,"9901",24,33,33]
[null,"9902",60,89,81]
[null,"9903",27,21,18]
[null,"9904","Minder dan 10 patiënten","Minder dan 10 patiënten"]
[null,"9905","Minder dan 10 patiënten","Minder dan 10 patiënten","Minder dan 10 patiënten"]
[null,"9906","Minder dan 10 patiënten","Minder dan 10 patiënten","Minder dan 10 patiënten"]
[null,"9907","Minder dan 10 patiënten",null,"Minder dan 10 patiënten"]
[null,"9908","Minder dan 10 patiënten","Minder dan 10 patiënten","Minder dan 10 patiënten"]
[null,"9909",25,24,23]
[null,"9911","Minder dan 10 patiënten","Minder dan 10 patiënten","Minder dan 10 patiënten"]
[null,"9912","Minder dan 10 patiënten","Minder dan 10 patiënten","Minder dan 10 patiënten"]
[null,"9913",null,"Minder dan 10 patiënten"]
[null,"9914","Minder dan 10 patiënten","Minder dan 10 patiënten","Minder dan 10 patiënten"]
[null,"9915","Minder dan 10 patiënten",12,12]
[null,"9917","Minder dan 10 patiënten","Minder dan 10 patiënten","Minder dan 10 patiënten"]
[null,"9918","Minder dan 10 patiënten","Minder dan 10 patiënten","Minder dan 10 patiënten"]
[null,"9919",31,22,24]
[null,"9921",12,"Minder dan 10 patiënten","Minder dan 10 patiënten"]
[null,"9922","Minder dan 10 patiënten","Minder dan 10 patiënten","Minder dan 10 patiënten"]
[null,"9923","Minder dan 10 patiënten","Minder dan 10 patiënten","Minder dan 10 patiënten"]
[null,"9925","Minder dan 10 patiënten",null,"Minder dan 10 patiënten"]
[null,"9931",33,43,37]
[null,"9932",45,48,42]
[null,"9933",41,42,45]
[null,"9934",37,34,30]
[null,"9936","Minder dan 10 patiënten",11,"Minder dan 10 patiënten"]
[null,"9937","Minder dan 10 patiënten",11,10]
[null,"9939","Minder dan 10 patiënten","Minder dan 10 patiënten","Minder dan 10 patiënten"]
[null,"9943","Minder dan 10 patiënten","Minder dan 10 patiënten",10]
[null,"9944",25,18,19]
[null,"9945",18,19,17]
[null,"9946",18,16,11]
[null,"9947","Minder dan 10 patiënten","Minder dan 10 patiënten","Minder dan 10 patiënten"]
[null,"9948","Minder dan 10 patiënten","Minder dan 10 patiënten","Minder dan 10 patiënten"]
[null,"9949","Minder dan 10 patiënten","Minder dan 10 patiënten","Minder dan 10 patiënten"]
[null,"9951",110,108,124]
[null,"9953",20,16,17]
[null,"9954","Minder dan 10 patiënten","Minder dan 10 patiënten","Minder dan 10 patiënten"]
[null,"9955","Minder dan 10 patiënten","Minder dan 10 patiënten","Minder dan 10 patiënten"]
[null,"9956","Minder dan 10 patiënten","Minder dan 10 patiënten","Minder dan 10 patiënten"]
[null,"9959","Minder dan 10 patiënten","Minder dan 10 patiënten","Minder dan 10 patiënten"]
[null,"9961","Minder dan 10 patiënten","Minder dan 10 patiënten","Minder dan 10 patiënten"]
[null,"9962",null,"Minder dan 10 patiënten","Minder dan 10 patiënten"]
[null,"9963","Minder dan 10 patiënten","Minder dan 10 patiënten","Minder dan 10 patiënten"]
[null,"9964","Minder dan 10 patiënten","Minder dan 10 patiënten","Minder dan 10 patiënten"]
[null,"9965",10,"Minder dan 10 patiënten",17]
[null,"9966","Minder dan 10 patiënten","Minder dan 10 patiënten","Minder dan 10 patiënten"]
[null,"9967","Minder dan 10 patiënten","Minder dan 10 patiënten",15]
[null,"9968","Minder dan 10 patiënten","Minder dan 10 patiënten","Minder dan 10 patiënten"]
[null,"9969","Minder dan 10 patiënten","Minder dan 10 patiënten","Minder dan 10 patiënten"]
[null,"9971","Minder dan 10 patiënten",10,12]
[null,"9972","Minder dan 10 patiënten","Minder dan 10 patiënten","Minder dan 10 patiënten"]
[null,"9973","Minder dan 10 patiënten","Minder dan 10 patiënten","Minder dan 10 patiënten"]
[null,"9974","Minder dan 10 patiënten","Minder dan 10 patiënten","Minder dan 10 patiënten"]
[null,"9976","Minder dan 10 patiënten"]
[null,"9977","Minder dan 10 patiënten","Minder dan 10 patiënten","Minder dan 10 patiënten"]
[null,"9978","Minder dan 10 patiënten"]
[null,"9979","Minder dan 10 patiënten","Minder dan 10 patiënten","Minder dan 10 patiënten"]
[null,"9981",87,100,87]
[null,"9982",54,60,55]
[null,"9983","Minder dan 10 patiënten",10,13]
[null,"9984","Minder dan 10 patiënten","Minder dan 10 patiënten","Minder dan 10 patiënten"]
[null,"9985","Minder dan 10 patiënten","Minder dan 10 patiënten","Minder dan 10 patiënten"]
[null,"9986","Minder dan 10 patiënten"]
[null,"9987",null,"Minder dan 10 patiënten","Minder dan 10 patiënten"]
[null,"9988",19,18,19]
[null,"9989",22,24,25]
[null,"9991",45,45,39]
[null,"9992","Minder dan 10 patiënten","Minder dan 10 patiënten","Minder dan 10 patiënten"]
[null,"9993",null,null,"Minder dan 10 patiënten"]
[null,"9994",null,"Minder dan 10 patiënten","Minder dan 10 patiënten"]
[null,"9995","Minder dan 10 patiënten","Minder dan 10 patiënten","Minder dan 10 patiënten"]
[null,"9996","Minder dan 10 patiënten","Minder dan 10 patiënten","Minder dan 10 patiënten"]
[null,"9997","Minder dan 10 patiënten","Minder dan 10 patiënten","Minder dan 10 patiënten"]
[null,"9998","Minder dan 10 patiënten","Minder dan 10 patiënten","Minder dan 10 patiënten"]
[null,"9999",null,null,"Minder dan 10 patiënten"]

{"sheet":"Tabel 4","index":4,"n_rows":27,"n_cols":16,"rows_kept":27,"cut":false,"hidden":false,"merged":[[5,1,6,1],[5,14,5,15],[5,2,5,3],[5,4,5,5],[5,6,5,7],[5,8,5,9],[5,10,5,11],[5,12,5,13]]}
[]
[]
[]
[]
[]
[null,"Leeftijdscategorie",2011,null,2012,null,2013,null,2014,null,2015,null,2016,null,2017]
[null,"Leeftijdscategorie","Totale kosten","Gemiddelde kosten per patiënt","Totale kosten","Gemiddelde kosten per patiënt","Totale kosten","Gemiddelde kosten per patiënt","Totale kosten","Gemiddelde kosten per patiënt","Totale kosten","Gemiddelde kosten per patiënt","Totale kosten","Gemiddelde kosten per patiënt","Totale kosten","Gemiddelde kosten per patiënt"]
[null,"0-4 jaar",25309653.130371194,501.38974881378778,28273866.859748695,527.30076202440682,29483359.219768722,524.37234055007866,31523858.740076069,536.84131298983448,33188712.839903109,533.71788305517669,37466145.069907859,563.91795586790681,39460197.07004872,565.21087259254773]
[null,"5-9 jaar",51014675.928832725,544.63873006323172,55270600.798659228,579.18034139160238,54030622.629026547,576.95436772837161,52760386.609631553,583.71007887807627,53448837.129719876,580.52391799413351,58454783.289421886,603.2672145620802,60864673.740430474,606.31847446236929]
[null,"10-14 jaar",12283282.360057985,459.35984891765094,13953605.080097921,488.75985428904414,14024442.690091014,483.45143541973226,13131192.870009614,481.17232942505001,12750032.390019609,472.97668101122559,13588195.710032739,490.95623478096394,13717035.189982928,483.41974237825298]
[null,"15-19 jaar",1863145.8200018769,311.98021098490904,1975943.1399985079,331.58971975138581,1912133.9999984952,343.59999999972962,1862672.3000001055,345.00320429711161,1889044.3999996763,340.98274368225202,2114690.0199997909,352.97780337168933,2165065.4499996696,350.90201782814739]
[null,"20-24 jaar",1252387.7900008904,310.38111276354158,1274194.3599991864,332.68782245409568,1024279.6099995119,314.19619938635333,984663.00999996264,331.09045393408292,981326.04000015347,319.65017589581544,1022205.3800002079,334.60077905080453,1002579.6399999687,334.30464821606159]
[null,"25-29 jaar",992379.67000051611,313.54807898910462,1021878.7999993889,335.04222950799635,813667.8899996212,304.1749121493911,742245.54999998549,314.64415006358013,756647.99000008393,314.61454885658378,798398.56000011985,322.06476805168205,781656.51999998733,310.92144789180082]
[null,"30-34 jaar",876500.53000036092,318.26453522162706,846839.61999952188,331.57385277976579,650515.88999975414,305.69355733071154,616972.24999999255,314.78176020407784,618208.63000005716,312.38435068219161,666517.52000006952,314.54342614444056,618172.56000001426,299.64738730005536]
[null,"35-39 jaar",949551.80000047467,321.119986472937,916353.79999947455,329.97976233326415,716602.94999972696,318.77355427034115,631032.91999998339,302.94427268362142,630298.43000006035,306.26745869779415,649292.59000007878,313.66791787443418,642033.25000000815,303.2750354274956]
[null,"40-44 jaar",1061523.2500006191,324.42642114933346,1024346.5999994068,333.55473787020736,855449.26999962644,320.51302735092787,793578.08999997622,313.91538370252226,701827.77000007988,294.39084312083889,717349.44000009971,320.53147453087564,735782.54999999015,318.52058441558017]
[null,"45-49 jaar",1116301.1200007291,332.72760655759436,1088387.1199993626,339.48444167166645,926807.79999959155,324.85376796340398,868136.02000001969,318.58202568808065,909253.61000009777,319.48475404079329,989444.72000018822,341.18783448282352,915824.56999997236,320.5546272313519]
[null,"50-54 jaar",1121413.6400007058,326.56192195710713,1140395.9099993799,345.78408429332319,1026305.1399995367,334.73748858432378,984163.15000002948,333.95424160163878,963076.09000011696,311.2721687136771,1104028.8300002194,349.48680911687859,1117281.7699999306,337.03824132727925]
[null,"55-59 jaar",1149076.5000007274,347.46794677977846,1192245.0099994007,357.49475562200922,1132053.0599994753,353.98782363961078,1094009.2600000298,354.73711413749345,1130842.3000001118,342.57567403820411,1200033.0000001735,349.86384839655204,1233695.7599999018,334.42552453236698]
[null,"60-64 jaar",1262816.0800008557,355.62266403854005,1303707.5199994189,374.84402530173054,1137777.6999995236,356.00053191474456,1199288.4200000935,355.87193471812861,1241695.0600000292,346.84219553073439,1364739.3900000865,359.52038724975938,1376558.2699998578,363.1121788445945]
[null,"65-69 jaar",1293151.320000855,392.33959951482251,1412090.6599994514,385.81712021842935,1440234.209999426,387.68081022864766,1497039.4000001154,376.04606882695691,1533448.3499999731,366.24035108669051,1604803.5499999716,363.6536483117996,1624066.7999997898,365.61611886532864]
[null,"70-74 jaar",1269070.3400008145,408.45521081455246,1371327.919999575,408.49803991646559,1339347.1799994959,388.44175754045705,1394701.8800000914,380.02776021800855,1445781.5199999958,362.26046604860835,1657668.7300000284,373.76972491545172,1900087.3499997775,387.5356618396446]
[null,"75-79 jaar",1314673.3400007996,422.7245466240513,1346509.6599997596,428.41541838999672,1390050.0199996342,419.82785261239331,1401804.9700001345,400.51570571432416,1476899.1300000127,391.0243923749041,1574622.900000046,375.08882801335062,1724063.1999998332,382.27565410195859]
[null,"80-84 jaar",1175995.1000005752,450.91836656463772,1179330.9099999284,439.0658637378736,1122771.7299998254,425.6147573918974,1228861.3700001158,409.34755829450893,1203014.0600000462,372.10456541912964,1344369.7200001141,380.19505656111824,1387287.449999938,384.39663341644166]
[null,"85-89 jaar",690814.07000003476,445.39914248873936,692917.84999989765,411.47140736335967,643264.59999988927,400.53835616431462,643615.59999992466,346.02989247307778,719702.23999998835,331.35462246776626,829071.22000013757,345.73445371148358,869019.93999997363,351.119167676757]
[null,"90 jaar en ouder",265014.35999997653,378.5919428571093,266217.9099999824,356.38274431055208,282411.95999998122,338.62345323738754,316021.87999997515,297.29245531512242,327092.68999999185,277.90372982157339,363601.29999999027,274.00248681235138,396272.99000000459,277.30790062981424]
[null,"Totaal",{"$f":"SUM(C8:C26)","v":106261426.14927271},{"$f":"C27/'Tabel 1'!C7","v":480.69042861337516},{"$f":"SUM(E8:E26)","v":115550759.52849747},{"$f":"E27/'Tabel 1'!C8","v":508.06505444899148},113952097.5488794,{"$f":"G27/'Tabel 1'!C9","v":505.7951092527482},113674244.28971776,{"$f":"I27/'Tabel 1'!C10","v":509.96951283834193},115915740.66964312,{"$f":"K27/'Tabel 1'!C11","v":503.97052529137682},127509960.93936384,{"$f":"M27/'Tabel 1'!C12","v":525.69070750118044},132531354.07046077,{"$f":"O27/'Tabel 1'!C13","v":526.40478724559125}]

{"sheet":"Tabel 5","index":5,"n_rows":478,"n_cols":7,"rows_kept":478,"cut":false,"hidden":false,"merged":[]}
[]
[]
[]
[]
[]
[null,"Prestatiecode","Prestatiecode omschrijving","Leeftijdscategorie","Aantal patiënten 2015","Aantal patiënten 2016","Aantal patiënten 2017"]
[null,"192971","35-39 jaar","35-39 jaar","Minder dan 10 patiënten"]
[null,"192971","40-44 jaar","40-44 jaar","Minder dan 10 patiënten"]
[null,"192971","45-49 jaar","45-49 jaar","Minder dan 10 patiënten"]
[null,"192971","50-54 jaar","50-54 jaar",10]
[null,"192971","55-59 jaar","55-59 jaar","Minder dan 10 patiënten"]
[null,"192971","60-64 jaar","60-64 jaar",15]
[null,"192971","65-69 jaar","65-69 jaar",20]
[null,"192971","Specifieke behandeling Afasie-patiënten (logopedie).","70-74 jaar",20,"Minder dan 10 patiënten"]
[null,"192971","75-79 jaar","75-79 jaar",31]
[null,"192971","80-84 jaar","80-84 jaar",36]
[null,"192971","Specifieke behandeling Afasie-patiënten (logopedie).","85-89 jaar",23,"Minder dan 10 patiënten"]
[null,"192971","90 jaar en ouder","90 jaar en ouder",12]
[null,"192972","0-4 jaar","0-4 jaar","Minder dan 10 patiënten"]
[null,"192976","0-4 jaar","0-4 jaar","Minder dan 10 patiënten"]
[null,"192976","15-19 jaar","15-19 jaar","Minder dan 10 patiënten"]
[null,"192976","20-24 jaar","20-24 jaar","Minder dan 10 patiënten"]
[null,"192976","Uittoeslag (logopedie).","35-39 jaar","Minder dan 10 patiënten","Minder dan 10 patiënten"]
[null,"192976","40-44 jaar","40-44 jaar","Minder dan 10 patiënten"]
[null,"192976","45-49 jaar","45-49 jaar","Minder dan 10 patiënten"]
[null,"192976","Uittoeslag (logopedie).","50-54 jaar","Minder dan 10 patiënten","Minder dan 10 patiënten"]
[null,"192976","55-59 jaar","55-59 jaar",15]
[null,"192976","5-9 jaar","5-9 jaar","Minder dan 10 patiënten"]
[null,"192976","60-64 jaar","60-64 jaar",12]
[null,"192976","Uittoeslag (logopedie).","65-69 jaar",28,"Minder dan 10 patiënten"]
[null,"192976","Uittoeslag (logopedie).","70-74 jaar",34,"Minder dan 10 patiënten"]
[null,"192976","Uittoeslag (logopedie).","75-79 jaar",54,"Minder dan 10 patiënten"]
[null,"192976","Uittoeslag (logopedie).","80-84 jaar",56,"Minder dan 10 patiënten"]
[null,"192976","Uittoeslag (logopedie).","85-89 jaar",44,"Minder dan 10 patiënten"]
[null,"192976","90 jaar en ouder","90 jaar en ouder",21]
[null,"193021","Logopedie.","0-4 jaar",203,"Minder dan 10 patiënten"]
[null,"193021","10-14 jaar","10-14 jaar",20]
[null,"193021","15-19 jaar","15-19 jaar",14]
[null,"193021","Logopedie.","20-24 jaar",12,"Minder dan 10 patiënten"]
[null,"193021","25-29 jaar","25-29 jaar","Minder dan 10 patiënten"]
[null,"193021","30-34 jaar","30-34 jaar","Minder dan 10 patiënten"]
[null,"193021","Logopedie.","35-39 jaar","Minder dan 10 patiënten","Minder dan 10 patiënten"]
[null,"193021","40-44 jaar","40-44 jaar","Minder dan 10 patiënten"]
[null,"193021","45-49 jaar","45-49 jaar",14]
[null,"193021","Logopedie.","50-54 jaar",15,"Minder dan 10 patiënten"]
[null,"193021","55-59 jaar","55-59 jaar",19]
[null,"193021","Logopedie.","5-9 jaar",135,"Minder dan 10 patiënten"]
[null,"193021","Logopedie.","60-64 jaar",23,null,"Minder dan 10 patiënten"]
[null,"193021","Logopedie.","65-69 jaar",42,"Minder dan 10 patiënten"]
[null,"193021","Logopedie.","70-74 jaar",55,"Minder dan 10 patiënten"]
[null,"193021","Logopedie.","75-79 jaar",55,"Minder dan 10 patiënten"]
[null,"193021","Logopedie.","80-84 jaar",61,"Minder dan 10 patiënten"]
[null,"193021","Logopedie.","85-89 jaar",42,"Minder dan 10 patiënten"]
[null,"193021","Logopedie.","90 jaar en ouder",18,"Minder dan 10 patiënten"]
[null,"193022","Eenmalig logopedisch onderzoek op medische indicatie","0-4 jaar","Minder dan 10 patiënten",null,"Minder dan 10 patiënten"]
[null,"193022","10-14 jaar","10-14 jaar","Minder dan 10 patiënten"]
[null,"193022","15-19 jaar","15-19 jaar","Minder dan 10 patiënten"]
[null,"193022","20-24 jaar","20-24 jaar","Minder dan 10 patiënten"]
[null,"193022","30-34 jaar","30-34 jaar","Minder dan 10 patiënten"]
[null,"193022","Eenmalig logopedisch onderzoek op medische indicatie","35-39 jaar",null,"Minder dan 10 patiënten"]
[null,"193022","5-9 jaar","5-9 jaar","Minder dan 10 patiënten"]
[null,"193022","Eenmalig logopedisch onderzoek op medische indicatie","60-64 jaar",null,"Minder dan 10 patiënten"]
[null,"193022","80-84 jaar","80-84 jaar","Minder dan 10 patiënten"]
[null,"193022","Eenmalig logopedisch onderzoek op medische indicatie","90 jaar en ouder",null,"Minder dan 10 patiënten"]
[null,"193024","Preverbale logopedie","0-4 jaar","Minder dan 10 patiënten","Minder dan 10 patiënten"]
[null,"193024","5-9 jaar","5-9 jaar","Minder dan 10 patiënten"]
[null,"193090","0-4 jaar","0-4 jaar","Minder dan 10 patiënten"]
[null,"193090","Logopedische behandeling bij een groep van twee personen.","5-9 jaar","Minder dan 10 patiënten","Minder dan 10 patiënten"]
[null,"193090","65-69 jaar","65-69 jaar","Minder dan 10 patiënten"]
[null,"193090","80-84 jaar","80-84 jaar","Minder dan 10 patiënten"]
[null,"193090","85-89 jaar","85-89 jaar","Minder dan 10 patiënten"]
[null,"193091","0-4 jaar","0-4 jaar","Minder dan 10 patiënten"]
[null,"193091","5-9 jaar","5-9 jaar","Minder dan 10 patiënten"]
[null,"193091","65-69 jaar","65-69 jaar","Minder dan 10 patiënten"]
[null,"193091","75-79 jaar","75-79 jaar","Minder dan 10 patiënten"]
[null,"193091","80-84 jaar","80-84 jaar","Minder dan 10 patiënten"]
[null,"193092","0-4 jaar","0-4 jaar","Minder dan 10 patiënten"]
[null,"193092","45-49 jaar","45-49 jaar","Minder dan 10 patiënten"]
[null,"193092","65-69 jaar","65-69 jaar","Minder dan 10 patiënten"]
[null,"193092","80-84 jaar","80-84 jaar","Minder dan 10 patiënten"]
[null,"193092","Logopedische behandeling bij een groep van vier personen.","85-89 jaar",null,"Minder dan 10 patiënten"]
[null,"193093","45-49 jaar","45-49 jaar","Minder dan 10 patiënten"]
[null,"193093","55-59 jaar","55-59 jaar","Minder dan 10 patiënten"]
[null,"193093","60-64 jaar","60-64 jaar","Minder dan 10 patiënten"]
[null,"193093","65-69 jaar","65-69 jaar","Minder dan 10 patiënten"]
[null,"193093","Logopedische behandeling bij een groep van vijf tot tien personen.","70-74 jaar","Minder dan 10 patiënten","Minder dan 10 patiënten"]
[null,"193093","80-84 jaar","80-84 jaar","Minder dan 10 patiënten"]
[null,"193093","85-89 jaar","85-89 jaar","Minder dan 10 patiënten"]
[null,"4000","Individuele zitting reguliere logopedie","0-4 jaar",27440,30619,33037]
[null,"4000","Individuele zitting reguliere logopedie","10-14 jaar",10869,11298,11584]
[null,"4000","Individuele zitting reguliere logopedie","15-19 jaar",621,568,664]
[null,"4000","Individuele zitting reguliere logopedie","20-24 jaar",90,106,108]
[null,"4000","Individuele zitting reguliere logopedie","25-29 jaar",53,46,63]
[null,"4000","Individuele zitting reguliere logopedie","30-34 jaar",50,73,61]
[null,"4000","Individuele zitting reguliere logopedie","35-39 jaar",58,50,54]
[null,"4000","Individuele zitting reguliere logopedie","40-44 jaar",79,74,57]
[null,"4000","Individuele zitting reguliere logopedie","45-49 jaar",111,125,92]
[null,"4000","Individuele zitting reguliere logopedie","50-54 jaar",144,145,153]
[null,"4000","Individuele zitting reguliere logopedie","55-59 jaar",161,184,188]
[null,"4000","Individuele zitting reguliere logopedie","5-9 jaar",44968,48299,50778]
[null,"4000","Individuele zitting reguliere logopedie","60-64 jaar",243,234,229]
[null,"4000","Individuele zitting reguliere logopedie","65-69 jaar",332,337,300]
[null,"4000","Individuele zitting reguliere logopedie","70-74 jaar",383,407,387]
[null,"4000","Individuele zitting reguliere logopedie","75-79 jaar",357,352,354]
[null,"4000","Individuele zitting reguliere logopedie","80-84 jaar",246,269,254]
[null,"4000","Individuele zitting reguliere logopedie","85-89 jaar",160,180,118]
[null,"4000","Individuele zitting reguliere logopedie","90 jaar en ouder",42,51,53]
[null,"4001","Individuele zitting reguliere logopedie met toeslag voor behandeling aan huis","0-4 jaar",721,797,908]
[null,"4001","Individuele zitting reguliere logopedie met toeslag voor behandeling aan huis","10-14 jaar",128,85,85]
[null,"4001","Individuele zitting reguliere logopedie met toeslag voor behandeling aan huis","15-19 jaar",34,33,34]
[null,"4001","Individuele zitting reguliere logopedie met toeslag voor behandeling aan huis","20-24 jaar",13,15,16]
[null,"4001","Individuele zitting reguliere logopedie met toeslag voor behandeling aan huis","25-29 jaar",10,"Minder dan 10 patiënten",10]
[null,"4001","Individuele zitting reguliere logopedie met toeslag voor behandeling aan huis","30-34 jaar","Minder dan 10 patiënten",17,12]
[null,"4001","Individuele zitting reguliere logopedie met toeslag voor behandeling aan huis","35-39 jaar",12,12,"Minder dan 10 patiënten"]
[null,"4001","Individuele zitting reguliere logopedie met toeslag voor behandeling aan huis","40-44 jaar",23,14,19]
[null,"4001","Individuele zitting reguliere logopedie met toeslag voor behandeling aan huis","45-49 jaar",31,46,41]
[null,"4001","Individuele zitting reguliere logopedie met toeslag voor behandeling aan huis","50-54 jaar",58,57,54]
[null,"4001","Individuele zitting reguliere logopedie met toeslag voor behandeling aan huis","55-59 jaar",88,79,89]
[null,"4001","Individuele zitting reguliere logopedie met toeslag voor behandeling aan huis","5-9 jaar",365,331,358]
[null,"4001","Individuele zitting reguliere logopedie met toeslag voor behandeling aan huis","60-64 jaar",108,119,96]
[null,"4001","Individuele zitting reguliere logopedie met toeslag voor behandeling aan huis","65-69 jaar",146,146,188]
[null,"4001","Individuele zitting reguliere logopedie met toeslag voor behandeling aan huis","70-74 jaar",200,237,281]
[null,"4001","Individuele zitting reguliere logopedie met toeslag voor behandeling aan huis","75-79 jaar",216,294,294]
[null,"4001","Individuele zitting reguliere logopedie met toeslag voor behandeling aan huis","80-84 jaar",275,311,322]
[null,"4001","Individuele zitting reguliere logopedie met toeslag voor behandeling aan huis","85-89 jaar",174,207,229]
[null,"4001","Individuele zitting reguliere logopedie met toeslag voor behandeling aan huis","90 jaar en ouder",88,95,124]
[null,"4002","Individuele zitting reguliere telelogopedie","0-4 jaar",12,"Minder dan 10 patiënten",26]
[null,"4002","Individuele zitting reguliere telelogopedie","10-14 jaar","Minder dan 10 patiënten","Minder dan 10 patiënten","Minder dan 10 patiënten"]
[null,"4002","Individuele zitting reguliere telelogopedie","50-54 jaar",null,"Minder dan 10 patiënten","Minder dan 10 patiënten"]
[null,"4002","Individuele zitting reguliere telelogopedie","55-59 jaar","Minder dan 10 patiënten","Minder dan 10 patiënten","Minder dan 10 patiënten"]
[null,"4002","Individuele zitting reguliere telelogopedie","5-9 jaar",24,42,53]
[null,"4002","Individuele zitting reguliere telelogopedie","60-64 jaar","Minder dan 10 patiënten",null,"Minder dan 10 patiënten"]
[null,"4002","Individuele zitting reguliere telelogopedie","65-69 jaar","Minder dan 10 patiënten","Minder dan 10 patiënten"]
[null,"4002","Individuele zitting reguliere telelogopedie","70-74 jaar",null,null,"Minder dan 10 patiënten"]
[null,"4002","75-79 jaar","75-79 jaar","Minder dan 10 patiënten"]
[null,"4002","Individuele zitting reguliere telelogopedie","80-84 jaar",null,null,"Minder dan 10 patiënten"]
[null,"4002","Individuele zitting reguliere telelogopedie","85-89 jaar",null,null,"Minder dan 10 patiënten"]
[null,"4003","Individuele zitting reguliere logopedie met toeslag voor behandeling in een instelling","0-4 jaar",null,"Minder dan 10 patiënten","Minder dan 10 patiënten"]
[null,"4003","Individuele zitting reguliere logopedie met toeslag voor behandeling in een instelling","10-14 jaar",null,"Minder dan 10 patiënten","Minder dan 10 patiënten"]
[null,"4003","Individuele zitting reguliere logopedie met toeslag voor behandeling in een instelling","15-19 jaar",null,"Minder dan 10 patiënten","Minder dan 10 patiënten"]
[null,"4003","Individuele zitting reguliere logopedie met toeslag voor behandeling in een instelling","20-24 jaar",null,null,"Minder dan 10 patiënten"]
[null,"4003","Individuele zitting reguliere logopedie met toeslag voor behandeling in een instelling","25-29 jaar",null,null,"Minder dan 10 patiënten"]
[null,"4003","Individuele zitting reguliere logopedie met toeslag voor behandeling in een instelling","40-44 jaar",null,null,"Minder dan 10 patiënten"]
[null,"4003","Individuele zitting reguliere logopedie met toeslag voor behandeling in een instelling","5-9 jaar",null,"Minder dan 10 patiënten","Minder dan 10 patiënten"]
[null,"4003","Individuele zitting reguliere logopedie met toeslag voor behandeling in een instelling","65-69 jaar",null,null,"Minder dan 10 patiënten"]
[null,"4003","Individuele zitting reguliere logopedie met toeslag voor behandeling in een instelling","70-74 jaar",null,"Minder dan 10 patiënten","Minder dan 10 patiënten"]
[null,"4003","Individuele zitting reguliere logopedie met toeslag voor behandeling in een instelling","75-79 jaar",null,null,"Minder dan 10 patiënten"]
[null,"4003","Individuele zitting reguliere logopedie met toeslag voor behandeling in een instelling","80-84 jaar",null,"Minder dan 10 patiënten","Minder dan 10 patiënten"]
[null,"4003","Individuele zitting reguliere logopedie met toeslag voor behandeling in een instelling","85-89 jaar",null,"Minder dan 10 patiënten","Minder dan 10 patiënten"]
[null,"4003","Individuele zitting reguliere logopedie met toeslag voor behandeling in een instelling","90 jaar en ouder",null,"Minder dan 10 patiënten","Minder dan 10 patiënten"]
[null,"4010","Telefonische zitting logopedie","0-4 jaar",28,43,57]
[null,"4010","Telefonische zitting logopedie","10-14 jaar",36,50,48]
[null,"4010","Telefonische zitting logopedie","15-19 jaar","Minder dan 10 patiënten","Minder dan 10 patiënten",10]
[null,"4010","20-24 jaar","20-24 jaar","Minder dan 10 patiënten"]
[null,"4010","Telefonische zitting logopedie","25-29 jaar",null,"Minder dan 10 patiënten"]
[null,"4010","Telefonische zitting logopedie","40-44 jaar",null,null,"Minder dan 10 patiënten"]
[null,"4010","Telefonische zitting logopedie","45-49 jaar","Minder dan 10 patiënten","Minder dan 10 patiënten"]
[null,"4010","Telefonische zitting logopedie","50-54 jaar",null,"Minder dan 10 patiënten"]
[null,"4010","Telefonische zitting logopedie","55-59 jaar","Minder dan 10 patiënten","Minder dan 10 patiënten"]
[null,"4010","Telefonische zitting logopedie","5-9 jaar",55,73,69]
[null,"4010","Telefonische zitting logopedie","60-64 jaar","Minder dan 10 patiënten",null,"Minder dan 10 patiënten"]
[null,"4010","Telefonische zitting logopedie","65-69 jaar","Minder dan 10 patiënten","Minder dan 10 patiënten","Minder dan 10 patiënten"]
[null,"4010","Telefonische zitting logopedie","70-74 jaar","Minder dan 10 patiënten","Minder dan 10 patiënten","Minder dan 10 patiënten"]
[null,"4010","Telefonische zitting logopedie","75-79 jaar","Minder dan 10 patiënten","Minder dan 10 patiënten","Minder dan 10 patiënten"]
[null,"4010","Telefonische zitting logopedie","80-84 jaar","Minder dan 10 patiënten","Minder dan 10 patiënten","Minder dan 10 patiënten"]
[null,"4010","Telefonische zitting logopedie","85-89 jaar","Minder dan 10 patiënten","Minder dan 10 patiënten","Minder dan 10 patiënten"]
[null,"4010","Telefonische zitting logopedie","90 jaar en ouder","Minder dan 10 patiënten","Minder dan 10 patiënten","Minder dan 10 patiënten"]
[null,"4011","Instructie/overleg ouders/verzorgers van de patiënt bij logopedie","0-4 jaar",null,null,72]
[null,"4011","Instructie/overleg ouders/verzorgers van de patiënt bij logopedie","10-14 jaar",null,null,23]
[null,"4011","Instructie/overleg ouders/verzorgers van de patiënt bij logopedie","35-39 jaar",null,null,"Minder dan 10 patiënten"]
[null,"4011","Instructie/overleg ouders/verzorgers van de patiënt bij logopedie","50-54 jaar",null,null,"Minder dan 10 patiënten"]
[null,"4011","Instructie/overleg ouders/verzorgers van de patiënt bij logopedie","5-9 jaar",null,null,156]
[null,"4011","Instructie/overleg ouders/verzorgers van de patiënt bij logopedie","60-64 jaar",null,null,"Minder dan 10 patiënten"]
[null,"4011","Instructie/overleg ouders/verzorgers van de patiënt bij logopedie","65-69 jaar",null,null,"Minder dan 10 patiënten"]
[null,"4011","Instructie/overleg ouders/verzorgers van de patiënt bij logopedie","70-74 jaar",null,null,"Minder dan 10 patiënten"]
[null,"4011","Instructie/overleg ouders/verzorgers van de patiënt bij logopedie","75-79 jaar",null,null,"Minder dan 10 patiënten"]
[null,"4011","Instructie/overleg ouders/verzorgers van de patiënt bij logopedie","80-84 jaar",null,null,"Minder dan 10 patiënten"]
[null,"4011","Instructie/overleg ouders/verzorgers van de patiënt bij logopedie","85-89 jaar",null,null,"Minder dan 10 patiënten"]
[null,"4050","Screening bij directe toegang logopedie","0-4 jaar",961,281,235]
[null,"4050","Screening bij directe toegang logopedie","10-14 jaar",241,62,42]
[null,"4050","Screening bij directe toegang logopedie","15-19 jaar",25,"Minder dan 10 patiënten"]
[null,"4050","Screening bij directe toegang logopedie","20-24 jaar","Minder dan 10 patiënten","Minder dan 10 patiënten","Minder dan 10 patiënten"]
[null,"4050","Screening bij directe toegang logopedie","25-29 jaar",null,"Minder dan 10 patiënten"]
[null,"4050","Screening bij directe toegang logopedie","30-34 jaar",null,null,"Minder dan 10 patiënten"]
[null,"4050","35-39 jaar","35-39 jaar","Minder dan 10 patiënten"]
[null,"4050","40-44 jaar","40-44 jaar","Minder dan 10 patiënten"]
[null,"4050","Screening bij directe toegang logopedie","45-49 jaar","Minder dan 10 patiënten","Minder dan 10 patiënten"]
[null,"4050","Screening bij directe toegang logopedie","50-54 jaar","Minder dan 10 patiënten","Minder dan 10 patiënten"]
[null,"4050","55-59 jaar","55-59 jaar","Minder dan 10 patiënten"]
[null,"4050","Screening bij directe toegang logopedie","5-9 jaar",1105,330,227]
[null,"4050","60-64 jaar","60-64 jaar","Minder dan 10 patiënten"]
[null,"4050","Screening bij directe toegang logopedie","65-69 jaar","Minder dan 10 patiënten","Minder dan 10 patiënten","Minder dan 10 patiënten"]
[null,"4050","Screening bij directe toegang logopedie","70-74 jaar",null,"Minder dan 10 patiënten"]
[null,"4050","Screening bij directe toegang logopedie","75-79 jaar","Minder dan 10 patiënten",null,"Minder dan 10 patiënten"]
[null,"4050","Screening bij directe toegang logopedie","80-84 jaar","Minder dan 10 patiënten",null,"Minder dan 10 patiënten"]
[null,"4050","85-89 jaar","85-89 jaar","Minder dan 10 patiënten"]
[null,"4050","Screening bij directe toegang logopedie","90 jaar en ouder",null,null,"Minder dan 10 patiënten"]
[null,"4051","Screening bij directe toegang logopedie met toeslag voor behandeling aan huis","55-59 jaar",null,"Minder dan 10 patiënten"]
[null,"4051","Screening bij directe toegang logopedie met toeslag voor behandeling aan huis","85-89 jaar",null,null,"Minder dan 10 patiënten"]
[null,"4054","Anamnese (intake) en onderzoek logopedie na screening","0-4 jaar",null,129,103]
[null,"4054","Anamnese (intake) en onderzoek logopedie na screening","10-14 jaar",null,28,23]
[null,"4054","Anamnese (intake) en onderzoek logopedie na screening","15-19 jaar",null,"Minder dan 10 patiënten","Minder dan 10 patiënten"]
[null,"4054","Anamnese (intake) en onderzoek logopedie na screening","30-34 jaar",null,null,"Minder dan 10 patiënten"]
[null,"4054","Anamnese (intake) en onderzoek logopedie na screening","45-49 jaar",null,"Minder dan 10 patiënten"]
[null,"4054","Anamnese (intake) en onderzoek logopedie na screening","5-9 jaar",null,158,120]
[null,"4054","Anamnese (intake) en onderzoek logopedie na screening","70-74 jaar",null,"Minder dan 10 patiënten","Minder dan 10 patiënten"]
[null,"4054","Anamnese (intake) en onderzoek logopedie na screening","85-89 jaar",null,"Minder dan 10 patiënten","Minder dan 10 patiënten"]
[null,"4057","Screening, anamnese (intake) en onderzoek logopedie","0-4 jaar",null,879,1266]
[null,"4057","Screening, anamnese (intake) en onderzoek logopedie","10-14 jaar",null,243,287]
[null,"4057","Screening, anamnese (intake) en onderzoek logopedie","15-19 jaar",null,19,26]
[null,"4057","Screening, anamnese (intake) en onderzoek logopedie","20-24 jaar",null,"Minder dan 10 patiënten","Minder dan 10 patiënten"]
[null,"4057","Screening, anamnese (intake) en onderzoek logopedie","25-29 jaar",null,"Minder dan 10 patiënten","Minder dan 10 patiënten"]
[null,"4057","Screening, anamnese (intake) en onderzoek logopedie","30-34 jaar",null,"Minder dan 10 patiënten","Minder dan 10 patiënten"]
[null,"4057","Screening, anamnese (intake) en onderzoek logopedie","35-39 jaar",null,null,"Minder dan 10 patiënten"]
[null,"4057","Screening, anamnese (intake) en onderzoek logopedie","40-44 jaar",null,"Minder dan 10 patiënten","Minder dan 10 patiënten"]
[null,"4057","Screening, anamnese (intake) en onderzoek logopedie","45-49 jaar",null,"Minder dan 10 patiënten"]
[null,"4057","Screening, anamnese (intake) en onderzoek logopedie","50-54 jaar",null,"Minder dan 10 patiënten","Minder dan 10 patiënten"]
[null,"4057","Screening, anamnese (intake) en onderzoek logopedie","55-59 jaar",null,"Minder dan 10 patiënten","Minder dan 10 patiënten"]
[null,"4057","Screening, anamnese (intake) en onderzoek logopedie","5-9 jaar",null,1109,1441]
[null,"4057","Screening, anamnese (intake) en onderzoek logopedie","60-64 jaar",null,"Minder dan 10 patiënten","Minder dan 10 patiënten"]
[null,"4057","Screening, anamnese (intake) en onderzoek logopedie","65-69 jaar",null,null,"Minder dan 10 patiënten"]
[null,"4057","Screening, anamnese (intake) en onderzoek logopedie","70-74 jaar",null,"Minder dan 10 patiënten"]
[null,"4057","Screening, anamnese (intake) en onderzoek logopedie","75-79 jaar",null,"Minder dan 10 patiënten","Minder dan 10 patiënten"]
[null,"4057","Screening, anamnese (intake) en onderzoek logopedie","80-84 jaar",null,"Minder dan 10 patiënten","Minder dan 10 patiënten"]
[null,"4057","Screening, anamnese (intake) en onderzoek logopedie","85-89 jaar",null,null,"Minder dan 10 patiënten"]
[null,"4057","Screening, anamnese (intake) en onderzoek logopedie","90 jaar en ouder",null,"Minder dan 10 patiënten","Minder dan 10 patiënten"]
[null,"4058","Screening, anamnese (intake) en onderzoek logopedie met toeslag voor behandeling aan huis","0-4 jaar",null,null,"Minder dan 10 patiënten"]
[null,"4058","Screening, anamnese (intake) en onderzoek logopedie met toeslag voor behandeling aan huis","55-59 jaar",null,"Minder dan 10 patiënten","Minder dan 10 patiënten"]
[null,"4058","Screening, anamnese (intake) en onderzoek logopedie met toeslag voor behandeling aan huis","70-74 jaar",null,"Minder dan 10 patiënten"]
[null,"4058","Screening, anamnese (intake) en onderzoek logopedie met toeslag voor behandeling aan huis","80-84 jaar",null,null,"Minder dan 10 patiënten"]
[null,"4058","Screening, anamnese (intake) en onderzoek logopedie met toeslag voor behandeling aan huis","85-89 jaar",null,null,"Minder dan 10 patiënten"]
[null,"4061","Anamnese (intake) en onderzoek logopedie na verwijzing","0-4 jaar",null,11481,15057]
[null,"4061","Anamnese (intake) en onderzoek logopedie na verwijzing","10-14 jaar",null,1803,2398]
[null,"4061","Anamnese (intake) en onderzoek logopedie na verwijzing","15-19 jaar",null,93,154]
[null,"4061","Anamnese (intake) en onderzoek logopedie na verwijzing","20-24 jaar",null,18,18]
[null,"4061","Anamnese (intake) en onderzoek logopedie na verwijzing","25-29 jaar",null,11,28]
[null,"4061","Anamnese (intake) en onderzoek logopedie na verwijzing","30-34 jaar",null,16,23]
[null,"4061","Anamnese (intake) en onderzoek logopedie na verwijzing","35-39 jaar",null,13,18]
[null,"4061","Anamnese (intake) en onderzoek logopedie na verwijzing","40-44 jaar",null,17,24]
[null,"4061","Anamnese (intake) en onderzoek logopedie na verwijzing","45-49 jaar",null,32,41]
[null,"4061","Anamnese (intake) en onderzoek logopedie na verwijzing","50-54 jaar",null,47,77]
[null,"4061","Anamnese (intake) en onderzoek logopedie na verwijzing","55-59 jaar",null,55,90]
[null,"4061","Anamnese (intake) en onderzoek logopedie na verwijzing","5-9 jaar",null,10242,13342]
[null,"4061","Anamnese (intake) en onderzoek logopedie na verwijzing","60-64 jaar",null,63,99]
[null,"4061","Anamnese (intake) en onderzoek logopedie na verwijzing","65-69 jaar",null,100,142]
[null,"4061","Anamnese (intake) en onderzoek logopedie na verwijzing","70-74 jaar",null,112,177]
[null,"4061","Anamnese (intake) en onderzoek logopedie na verwijzing","75-79 jaar",null,99,188]
[null,"4061","Anamnese (intake) en onderzoek logopedie na verwijzing","80-84 jaar",null,68,119]
[null,"4061","Anamnese (intake) en onderzoek logopedie na verwijzing","85-89 jaar",null,33,53]
[null,"4061","Anamnese (intake) en onderzoek logopedie na verwijzing","90 jaar en ouder",null,11,30]
[null,"4062","Anamnese (intake) en onderzoek logopedie na verwijzing met toeslag voor behandeling aan huis","0-4 jaar",null,142,126]
[null,"4062","Anamnese (intake) en onderzoek logopedie na verwijzing met toeslag voor behandeling aan huis","10-14 jaar",null,"Minder dan 10 patiënten","Minder dan 10 patiënten"]
[null,"4062","Anamnese (intake) en onderzoek logopedie na verwijzing met toeslag voor behandeling aan huis","15-19 jaar",null,null,"Minder dan 10 patiënten"]
[null,"4062","Anamnese (intake) en onderzoek logopedie na verwijzing met toeslag voor behandeling aan huis","20-24 jaar",null,"Minder dan 10 patiënten","Minder dan 10 patiënten"]
[null,"4062","Anamnese (intake) en onderzoek logopedie na verwijzing met toeslag voor behandeling aan huis","25-29 jaar",null,"Minder dan 10 patiënten","Minder dan 10 patiënten"]
[null,"4062","Anamnese (intake) en onderzoek logopedie na verwijzing met toeslag voor behandeling aan huis","30-34 jaar",null,"Minder dan 10 patiënten","Minder dan 10 patiënten"]
[null,"4062","Anamnese (intake) en onderzoek logopedie na verwijzing met toeslag voor behandeling aan huis","35-39 jaar",null,"Minder dan 10 patiënten","Minder dan 10 patiënten"]
[null,"4062","Anamnese (intake) en onderzoek logopedie na verwijzing met toeslag voor behandeling aan huis","40-44 jaar",null,"Minder dan 10 patiënten","Minder dan 10 patiënten"]
[null,"4062","Anamnese (intake) en onderzoek logopedie na verwijzing met toeslag voor behandeling aan huis","45-49 jaar",null,12,"Minder dan 10 patiënten"]
[null,"4062","Anamnese (intake) en onderzoek logopedie na verwijzing met toeslag voor behandeling aan huis","50-54 jaar",null,"Minder dan 10 patiënten",21]
[null,"4062","Anamnese (intake) en onderzoek logopedie na verwijzing met toeslag voor behandeling aan huis","55-59 jaar",null,17,29]
[null,"4062","Anamnese (intake) en onderzoek logopedie na verwijzing met toeslag voor behandeling aan huis","5-9 jaar",null,25,19]
[null,"4062","Anamnese (intake) en onderzoek logopedie na verwijzing met toeslag voor behandeling aan huis","60-64 jaar",null,30,34]
[null,"4062","Anamnese (intake) en onderzoek logopedie na verwijzing met toeslag voor behandeling aan huis","65-69 jaar",null,32,63]
[null,"4062","Anamnese (intake) en onderzoek logopedie na verwijzing met toeslag voor behandeling aan huis","70-74 jaar",null,55,108]
[null,"4062","Anamnese (intake) en onderzoek logopedie na verwijzing met toeslag voor behandeling aan huis","75-79 jaar",null,69,119]
[null,"4062","Anamnese (intake) en onderzoek logopedie na verwijzing met toeslag voor behandeling aan huis","80-84 jaar",null,66,124]
[null,"4062","Anamnese (intake) en onderzoek logopedie na verwijzing met toeslag voor behandeling aan huis","85-89 jaar",null,47,82]
[null,"4062","Anamnese (intake) en onderzoek logopedie na verwijzing met toeslag voor behandeling aan huis","90 jaar en ouder",null,18,41]
[null,"4063","Anamnese (intake) en onderzoek logopedie na verwijzing met toeslag voor behandeling in een instelling","0-4 jaar",null,"Minder dan 10 patiënten","Minder dan 10 patiënten"]
[null,"4063","Anamnese (intake) en onderzoek logopedie na verwijzing met toeslag voor behandeling in een instelling","15-19 jaar",null,"Minder dan 10 patiënten","Minder dan 10 patiënten"]
[null,"4063","Anamnese (intake) en onderzoek logopedie na verwijzing met toeslag voor behandeling in een instelling","20-24 jaar",null,null,"Minder dan 10 patiënten"]
[null,"4063","Anamnese (intake) en onderzoek logopedie na verwijzing met toeslag voor behandeling in een instelling","25-29 jaar",null,null,"Minder dan 10 patiënten"]
[null,"4063","Anamnese (intake) en onderzoek logopedie na verwijzing met toeslag voor behandeling in een instelling","5-9 jaar",null,"Minder dan 10 patiënten","Minder dan 10 patiënten"]
[null,"4063","Anamnese (intake) en onderzoek logopedie na verwijzing met toeslag voor behandeling in een instelling","60-64 jaar",null,null,"Minder dan 10 patiënten"]
[null,"4063","Anamnese (intake) en onderzoek logopedie na verwijzing met toeslag voor behandeling in een instelling","70-74 jaar",null,"Minder dan 10 patiënten","Minder dan 10 patiënten"]
[null,"4063","Anamnese (intake) en onderzoek logopedie na verwijzing met toeslag voor behandeling in een instelling","75-79 jaar",null,null,"Minder dan 10 patiënten"]
[null,"4063","Anamnese (intake) en onderzoek logopedie na verwijzing met toeslag voor behandeling in een instelling","80-84 jaar",null,"Minder dan 10 patiënten","Minder dan 10 patiënten"]
[null,"4063","Anamnese (intake) en onderzoek logopedie na verwijzing met toeslag voor behandeling in een instelling","85-89 jaar",null,"Minder dan 10 patiënten","Minder dan 10 patiënten"]
[null,"4063","Anamnese (intake) en onderzoek logopedie na verwijzing met toeslag voor behandeling in een instelling","90 jaar en ouder",null,"Minder dan 10 patiënten","Minder dan 10 patiënten"]
[null,"4102","Eenmalig logopedisch onderzoek","0-4 jaar",640,391,242]
[null,"4102","Eenmalig logopedisch onderzoek","10-14 jaar",141,108,30]
[null,"4102","Eenmalig logopedisch onderzoek","15-19 jaar",19,11,11]
[null,"4102","Eenmalig logopedisch onderzoek","20-24 jaar","Minder dan 10 patiënten","Minder dan 10 patiënten","Minder dan 10 patiënten"]
[null,"4102","Eenmalig logopedisch onderzoek","25-29 jaar","Minder dan 10 patiënten","Minder dan 10 patiënten","Minder dan 10 patiënten"]
[null,"4102","Eenmalig logopedisch onderzoek","30-34 jaar","Minder dan 10 patiënten","Minder dan 10 patiënten","Minder dan 10 patiënten"]
[null,"4102","Eenmalig logopedisch onderzoek","35-39 jaar","Minder dan 10 patiënten","Minder dan 10 patiënten","Minder dan 10 patiënten"]
[null,"4102","Eenmalig logopedisch onderzoek","40-44 jaar","Minder dan 10 patiënten","Minder dan 10 patiënten","Minder dan 10 patiënten"]
[null,"4102","Eenmalig logopedisch onderzoek","45-49 jaar","Minder dan 10 patiënten","Minder dan 10 patiënten","Minder dan 10 patiënten"]
[null,"4102","Eenmalig logopedisch onderzoek","50-54 jaar","Minder dan 10 patiënten","Minder dan 10 patiënten","Minder dan 10 patiënten"]
[null,"4102","Eenmalig logopedisch onderzoek","55-59 jaar",11,11,"Minder dan 10 patiënten"]
[null,"4102","Eenmalig logopedisch onderzoek","5-9 jaar",663,430,170]
[null,"4102","Eenmalig logopedisch onderzoek","60-64 jaar",13,"Minder dan 10 patiënten","Minder dan 10 patiënten"]
[null,"4102","Eenmalig logopedisch onderzoek","65-69 jaar",16,11,17]
[null,"4102","Eenmalig logopedisch onderzoek","70-74 jaar",15,19,14]
[null,"4102","Eenmalig logopedisch onderzoek","75-79 jaar",18,14,"Minder dan 10 patiënten"]
[null,"4102","Eenmalig logopedisch onderzoek","80-84 jaar",16,24,15]
[null,"4102","Eenmalig logopedisch onderzoek","85-89 jaar",15,16,"Minder dan 10 patiënten"]
[null,"4102","Eenmalig logopedisch onderzoek","90 jaar en ouder","Minder dan 10 patiënten","Minder dan 10 patiënten","Minder dan 10 patiënten"]
[null,"4103","Eenmalig logopedisch onderzoek met toeslag voor behandeling aan huis","0-4 jaar",28,54,27]
[null,"4103","Eenmalig logopedisch onderzoek met toeslag voor behandeling aan huis","10-14 jaar","Minder dan 10 patiënten","Minder dan 10 patiënten","Minder dan 10 patiënten"]
[null,"4103","15-19 jaar","15-19 jaar","Minder dan 10 patiënten"]
[null,"4103","Eenmalig logopedisch onderzoek met toeslag voor behandeling aan huis","25-29 jaar","Minder dan 10 patiënten","Minder dan 10 patiënten"]
[null,"4103","35-39 jaar","35-39 jaar","Minder dan 10 patiënten"]
[null,"4103","40-44 jaar","40-44 jaar","Minder dan 10 patiënten"]
[null,"4103","45-49 jaar","45-49 jaar","Minder dan 10 patiënten"]
[null,"4103","Eenmalig logopedisch onderzoek met toeslag voor behandeling aan huis","50-54 jaar","Minder dan 10 patiënten","Minder dan 10 patiënten"]
[null,"4103","Eenmalig logopedisch onderzoek met toeslag voor behandeling aan huis","55-59 jaar",null,null,"Minder dan 10 patiënten"]
[null,"4103","Eenmalig logopedisch onderzoek met toeslag voor behandeling aan huis","5-9 jaar",11,"Minder dan 10 patiënten","Minder dan 10 patiënten"]
[null,"4103","Eenmalig logopedisch onderzoek met toeslag voor behandeling aan huis","60-64 jaar","Minder dan 10 patiënten","Minder dan 10 patiënten"]
[null,"4103","Eenmalig logopedisch onderzoek met toeslag voor behandeling aan huis","65-69 jaar","Minder dan 10 patiënten","Minder dan 10 patiënten","Minder dan 10 patiënten"]
[null,"4103","Eenmalig logopedisch onderzoek met toeslag voor behandeling aan huis","70-74 jaar","Minder dan 10 patiënten","Minder dan 10 patiënten","Minder dan 10 patiënten"]
[null,"4103","Eenmalig logopedisch onderzoek met toeslag voor behandeling aan huis","75-79 jaar","Minder dan 10 patiënten","Minder dan 10 patiënten","Minder dan 10 patiënten"]
[null,"4103","Eenmalig logopedisch onderzoek met toeslag voor behandeling aan huis","80-84 jaar","Minder dan 10 patiënten","Minder dan 10 patiënten","Minder dan 10 patiënten"]
[null,"4103","Eenmalig logopedisch onderzoek met toeslag voor behandeling aan huis","85-89 jaar","Minder dan 10 patiënten","Minder dan 10 patiënten","Minder dan 10 patiënten"]
[null,"4103","90 jaar en ouder","90 jaar en ouder","Minder dan 10 patiënten"]
[null,"4104","Eenmalig logopedisch onderzoek met toeslag voor behandeling in een instelling","20-24 jaar",null,null,"Minder dan 10 patiënten"]
[null,"4104","Eenmalig logopedisch onderzoek met toeslag voor behandeling in een instelling","5-9 jaar",null,"Minder dan 10 patiënten"]
[null,"4104","Eenmalig logopedisch onderzoek met toeslag voor behandeling in een instelling","80-84 jaar",null,null,"Minder dan 10 patiënten"]
[null,"4210","0-4 jaar","0-4 jaar",54]
[null,"4210","10-14 jaar","10-14 jaar","Minder dan 10 patiënten"]
[null,"4210","50-54 jaar","50-54 jaar","Minder dan 10 patiënten"]
[null,"4210","55-59 jaar","55-59 jaar","Minder dan 10 patiënten"]
[null,"4210","5-9 jaar","5-9 jaar",23]
[null,"4210","60-64 jaar","60-64 jaar","Minder dan 10 patiënten"]
[null,"4210","65-69 jaar","65-69 jaar","Minder dan 10 patiënten"]
[null,"4210","70-74 jaar","70-74 jaar","Minder dan 10 patiënten"]
[null,"4210","75-79 jaar","75-79 jaar","Minder dan 10 patiënten"]
[null,"4210","80-84 jaar","80-84 jaar","Minder dan 10 patiënten"]
[null,"4211","0-4 jaar","0-4 jaar",60]
[null,"4211","45-49 jaar","45-49 jaar","Minder dan 10 patiënten"]
[null,"4211","55-59 jaar","55-59 jaar","Minder dan 10 patiënten"]
[null,"4211","5-9 jaar","5-9 jaar",23]
[null,"4211","60-64 jaar","60-64 jaar","Minder dan 10 patiënten"]
[null,"4211","65-69 jaar","65-69 jaar","Minder dan 10 patiënten"]
[null,"4211","70-74 jaar","70-74 jaar","Minder dan 10 patiënten"]
[null,"4211","75-79 jaar","75-79 jaar","Minder dan 10 patiënten"]
[null,"4211","80-84 jaar","80-84 jaar","Minder dan 10 patiënten"]
[null,"4212","0-4 jaar","0-4 jaar",28]
[null,"4212","10-14 jaar","10-14 jaar","Minder dan 10 patiënten"]
[null,"4212","45-49 jaar","45-49 jaar","Minder dan 10 patiënten"]
[null,"4212","55-59 jaar","55-59 jaar","Minder dan 10 patiënten"]
[null,"4212","5-9 jaar","5-9 jaar",22]
[null,"4212","60-64 jaar","60-64 jaar","Minder dan 10 patiënten"]
[null,"4212","65-69 jaar","65-69 jaar","Minder dan 10 patiënten"]
[null,"4212","70-74 jaar","70-74 jaar","Minder dan 10 patiënten"]
[null,"4212","75-79 jaar","75-79 jaar","Minder dan 10 patiënten"]
[null,"4212","80-84 jaar","80-84 jaar","Minder dan 10 patiënten"]
[null,"4213","0-4 jaar","0-4 jaar","Minder dan 10 patiënten"]
[null,"4213","10-14 jaar","10-14 jaar","Minder dan 10 patiënten"]
[null,"4213","55-59 jaar","55-59 jaar","Minder dan 10 patiënten"]
[null,"4213","5-9 jaar","5-9 jaar","Minder dan 10 patiënten"]
[null,"4213","65-69 jaar","65-69 jaar","Minder dan 10 patiënten"]
[null,"4213","70-74 jaar","70-74 jaar","Minder dan 10 patiënten"]
[null,"4213","80-84 jaar","80-84 jaar","Minder dan 10 patiënten"]
[null,"4214","Groepszitting voor behandeling logopedie van twee personen","0-4 jaar",null,103,115]
[null,"4214","Groepszitting voor behandeling logopedie van twee personen","10-14 jaar",null,"Minder dan 10 patiënten",14]
[null,"4214","Groepszitting voor behandeling logopedie van twee personen","50-54 jaar",null,"Minder dan 10 patiënten"]
[null,"4214","Groepszitting voor behandeling logopedie van twee personen","55-59 jaar",null,"Minder dan 10 patiënten"]
[null,"4214","Groepszitting voor behandeling logopedie van twee personen","5-9 jaar",null,35,41]
[null,"4214","Groepszitting voor behandeling logopedie van twee personen","60-64 jaar",null,"Minder dan 10 patiënten","Minder dan 10 patiënten"]
[null,"4214","Groepszitting voor behandeling logopedie van twee personen","65-69 jaar",null,"Minder dan 10 patiënten","Minder dan 10 patiënten"]
[null,"4214","Groepszitting voor behandeling logopedie van twee personen","70-74 jaar",null,"Minder dan 10 patiënten","Minder dan 10 patiënten"]
[null,"4214","Groepszitting voor behandeling logopedie van twee personen","75-79 jaar",null,"Minder dan 10 patiënten","Minder dan 10 patiënten"]
[null,"4214","Groepszitting voor behandeling logopedie van twee personen","80-84 jaar",null,"Minder dan 10 patiënten","Minder dan 10 patiënten"]
[null,"4214","Groepszitting voor behandeling logopedie van twee personen","85-89 jaar",null,"Minder dan 10 patiënten","Minder dan 10 patiënten"]
[null,"4214","Groepszitting voor behandeling logopedie van twee personen","90 jaar en ouder",null,null,"Minder dan 10 patiënten"]
[null,"4215","Groepszitting voor behandeling logopedie van drie personen","0-4 jaar",null,138,158]
[null,"4215","Groepszitting voor behandeling logopedie van drie personen","10-14 jaar",null,null,"Minder dan 10 patiënten"]
[null,"4215","Groepszitting voor behandeling logopedie van drie personen","45-49 jaar",null,"Minder dan 10 patiënten"]
[null,"4215","Groepszitting voor behandeling logopedie van drie personen","50-54 jaar",null,"Minder dan 10 patiënten","Minder dan 10 patiënten"]
[null,"4215","Groepszitting voor behandeling logopedie van drie personen","55-59 jaar",null,"Minder dan 10 patiënten","Minder dan 10 patiënten"]
[null,"4215","Groepszitting voor behandeling logopedie van drie personen","5-9 jaar",null,42,82]
[null,"4215","Groepszitting voor behandeling logopedie van drie personen","60-64 jaar",null,"Minder dan 10 patiënten","Minder dan 10 patiënten"]
[null,"4215","Groepszitting voor behandeling logopedie van drie personen","65-69 jaar",null,"Minder dan 10 patiënten","Minder dan 10 patiënten"]
[null,"4215","Groepszitting voor behandeling logopedie van drie personen","70-74 jaar",null,"Minder dan 10 patiënten","Minder dan 10 patiënten"]
[null,"4215","Groepszitting voor behandeling logopedie van drie personen","75-79 jaar",null,"Minder dan 10 patiënten","Minder dan 10 patiënten"]
[null,"4215","Groepszitting voor behandeling logopedie van drie personen","80-84 jaar",null,"Minder dan 10 patiënten","Minder dan 10 patiënten"]
[null,"4215","Groepszitting voor behandeling logopedie van drie personen","85-89 jaar",null,"Minder dan 10 patiënten","Minder dan 10 patiënten"]
[null,"4215","Groepszitting voor behandeling logopedie van drie personen","90 jaar en ouder",null,null,"Minder dan 10 patiënten"]
[null,"4216","Groepszitting voor behandeling logopedie van vier personen","0-4 jaar",null,78,97]
[null,"4216","Groepszitting voor behandeling logopedie van vier personen","10-14 jaar",null,"Minder dan 10 patiënten","Minder dan 10 patiënten"]
[null,"4216","Groepszitting voor behandeling logopedie van vier personen","30-34 jaar",null,"Minder dan 10 patiënten"]
[null,"4216","Groepszitting voor behandeling logopedie van vier personen","35-39 jaar",null,"Minder dan 10 patiënten"]
[null,"4216","Groepszitting voor behandeling logopedie van vier personen","40-44 jaar",null,"Minder dan 10 patiënten","Minder dan 10 patiënten"]
[null,"4216","Groepszitting voor behandeling logopedie van vier personen","45-49 jaar",null,"Minder dan 10 patiënten","Minder dan 10 patiënten"]
[null,"4216","Groepszitting voor behandeling logopedie van vier personen","50-54 jaar",null,null,"Minder dan 10 patiënten"]
[null,"4216","Groepszitting voor behandeling logopedie van vier personen","55-59 jaar",null,"Minder dan 10 patiënten","Minder dan 10 patiënten"]
[null,"4216","Groepszitting voor behandeling logopedie van vier personen","5-9 jaar",null,25,94]
[null,"4216","Groepszitting voor behandeling logopedie van vier personen","60-64 jaar",null,"Minder dan 10 patiënten","Minder dan 10 patiënten"]
[null,"4216","Groepszitting voor behandeling logopedie van vier personen","65-69 jaar",null,"Minder dan 10 patiënten","Minder dan 10 patiënten"]
[null,"4216","Groepszitting voor behandeling logopedie van vier personen","70-74 jaar",null,"Minder dan 10 patiënten",11]
[null,"4216","Groepszitting voor behandeling logopedie van vier personen","75-79 jaar",null,13,11]
[null,"4216","Groepszitting voor behandeling logopedie van vier personen","80-84 jaar",null,"Minder dan 10 patiënten","Minder dan 10 patiënten"]
[null,"4216","Groepszitting voor behandeling logopedie van vier personen","85-89 jaar",null,"Minder dan 10 patiënten","Minder dan 10 patiënten"]
[null,"4216","Groepszitting voor behandeling logopedie van vier personen","90 jaar en ouder",null,null,"Minder dan 10 patiënten"]
[null,"4217","Groepszitting voor behandeling logopedie van vijf tot tien personen","0-4 jaar",null,29,31]
[null,"4217","Groepszitting voor behandeling logopedie van vijf tot tien personen","40-44 jaar",null,"Minder dan 10 patiënten","Minder dan 10 patiënten"]
[null,"4217","Groepszitting voor behandeling logopedie van vijf tot tien personen","45-49 jaar",null,"Minder dan 10 patiënten","Minder dan 10 patiënten"]
[null,"4217","Groepszitting voor behandeling logopedie van vijf tot tien personen","50-54 jaar",null,null,"Minder dan 10 patiënten"]
[null,"4217","Groepszitting voor behandeling logopedie van vijf tot tien personen","55-59 jaar",null,"Minder dan 10 patiënten","Minder dan 10 patiënten"]
[null,"4217","Groepszitting voor behandeling logopedie van vijf tot tien personen","5-9 jaar",null,"Minder dan 10 patiënten",20]
[null,"4217","Groepszitting voor behandeling logopedie van vijf tot tien personen","60-64 jaar",null,"Minder dan 10 patiënten","Minder dan 10 patiënten"]
[null,"4217","Groepszitting voor behandeling logopedie van vijf tot tien personen","65-69 jaar",null,"Minder dan 10 patiënten","Minder dan 10 patiënten"]
[null,"4217","Groepszitting voor behandeling logopedie van vijf tot tien personen","70-74 jaar",null,"Minder dan 10 patiënten","Minder dan 10 patiënten"]
[null,"4217","Groepszitting voor behandeling logopedie van vijf tot tien personen","75-79 jaar",null,"Minder dan 10 patiënten",14]
[null,"4217","Groepszitting voor behandeling logopedie van vijf tot tien personen","80-84 jaar",null,"Minder dan 10 patiënten","Minder dan 10 patiënten"]
[null,"4217","Groepszitting voor behandeling logopedie van vijf tot tien personen","85-89 jaar",null,"Minder dan 10 patiënten","Minder dan 10 patiënten"]
[null,"4217","Groepszitting voor behandeling logopedie van vijf tot tien personen","90 jaar en ouder",null,null,"Minder dan 10 patiënten"]
[null,"4301","Individuele zitting logopedie stotteren","0-4 jaar","Minder dan 10 patiënten",10,15]
[null,"4301","Individuele zitting logopedie stotteren","10-14 jaar","Minder dan 10 patiënten","Minder dan 10 patiënten","Minder dan 10 patiënten"]
[null,"4301","Individuele zitting logopedie stotteren","15-19 jaar",null,"Minder dan 10 patiënten"]
[null,"4301","Individuele zitting logopedie stotteren","20-24 jaar",null,"Minder dan 10 patiënten"]
[null,"4301","Individuele zitting logopedie stotteren","5-9 jaar",20,21,19]
[null,"4302","Individuele zitting logopedie stotteren met toeslag voor behandeling aan huis","0-4 jaar","Minder dan 10 patiënten",null,"Minder dan 10 patiënten"]
[null,"4302","Individuele zitting logopedie stotteren met toeslag voor behandeling aan huis","80-84 jaar",null,"Minder dan 10 patiënten"]
[null,"4303","Individuele zitting preverbale logopedie","0-4 jaar",47,48,86]
[null,"4303","Individuele zitting preverbale logopedie","10-14 jaar",null,"Minder dan 10 patiënten","Minder dan 10 patiënten"]
[null,"4303","15-19 jaar","15-19 jaar","Minder dan 10 patiënten"]
[null,"4303","25-29 jaar","25-29 jaar","Minder dan 10 patiënten"]
[null,"4303","35-39 jaar","35-39 jaar","Minder dan 10 patiënten"]
[null,"4303","Individuele zitting preverbale logopedie","5-9 jaar","Minder dan 10 patiënten","Minder dan 10 patiënten","Minder dan 10 patiënten"]
[null,"4304","Individuele zitting preverbale logopedie met toeslag voor behandeling aan huis","0-4 jaar",96,90,137]
[null,"4304","Individuele zitting preverbale logopedie met toeslag voor behandeling aan huis","10-14 jaar",null,null,"Minder dan 10 patiënten"]
[null,"4304","Individuele zitting preverbale logopedie met toeslag voor behandeling aan huis","15-19 jaar","Minder dan 10 patiënten","Minder dan 10 patiënten","Minder dan 10 patiënten"]
[null,"4304","Individuele zitting preverbale logopedie met toeslag voor behandeling aan huis","55-59 jaar",null,"Minder dan 10 patiënten"]
[null,"4304","Individuele zitting preverbale logopedie met toeslag voor behandeling aan huis","5-9 jaar","Minder dan 10 patiënten",10,"Minder dan 10 patiënten"]
[null,"4304","Individuele zitting preverbale logopedie met toeslag voor behandeling aan huis","80-84 jaar","Minder dan 10 patiënten","Minder dan 10 patiënten"]
[null,"4305","Individuele zitting logopedie afasie","15-19 jaar",null,"Minder dan 10 patiënten","Minder dan 10 patiënten"]
[null,"4305","Individuele zitting logopedie afasie","20-24 jaar","Minder dan 10 patiënten","Minder dan 10 patiënten","Minder dan 10 patiënten"]
[null,"4305","Individuele zitting logopedie afasie","25-29 jaar","Minder dan 10 patiënten","Minder dan 10 patiënten","Minder dan 10 patiënten"]
[null,"4305","Individuele zitting logopedie afasie","30-34 jaar","Minder dan 10 patiënten","Minder dan 10 patiënten","Minder dan 10 patiënten"]
[null,"4305","Individuele zitting logopedie afasie","35-39 jaar","Minder dan 10 patiënten",12,14]
[null,"4305","Individuele zitting logopedie afasie","40-44 jaar",13,22,20]
[null,"4305","Individuele zitting logopedie afasie","45-49 jaar",26,34,35]
[null,"4305","Individuele zitting logopedie afasie","50-54 jaar",22,52,58]
[null,"4305","Individuele zitting logopedie afasie","55-59 jaar",39,57,61]
[null,"4305","5-9 jaar","5-9 jaar","Minder dan 10 patiënten"]
[null,"4305","Individuele zitting logopedie afasie","60-64 jaar",62,64,83]
[null,"4305","Individuele zitting logopedie afasie","65-69 jaar",78,129,118]
[null,"4305","Individuele zitting logopedie afasie","70-74 jaar",81,118,147]
[null,"4305","Individuele zitting logopedie afasie","75-79 jaar",98,119,138]
[null,"4305","Individuele zitting logopedie afasie","80-84 jaar",51,78,76]
[null,"4305","Individuele zitting logopedie afasie","85-89 jaar",23,30,35]
[null,"4305","Individuele zitting logopedie afasie","90 jaar en ouder",13,17,17]
[null,"4306","Individuele zitting logopedie afasie met toeslag voor behandeling aan huis","10-14 jaar","Minder dan 10 patiënten","Minder dan 10 patiënten"]
[null,"4306","Individuele zitting logopedie afasie met toeslag voor behandeling aan huis","15-19 jaar",null,null,"Minder dan 10 patiënten"]
[null,"4306","Individuele zitting logopedie afasie met toeslag voor behandeling aan huis","20-24 jaar","Minder dan 10 patiënten","Minder dan 10 patiënten","Minder dan 10 patiënten"]
[null,"4306","Individuele zitting logopedie afasie met toeslag voor behandeling aan huis","25-29 jaar","Minder dan 10 patiënten","Minder dan 10 patiënten","Minder dan 10 patiënten"]
[null,"4306","Individuele zitting logopedie afasie met toeslag voor behandeling aan huis","30-34 jaar","Minder dan 10 patiënten","Minder dan 10 patiënten","Minder dan 10 patiënten"]
[null,"4306","Individuele zitting logopedie afasie met toeslag voor behandeling aan huis","35-39 jaar","Minder dan 10 patiënten","Minder dan 10 patiënten","Minder dan 10 patiënten"]
[null,"4306","Individuele zitting logopedie afasie met toeslag voor behandeling aan huis","40-44 jaar","Minder dan 10 patiënten","Minder dan 10 patiënten",10]
[null,"4306","Individuele zitting logopedie afasie met toeslag voor behandeling aan huis","45-49 jaar",18,21,12]
[null,"4306","Individuele zitting logopedie afasie met toeslag voor behandeling aan huis","50-54 jaar",12,23,44]
[null,"4306","Individuele zitting logopedie afasie met toeslag voor behandeling aan huis","55-59 jaar",26,29,45]
[null,"4306","Individuele zitting logopedie afasie met toeslag voor behandeling aan huis","60-64 jaar",31,40,71]
[null,"4306","Individuele zitting logopedie afasie met toeslag voor behandeling aan huis","65-69 jaar",63,73,102]
[null,"4306","Individuele zitting logopedie afasie met toeslag voor behandeling aan huis","70-74 jaar",55,98,137]
[null,"4306","Individuele zitting logopedie afasie met toeslag voor behandeling aan huis","75-79 jaar",75,112,173]
[null,"4306","Individuele zitting logopedie afasie met toeslag voor behandeling aan huis","80-84 jaar",77,116,162]
[null,"4306","Individuele zitting logopedie afasie met toeslag voor behandeling aan huis","85-89 jaar",42,76,100]
[null,"4306","Individuele zitting logopedie afasie met toeslag voor behandeling aan huis","90 jaar en ouder",21,31,43]
[null,"4307","Specifieke behandeling volgens het Hanen-ouderprogramma PDMT (Praten Doe je Met z'n Tweeën)","0-4 jaar",89,116,157]
[null,"4307","Specifieke behandeling volgens het Hanen-ouderprogramma PDMT (Praten Doe je Met z'n Tweeën)","5-9 jaar",13,"Minder dan 10 patiënten",15]
[null,"4311","Individuele zitting logopedie afasie met toeslag voor behandeling in een instelling","40-44 jaar",null,"Minder dan 10 patiënten"]
[null,"4311","Individuele zitting logopedie afasie met toeslag voor behandeling in een instelling","45-49 jaar",null,"Minder dan 10 patiënten"]
[null,"4311","Individuele zitting logopedie afasie met toeslag voor behandeling in een instelling","60-64 jaar",null,null,"Minder dan 10 patiënten"]
[null,"4311","Individuele zitting logopedie afasie met toeslag voor behandeling in een instelling","65-69 jaar",null,"Minder dan 10 patiënten","Minder dan 10 patiënten"]
[null,"4311","Individuele zitting logopedie afasie met toeslag voor behandeling in een instelling","70-74 jaar",null,"Minder dan 10 patiënten","Minder dan 10 patiënten"]
[null,"4311","Individuele zitting logopedie afasie met toeslag voor behandeling in een instelling","75-79 jaar",null,"Minder dan 10 patiënten","Minder dan 10 patiënten"]
[null,"4311","Individuele zitting logopedie afasie met toeslag voor behandeling in een instelling","80-84 jaar",null,"Minder dan 10 patiënten","Minder dan 10 patiënten"]
[null,"4311","Individuele zitting logopedie afasie met toeslag voor behandeling in een instelling","85-89 jaar",null,"Minder dan 10 patiënten","Minder dan 10 patiënten"]
[null,"4311","Individuele zitting logopedie afasie met toeslag voor behandeling in een instelling","90 jaar en ouder",null,"Minder dan 10 patiënten","Minder dan 10 patiënten"]
[null,"4312","Individuele zitting telelogopedie afasie","50-54 jaar",null,"Minder dan 10 patiënten","Minder dan 10 patiënten"]
[null,"4312","Individuele zitting telelogopedie afasie","60-64 jaar",null,"Minder dan 10 patiënten"]
[null,"4312","Individuele zitting telelogopedie afasie","65-69 jaar",null,null,"Minder dan 10 patiënten"]
[null,"4312","Individuele zitting telelogopedie afasie","75-79 jaar",null,null,"Minder dan 10 patiënten"]
[null,"4314","Verslaglegging logopedie aan derden","5-9 jaar",null,null,"Minder dan 10 patiënten"]

{"sheet":"Tabel 6","index":6,"n_rows":13,"n_cols":3,"rows_kept":13,"cut":false,"hidden":false,"merged":[]}
[]
[]
[]
[]
[]
[null,"Jaar","Aantal declaraties"]
[null,2011,3625095]
[null,2012,3812105]
[null,2013,3727304]
[null,2014,3603741]
[null,2015,3625693]
[null,2016,3869019]
[null,2017,3983309]

{"sheet":"Tabel 7","index":7,"n_rows":65,"n_cols":24,"rows_kept":65,"cut":false,"hidden":false,"merged":[[5,1,6,1],[5,2,6,2],[5,21,5,23],[5,3,5,5],[5,6,5,8],[5,9,5,11],[5,12,5,14],[5,15,5,17],[5,18,5,20]]}
[]
[]
[{"$nulls":4}," "]
[]
[]
[null,"Prestatiecode","Prestatiecode omschrijving",2011,null,null,2012,null,null,2013,null,null,2014,null,null,2015,null,null,2016,null,null,2017]
[null,"Prestatiecode","Prestatiecode omschrijving","Aantal declaraties","Aantal patiënten","Totale kosten","Aantal declaraties","Aantal patiënten","Totale kosten","Aantal declaraties","Aantal patiënten","Totale kosten","Aantal declaraties","Aantal patiënten","Totale kosten","Aantal declaraties","Aantal patiënten","Totale kosten","Aantal declaraties","Aantal patiënten","Totale kosten","Aantal declaraties","Aantal patiënten","Totale kosten"]
[null,"192970","Specifieke behandeling stotteren (logopedie).","Minder dan 10 declaraties","Minder dan 10 patiënten",364.65,50,"Minder dan 10 patiënten",2912.06,42,"Minder dan 10 patiënten",2426.6999999999998,17,"Minder dan 10 patiënten",1013.37,"Minder dan 10 declaraties","Minder dan 10 patiënten",122]
[null,"192971","Specifieke behandeling Afasie-patiënten (logopedie).",2482,161,140216.56,2452,141,147922.79,2808,159,165563.06,2738,179,163178.26,2872,218,172726.92,33,11,2029.72]
[null,"192972","Specifieke behandeling cf. Hanen-ouderprogramma (logopedie).",31,"Minder dan 10 patiënten",50029.15,null,null,null,"Minder dan 10 declaraties","Minder dan 10 patiënten",1651.34,null,null,null,"Minder dan 10 declaraties","Minder dan 10 patiënten",1666.75]
[null,"192973","Dagdeeltarief IZS per patiënt (logopedie).",null,null,null,"Minder dan 10 declaraties","Minder dan 10 patiënten",55.62]
[null,"192976","Uittoeslag (logopedie).",6275,819,105139.26,7599,878,128930.09000000999,9504,1114,152845.85999999999,8504,1190,144108.9,8791,1219,147059.85,406,70,5733.07,"Minder dan 10 declaraties","Minder dan 10 patiënten",10.4]
[null,"192979","Anamnese en onderzoek na verwijzing (logopedie).",{"$nulls":18},"Minder dan 10 declaraties","Minder dan 10 patiënten",84.46]
[null,"193021","Logopedie",26381,2559,740510.12,32853,3334,953932.75,39358,3656,1147821.51,31961,3609,959340.96,28137,3325,840338.07,822,195,26288.400000000001,60,22,2037.77]
[null,"193022","Eenmalig logopedisch onderzoek op medische indicatie",407,367,19122.759999999998,848,615,54200.69,557,485,33888.01,331,455,18865.57,390,379,30100.3,40,49,2989.73,"Minder dan 10 declaraties","Minder dan 10 patiënten",105.42]
[null,"193023","Logopedische behandeling bij een groep",749,61,10400.48,108,18,1183.68,null,null,null,"Minder dan 10 declaraties","Minder dan 10 patiënten",76.06]
[null,"193024","Preverbale logopedie",190,33,10657.04,346,53,20450.169999999998,314,38,18857.36,242,41,16027.44,44,"Minder dan 10 patiënten",2330.79,"Minder dan 10 declaraties","Minder dan 10 patiënten",195.9]
[null,"193085","Telefonische zitting (logopedie).",null,null,null,24,14,347.94,35,23,536.42999999999995,54,37,907.54,"Minder dan 10 declaraties","Minder dan 10 patiënten",45]
[null,"193090","Logopedische behandeling bij een groep van twee personen.",69,"Minder dan 10 patiënten",2902.83,27,"Minder dan 10 patiënten",1183.4100000000001,56,"Minder dan 10 patiënten",2455.9499999999998,745,114,33258.300000000003,156,40,4739.1400000000003,20,"Minder dan 10 patiënten",608]
[null,"193091","Logopedische behandeling bij een groep van drie personen.",215,22,6030.75,30,"Minder dan 10 patiënten",876.6,84,18,2461.8000000000002,432,86,12835.93,130,41,3040.28,"Minder dan 10 declaraties","Minder dan 10 patiënten",136.69999999999999]
[null,"193092","Logopedische behandeling bij een groep van vier personen.",112,19,2356.48,172,16,3763.32,74,19,1557.52,318,53,7717.44,161,24,3334.86,"Minder dan 10 declaraties","Minder dan 10 patiënten",16.43]
[null,"193093","Logopedische behandeling bij een groep van vijf tot tien personen.",118,18,1504.94,421,26,5245.85,371,29,4679.0600000000004,622,36,7960.49,110,18,2020.31,"Minder dan 10 declaraties","Minder dan 10 patiënten",31.72]
[null,"4000","Individuele zitting reguliere logopedie",3386220,205260,94770450.959999993,3561734,211285,103738969.78,3480460,208768,102415022.66,3359829,206125,101802711.56,3392528,213086,104508502.09,3560868,222317,110853005.33,3628303,229507,113518818.98108]
[null,"4001","Individuele zitting reguliere logopedie met toeslag voor behandeling aan huis",114954,8523,5136479.3499999996,108574,8330,4819828.42,98673,8032,4400258.4400000004,100723,8755,4597766.8600000003,100659,9346,4669562.8600000003,110128,10736,5132607.8499999996,114449,11779,5163850.54]
[null,"4002","Individuele zitting reguliere telelogopedie",4817,511,80704.61,5956,689,107100.54,5708,786,106572.64,6898,907,134638.82999999999,908,274,26472.84,1685,204,48991.51,3672,343,102545.92]
[null,"4003","Individuele zitting reguliere logopedie met toeslag voor behandeling in een instelling",{"$nulls":15},513,79,20347.29,2459,313,97414.04]
[null,"4010","Telefonische zitting logopedie",608,478,8538.15,593,445,8588.5400000000009,393,280,5635.03,410,315,5588.33,641,466,8292.7999999999993,823,633,10723.58,964,722,12886.97]
[null,"4011","Instructie/overleg ouders/verzorgers van de patiënt bij logopedie",{"$nulls":18},662,420,20783.32]
[null,"4050","Screening bij directe toegang logopedie",251,249,3519.02,5245,5056,68823.92,5880,5512,76912.429999999993,6379,5865,78939.78,7779,6903,95603.23,2219,2067,30528.17,1653,1493,20085.55]
[null,"4051","Screening bij directe toegang logopedie met toeslag voor behandeling aan huis",{"$nulls":15},"Minder dan 10 declaraties","Minder dan 10 patiënten",33.4,"Minder dan 10 declaraties","Minder dan 10 patiënten",56.6]
[null,"4054","Anamnese (intake) en onderzoek logopedie na screening",{"$nulls":15},1011,861,53571.53,1000,680,51137.31]
[null,"4055","Anamnese (intake) en onderzoek logopedie na screening met toeslag voor behandeling aan huis",{"$nulls":15},"Minder dan 10 declaraties","Minder dan 10 patiënten",156.80000000000001,"Minder dan 10 declaraties","Minder dan 10 patiënten",377.17]
[null,"4057","Screening, anamnese (intake) en onderzoek logopedie",{"$nulls":15},6857,6255,399975.37,9179,8272,535499.65]
[null,"4058","Screening, anamnese (intake) en onderzoek logopedie met toeslag voor behandeling aan huis",{"$nulls":15},"Minder dan 10 declaraties","Minder dan 10 patiënten",375.6,16,17,1407.69]
[null,"4059","Screening, anamnese (intake) en onderzoek logopedie met toeslag voor behandeling in een instelling",{"$nulls":18},"Minder dan 10 declaraties","Minder dan 10 patiënten",171.29]
[null,"4061","Anamnese (intake) en onderzoek logopedie na verwijzing",{"$nulls":15},84823,71901,4297044.55,107806,94387,5495933.8099999996]
[null,"4062","Anamnese (intake) en onderzoek logopedie na verwijzing met toeslag voor behandeling aan huis",{"$nulls":15},3116,2973,212958.83,4601,4392,306104.09999999998]
[null,"4063","Anamnese (intake) en onderzoek logopedie na verwijzing met toeslag voor behandeling in een instelling",{"$nulls":15},66,66,4251.12,231,217,14484.52]
[null,"4100","Eenmalig specifiek logopedisch onderzoek (op medische indicatie) zonder dat behandeling volgt (vervallen)","Minder dan 10 declaraties","Minder dan 10 patiënten",56.1,"Minder dan 10 declaraties","Minder dan 10 patiënten",58.44,19,"Minder dan 10 patiënten",1224.48]
[null,"4102","Eenmalig logopedisch onderzoek",8349,7670,466484.43,7197,6464,413752.08,6878,6234,404294.26,6206,5767,375325.13,6560,5993,402556.25,3939,3730,242973.64,1973,1874,119432.57]
[null,"4103","Eenmalig logopedisch onderzoek met toeslag voor behandeling aan huis",579,476,41892.6,510,461,37762.980000000003,461,426,33585.370000000003,429,408,32242.31,311,299,23694.37,352,332,26487.79,197,196,14737.91]
[null,"4104","Eenmalig logopedisch onderzoek met toeslag voor behandeling in een instelling",{"$nulls":15},"Minder dan 10 declaraties","Minder dan 10 patiënten",693.57,14,14,981.65]
[null,"4200","Groepsbehandeling logopedie",109,20,1910.98,"Minder dan 10 declaraties","Minder dan 10 patiënten",14.57,"Minder dan 10 declaraties","Minder dan 10 patiënten",112.5]
[null,"4201","Groepsbehandeling integrale Zorg Stotteren (IZS), per dagdeel",157,20,15358.89,365,36,34224.050000000003,86,13,8335.61,232,32,20442.669999999998,96,29,8348,208,26,19647.02]
[null,"4210","Groepsbehandeling voor specifieke behandeling van twee personen",423,35,31775.23,474,50,18989.41,611,80,23562.94,819,105,32081.97,878,110,34890.11]
[null,"4211","Groepsbehandeling voor specifieke behandeling van drie personen",273,49,7167.77,342,60,9564.7000000000007,459,92,12661.9,763,132,21865.42,937,148,26596.46]
[null,"4212","Groepsbehandeling voor specifieke behandeling van vier personen",273,50,4246.04,686,114,14116.21,560,98,11506.1,653,106,13996.41,1800,181,40268.92]
[null,"4213","Groepsbehandeling voor specifieke behandeling van vijf tot tien personen",1007,139,13708.73,1087,132,13364.98,1018,130,12670.65,1104,128,14207.92,740,96,9504.51]
[null,"4214","Groepszitting voor behandeling logopedie van twee personen",{"$nulls":15},1057,226,39199.07,1273,229,43357.49]
[null,"4215","Groepszitting voor behandeling logopedie van drie personen",{"$nulls":15},1842,354,49330.58,3391,491,86834.42]
[null,"4216","Groepszitting voor behandeling logopedie van vier personen",{"$nulls":15},1728,252,35941.699999999997,1923,342,41080.400000000001]
[null,"4217","Groepszitting voor behandeling logopedie van vijf tot tien personen",{"$nulls":15},814,132,10559.68,1938,180,27283.62]
[null,"4301","Individuele zitting logopedie stotteren",31006,3594,1734937.99,33078,3748,1923515.1999987001,32831,3647,1920788.89,32473,3599,1969122.24,33769,3737,2078014.16,37049,4042,2309817.75,39479,4448,2464575.4899999001]
[null,"4302","Individuele zitting logopedie stotteren met toeslag voor behandeling aan huis",32,11,2312.9899999999998,71,29,5273.71,193,33,14778.18,169,34,13224.61,106,23,8291.2900000000009,128,25,9860.7199999999993,162,27,12356.74]
[null,"4303","Individuele zitting preverbale logopedie",5653,1044,316413.57,6104,1105,355380.67,5456,1162,319041.96999999997,4912,1184,298649.07,4222,1160,259900.26999999001,4907,1340,305541.46999999997,6302,1711,392691]
[null,"4304","Individuele zitting preverbale logopedie met toeslag voor behandeling aan huis",20907,3245,1523635.7,21056,3253,1563485.9900001001,20930,3381,1566842,20724,3544,1585411.91,16968,3166,1320588.3,20853,3900,1641782.1200001,24386,4647,1871190.81]
[null,"4305","Individuele zitting logopedie afasie",5873,365,329031.59000000003,6342,369,365662.12,5744,334,334277.86,7398,461,445307.07,8635,582,527371.54,12009,820,738261.76,12690,899,778865.77]
[null,"4306","Individuele zitting logopedie afasie met toeslag voor behandeling aan huis",6411,277,463969.23,7612,306,568091,7627,308,570433.4,7506,354,575398.28,7236,482,556720.71,10192,704,790738.44999995001,13970,1001,1056350.96]
[null,"4307","Specifieke behandeling volgens het Hanen-ouderprogramma PDMT (Praten Doe je Met z'n Tweeën)",156,157,250307.99,145,152,242494.16,110,103,184482.03,148,150,252336.26,123,129,234488.12,131,131,229704.78,188,188,334306.21999999997]
[null,"4309","Individuele zitting telelogopedie stotteren",{"$nulls":15},50,15,2996.48,43,16,2494.5500000000002]
[null,"4310","Individuele zitting preverbale logopedie met toeslag voor behandeling in een instelling",{"$nulls":15},60,"Minder dan 10 patiënten",4439.5,18,"Minder dan 10 patiënten",1424.3]
[null,"4311","Individuele zitting logopedie afasie met toeslag voor behandeling in een instelling",{"$nulls":15},209,20,13459.5,281,21,19522.34]
[null,"4312","Individuele zitting telelogopedie afasie",{"$nulls":15},31,"Minder dan 10 patiënten",1924,11,"Minder dan 10 patiënten",728.45]
[null,"4313","Overleg logopedie met derden",{"$nulls":15},"Minder dan 10 declaraties","Minder dan 10 patiënten",78.790000000000006]
[null,"4314","Verslaglegging logopedie aan derden",{"$nulls":18},"Minder dan 10 declaraties","Minder dan 10 patiënten",86.82]